Organisation Name,Organisation Code,Effective Date,Directorate,Service (Sercop),Sercop URI,Supplier Name,Purpose of Spend,Type,Transaction No.,Seq No.,Payment Date,Net Amount,Irrecoverable VAT,Merchant Category,P-Card Tran,Contract
Wakefield MDC,E08000036,30/06/2014,REGENCULT,M,Environmental and Regulatory Services,EC MAINLINE,Training Expenses,Revenue,160657,235,27/06/2014,52.05,Nil,Passenger Railways,GPC,Not yet available
Wakefield MDC,E08000036,30/06/2014,REGENCULT,M,Environmental and Regulatory Services,HSE BOOKS,Training Expenses,Revenue,160639,4141,14/04/2014,66.67,Nil,Govt Services - Not Elsewhere Classified,GPC,Not yet available
Wakefield MDC,E08000036,30/06/2014,BUSINESS,A,Net (Surplus) / Deficit of Trading Operations,ACE APPRENTICES,Training Expenses,Revenue,160641,763,02/05/2014,22.00,Nil,Management/Consulting/P.R.Services,GPC,Not yet available
Wakefield MDC,E08000036,30/06/2014,BUSINESS,A,Net (Surplus) / Deficit of Trading Operations,ACE APPRENTICES,Training Expenses,Revenue,160641,764,02/05/2014,22.00,Nil,Management/Consulting/P.R.Services,GPC,Not yet available
Wakefield MDC,E08000036,30/06/2014,BUSINESS,A,Net (Surplus) / Deficit of Trading Operations,ACE APPRENTICES,Training Expenses,Revenue,160641,765,02/05/2014,22.00,Nil,Management/Consulting/P.R.Services,GPC,Not yet available
Wakefield MDC,E08000036,30/06/2014,BUSINESS,A,Net (Surplus) / Deficit of Trading Operations,ACE APPRENTICES,Training Expenses,Revenue,160647,7567,03/06/2014,22.00,Nil,Management/Consulting/P.R.Services,GPC,Not yet available
Wakefield MDC,E08000036,30/06/2014,BUSINESS,A,Net (Surplus) / Deficit of Trading Operations,WAKEFIELD SKILL CENTRE,Training Expenses,Revenue,160647,4627,03/06/2014,"1,400.00",Nil,Colleges/Unis/Junior Colleges/Professional Schools,GPC,Not yet available
Wakefield MDC,E08000036,30/06/2014,CHILDYOU,4,Children's and Education Services,PUBLIC HEALTH EDUCATION,Training Expenses,Revenue,160647,4873,03/06/2014,100.00,Nil,Govt Services - Not Elsewhere Classified,GPC,Not yet available
Wakefield MDC,E08000036,30/06/2014,CHILDYOU,4,Children's and Education Services,PUBLIC HEALTH EDUCATION,Training Expenses,Revenue,160649,926,13/06/2014,25.00,Nil,Govt Services - Not Elsewhere Classified,GPC,Not yet available
Wakefield MDC,E08000036,30/06/2014,CHILDYOU,4,Children's and Education Services,ASDA,Training Expenses,Revenue,160639,3523,14/04/2014,3.78,Nil,Grocery Stores/Supermarkets,GPC,Not yet available
Wakefield MDC,E08000036,30/06/2014,ADULTS,P,Public Health,EXCHANGE SUPPLIES,Training Expenses,Revenue,160649,1511,13/06/2014,600.00,Nil,Membership Organisations - Not Elsewhere Classified,GPC,Not yet available
Wakefield MDC,E08000036,30/06/2014,ADULTS,P,Public Health,PMG LTD,Training Expenses,Revenue,160649,1494,13/06/2014,426.00,Nil,Membership Organisations - Not Elsewhere Classified,GPC,Not yet available
Wakefield MDC,E08000036,30/06/2014,REGENCULT,6,Housing Services,PMG LTD,Training Expenses,Revenue,160650,1110,16/06/2014,395.00,Nil,Membership Organisations - Not Elsewhere Classified,GPC,Not yet available
Wakefield MDC,E08000036,30/06/2014,REGENCULT,N,Planning Services,MOVERS AND SHAKERS,Training Expenses,Revenue,160651,3093,18/06/2014,90.00,Nil,Membership Organisations - Not Elsewhere Classified,GPC,Not yet available
Wakefield MDC,E08000036,30/06/2014,REGENCULT,N,Planning Services,MOVERS AND SHAKERS,Training Expenses,Revenue,160651,3278,18/06/2014,90.00,Nil,Membership Organisations - Not Elsewhere Classified,GPC,Not yet available
Wakefield MDC,E08000036,30/06/2014,REGENCULT,N,Planning Services,TRAVELODGE,Training Expenses,Revenue,160653,695,23/06/2014,59.71,Nil,Hotels And Accommodation,GPC,Not yet available
Wakefield MDC,E08000036,30/06/2014,REGENCULT,A,Net (Surplus) / Deficit of Trading Operations,DSA ,Training Expenses,Revenue,160642,88,07/05/2014,8.75,Nil,Govt Services - Not Elsewhere Classified,GPC,Not yet available
Wakefield MDC,E08000036,30/06/2014,REGENCULT,A,Net (Surplus) / Deficit of Trading Operations,DSA ,Training Expenses,Revenue,160642,89,07/05/2014,8.75,Nil,Govt Services - Not Elsewhere Classified,GPC,Not yet available
Wakefield MDC,E08000036,30/06/2014,REGENCULT,A,Net (Surplus) / Deficit of Trading Operations,DSA ,Training Expenses,Revenue,160642,90,07/05/2014,8.75,Nil,Govt Services - Not Elsewhere Classified,GPC,Not yet available
Wakefield MDC,E08000036,30/06/2014,REGENCULT,A,Net (Surplus) / Deficit of Trading Operations,DSA ,Training Expenses,Revenue,160642,142,07/05/2014,8.75,Nil,Govt Services - Not Elsewhere Classified,GPC,Not yet available
Wakefield MDC,E08000036,30/06/2014,REGENCULT,A,Net (Surplus) / Deficit of Trading Operations,DSA ,Training Expenses,Revenue,160642,143,07/05/2014,8.75,Nil,Govt Services - Not Elsewhere Classified,GPC,Not yet available
Wakefield MDC,E08000036,30/06/2014,REGENCULT,A,Net (Surplus) / Deficit of Trading Operations,DSA ,Training Expenses,Revenue,160642,144,07/05/2014,8.75,Nil,Govt Services - Not Elsewhere Classified,GPC,Not yet available
Wakefield MDC,E08000036,30/06/2014,REGENCULT,A,Net (Surplus) / Deficit of Trading Operations,DSA ,Training Expenses,Revenue,160642,262,07/05/2014,8.75,Nil,Govt Services - Not Elsewhere Classified,GPC,Not yet available
Wakefield MDC,E08000036,30/06/2014,REGENCULT,A,Net (Surplus) / Deficit of Trading Operations,DSA ,Training Expenses,Revenue,160642,263,07/05/2014,8.75,Nil,Govt Services - Not Elsewhere Classified,GPC,Not yet available
Wakefield MDC,E08000036,30/06/2014,REGENCULT,A,Net (Surplus) / Deficit of Trading Operations,DSA ,Training Expenses,Revenue,160642,264,07/05/2014,8.75,Nil,Govt Services - Not Elsewhere Classified,GPC,Not yet available
Wakefield MDC,E08000036,30/06/2014,REGENCULT,A,Net (Surplus) / Deficit of Trading Operations,DSA ,Training Expenses,Revenue,160642,370,07/05/2014,8.75,Nil,Govt Services - Not Elsewhere Classified,GPC,Not yet available
Wakefield MDC,E08000036,30/06/2014,REGENCULT,A,Net (Surplus) / Deficit of Trading Operations,DSA ,Training Expenses,Revenue,160642,371,07/05/2014,8.75,Nil,Govt Services - Not Elsewhere Classified,GPC,Not yet available
Wakefield MDC,E08000036,30/06/2014,REGENCULT,A,Net (Surplus) / Deficit of Trading Operations,DSA ,Training Expenses,Revenue,160642,372,07/05/2014,8.75,Nil,Govt Services - Not Elsewhere Classified,GPC,Not yet available
Wakefield MDC,E08000036,30/06/2014,REGENCULT,A,Net (Surplus) / Deficit of Trading Operations,DSA ,Training Expenses,Revenue,160642,436,07/05/2014,8.75,Nil,Govt Services - Not Elsewhere Classified,GPC,Not yet available
Wakefield MDC,E08000036,30/06/2014,REGENCULT,A,Net (Surplus) / Deficit of Trading Operations,DSA ,Training Expenses,Revenue,160642,437,07/05/2014,8.75,Nil,Govt Services - Not Elsewhere Classified,GPC,Not yet available
Wakefield MDC,E08000036,30/06/2014,REGENCULT,A,Net (Surplus) / Deficit of Trading Operations,DSA ,Training Expenses,Revenue,160642,438,07/05/2014,8.75,Nil,Govt Services - Not Elsewhere Classified,GPC,Not yet available
Wakefield MDC,E08000036,30/06/2014,REGENCULT,A,Net (Surplus) / Deficit of Trading Operations,DSA ,Training Expenses,Revenue,160642,490,07/05/2014,8.75,Nil,Govt Services - Not Elsewhere Classified,GPC,Not yet available
Wakefield MDC,E08000036,30/06/2014,REGENCULT,A,Net (Surplus) / Deficit of Trading Operations,DSA ,Training Expenses,Revenue,160642,491,07/05/2014,8.75,Nil,Govt Services - Not Elsewhere Classified,GPC,Not yet available
Wakefield MDC,E08000036,30/06/2014,REGENCULT,A,Net (Surplus) / Deficit of Trading Operations,DSA ,Training Expenses,Revenue,160642,492,07/05/2014,8.75,Nil,Govt Services - Not Elsewhere Classified,GPC,Not yet available
Wakefield MDC,E08000036,30/06/2014,REGENCULT,A,Net (Surplus) / Deficit of Trading Operations,DSA ,Training Expenses,Revenue,160642,610,07/05/2014,8.75,Nil,Govt Services - Not Elsewhere Classified,GPC,Not yet available
Wakefield MDC,E08000036,30/06/2014,REGENCULT,A,Net (Surplus) / Deficit of Trading Operations,DSA ,Training Expenses,Revenue,160642,611,07/05/2014,8.75,Nil,Govt Services - Not Elsewhere Classified,GPC,Not yet available
Wakefield MDC,E08000036,30/06/2014,REGENCULT,A,Net (Surplus) / Deficit of Trading Operations,DSA ,Training Expenses,Revenue,160642,612,07/05/2014,8.75,Nil,Govt Services - Not Elsewhere Classified,GPC,Not yet available
Wakefield MDC,E08000036,30/06/2014,REGENCULT,A,Net (Surplus) / Deficit of Trading Operations,DSA ,Training Expenses,Revenue,160642,664,07/05/2014,8.75,Nil,Govt Services - Not Elsewhere Classified,GPC,Not yet available
Wakefield MDC,E08000036,30/06/2014,REGENCULT,A,Net (Surplus) / Deficit of Trading Operations,DSA ,Training Expenses,Revenue,160642,665,07/05/2014,8.75,Nil,Govt Services - Not Elsewhere Classified,GPC,Not yet available
Wakefield MDC,E08000036,30/06/2014,REGENCULT,A,Net (Surplus) / Deficit of Trading Operations,DSA ,Training Expenses,Revenue,160642,666,07/05/2014,8.75,Nil,Govt Services - Not Elsewhere Classified,GPC,Not yet available
Wakefield MDC,E08000036,30/06/2014,REGENCULT,A,Net (Surplus) / Deficit of Trading Operations,DSA ,Training Expenses,Revenue,160642,784,07/05/2014,8.75,Nil,Govt Services - Not Elsewhere Classified,GPC,Not yet available
Wakefield MDC,E08000036,30/06/2014,REGENCULT,A,Net (Surplus) / Deficit of Trading Operations,DSA ,Training Expenses,Revenue,160642,785,07/05/2014,8.75,Nil,Govt Services - Not Elsewhere Classified,GPC,Not yet available
Wakefield MDC,E08000036,30/06/2014,REGENCULT,A,Net (Surplus) / Deficit of Trading Operations,DSA ,Training Expenses,Revenue,160642,786,07/05/2014,8.75,Nil,Govt Services - Not Elsewhere Classified,GPC,Not yet available
Wakefield MDC,E08000036,30/06/2014,REGENCULT,A,Net (Surplus) / Deficit of Trading Operations,DSA ,Training Expenses,Revenue,160642,892,07/05/2014,8.75,Nil,Govt Services - Not Elsewhere Classified,GPC,Not yet available
Wakefield MDC,E08000036,30/06/2014,REGENCULT,A,Net (Surplus) / Deficit of Trading Operations,DSA ,Training Expenses,Revenue,160642,893,07/05/2014,8.75,Nil,Govt Services - Not Elsewhere Classified,GPC,Not yet available
Wakefield MDC,E08000036,30/06/2014,REGENCULT,A,Net (Surplus) / Deficit of Trading Operations,DSA ,Training Expenses,Revenue,160642,894,07/05/2014,8.75,Nil,Govt Services - Not Elsewhere Classified,GPC,Not yet available
Wakefield MDC,E08000036,30/06/2014,REGENCULT,A,Net (Surplus) / Deficit of Trading Operations,DSA ,Training Expenses,Revenue,160642,958,07/05/2014,8.75,Nil,Govt Services - Not Elsewhere Classified,GPC,Not yet available
Wakefield MDC,E08000036,30/06/2014,REGENCULT,A,Net (Surplus) / Deficit of Trading Operations,DSA ,Training Expenses,Revenue,160642,959,07/05/2014,8.75,Nil,Govt Services - Not Elsewhere Classified,GPC,Not yet available
Wakefield MDC,E08000036,30/06/2014,REGENCULT,A,Net (Surplus) / Deficit of Trading Operations,DSA ,Training Expenses,Revenue,160642,960,07/05/2014,8.75,Nil,Govt Services - Not Elsewhere Classified,GPC,Not yet available
Wakefield MDC,E08000036,30/06/2014,REGENCULT,A,Net (Surplus) / Deficit of Trading Operations,DSA ,Training Expenses,Revenue,160642,1012,07/05/2014,8.75,Nil,Govt Services - Not Elsewhere Classified,GPC,Not yet available
Wakefield MDC,E08000036,30/06/2014,REGENCULT,A,Net (Surplus) / Deficit of Trading Operations,DSA ,Training Expenses,Revenue,160642,1013,07/05/2014,8.75,Nil,Govt Services - Not Elsewhere Classified,GPC,Not yet available
Wakefield MDC,E08000036,30/06/2014,REGENCULT,A,Net (Surplus) / Deficit of Trading Operations,DSA ,Training Expenses,Revenue,160642,1014,07/05/2014,8.75,Nil,Govt Services - Not Elsewhere Classified,GPC,Not yet available
Wakefield MDC,E08000036,30/06/2014,REGENCULT,A,Net (Surplus) / Deficit of Trading Operations,DSA ,Training Expenses,Revenue,160642,1132,07/05/2014,8.75,Nil,Govt Services - Not Elsewhere Classified,GPC,Not yet available
Wakefield MDC,E08000036,30/06/2014,REGENCULT,A,Net (Surplus) / Deficit of Trading Operations,DSA ,Training Expenses,Revenue,160642,1133,07/05/2014,8.75,Nil,Govt Services - Not Elsewhere Classified,GPC,Not yet available
Wakefield MDC,E08000036,30/06/2014,REGENCULT,A,Net (Surplus) / Deficit of Trading Operations,DSA ,Training Expenses,Revenue,160642,1134,07/05/2014,8.75,Nil,Govt Services - Not Elsewhere Classified,GPC,Not yet available
Wakefield MDC,E08000036,30/06/2014,REGENCULT,A,Net (Surplus) / Deficit of Trading Operations,DSA ,Training Expenses,Revenue,160642,1194,07/05/2014,8.75,Nil,Govt Services - Not Elsewhere Classified,GPC,Not yet available
Wakefield MDC,E08000036,30/06/2014,REGENCULT,A,Net (Surplus) / Deficit of Trading Operations,DSA ,Training Expenses,Revenue,160642,1195,07/05/2014,8.75,Nil,Govt Services - Not Elsewhere Classified,GPC,Not yet available
Wakefield MDC,E08000036,30/06/2014,REGENCULT,A,Net (Surplus) / Deficit of Trading Operations,DSA ,Training Expenses,Revenue,160642,1196,07/05/2014,8.75,Nil,Govt Services - Not Elsewhere Classified,GPC,Not yet available
Wakefield MDC,E08000036,30/06/2014,REGENCULT,A,Net (Surplus) / Deficit of Trading Operations,DSA ,Training Expenses,Revenue,160642,1308,07/05/2014,8.75,Nil,Govt Services - Not Elsewhere Classified,GPC,Not yet available
Wakefield MDC,E08000036,30/06/2014,REGENCULT,A,Net (Surplus) / Deficit of Trading Operations,DSA ,Training Expenses,Revenue,160642,1309,07/05/2014,8.75,Nil,Govt Services - Not Elsewhere Classified,GPC,Not yet available
Wakefield MDC,E08000036,30/06/2014,REGENCULT,A,Net (Surplus) / Deficit of Trading Operations,DSA ,Training Expenses,Revenue,160642,1310,07/05/2014,8.75,Nil,Govt Services - Not Elsewhere Classified,GPC,Not yet available
Wakefield MDC,E08000036,30/06/2014,REGENCULT,A,Net (Surplus) / Deficit of Trading Operations,DSA ,Training Expenses,Revenue,160642,1392,07/05/2014,8.75,Nil,Govt Services - Not Elsewhere Classified,GPC,Not yet available
Wakefield MDC,E08000036,30/06/2014,REGENCULT,A,Net (Surplus) / Deficit of Trading Operations,DSA ,Training Expenses,Revenue,160642,1393,07/05/2014,8.75,Nil,Govt Services - Not Elsewhere Classified,GPC,Not yet available
Wakefield MDC,E08000036,30/06/2014,REGENCULT,A,Net (Surplus) / Deficit of Trading Operations,DSA ,Training Expenses,Revenue,160642,1394,07/05/2014,8.75,Nil,Govt Services - Not Elsewhere Classified,GPC,Not yet available
Wakefield MDC,E08000036,30/06/2014,REGENCULT,A,Net (Surplus) / Deficit of Trading Operations,DSA ,Training Expenses,Revenue,160642,1488,07/05/2014,8.75,Nil,Govt Services - Not Elsewhere Classified,GPC,Not yet available
Wakefield MDC,E08000036,30/06/2014,REGENCULT,A,Net (Surplus) / Deficit of Trading Operations,DSA ,Training Expenses,Revenue,160642,1489,07/05/2014,8.75,Nil,Govt Services - Not Elsewhere Classified,GPC,Not yet available
Wakefield MDC,E08000036,30/06/2014,REGENCULT,A,Net (Surplus) / Deficit of Trading Operations,DSA ,Training Expenses,Revenue,160642,1490,07/05/2014,8.75,Nil,Govt Services - Not Elsewhere Classified,GPC,Not yet available
Wakefield MDC,E08000036,30/06/2014,REGENCULT,A,Net (Surplus) / Deficit of Trading Operations,DSA ,Training Expenses,Revenue,160642,1494,07/05/2014,8.75,Nil,Govt Services - Not Elsewhere Classified,GPC,Not yet available
Wakefield MDC,E08000036,30/06/2014,REGENCULT,A,Net (Surplus) / Deficit of Trading Operations,DSA ,Training Expenses,Revenue,160642,1495,07/05/2014,8.75,Nil,Govt Services - Not Elsewhere Classified,GPC,Not yet available
Wakefield MDC,E08000036,30/06/2014,REGENCULT,A,Net (Surplus) / Deficit of Trading Operations,DSA ,Training Expenses,Revenue,160642,1496,07/05/2014,8.75,Nil,Govt Services - Not Elsewhere Classified,GPC,Not yet available
Wakefield MDC,E08000036,30/06/2014,REGENCULT,A,Net (Surplus) / Deficit of Trading Operations,DSA ,Training Expenses,Revenue,160642,1653,07/05/2014,8.75,Nil,Govt Services - Not Elsewhere Classified,GPC,Not yet available
Wakefield MDC,E08000036,30/06/2014,REGENCULT,A,Net (Surplus) / Deficit of Trading Operations,DSA ,Training Expenses,Revenue,160642,1654,07/05/2014,8.75,Nil,Govt Services - Not Elsewhere Classified,GPC,Not yet available
Wakefield MDC,E08000036,30/06/2014,REGENCULT,A,Net (Surplus) / Deficit of Trading Operations,DSA ,Training Expenses,Revenue,160642,1655,07/05/2014,8.75,Nil,Govt Services - Not Elsewhere Classified,GPC,Not yet available
Wakefield MDC,E08000036,30/06/2014,REGENCULT,A,Net (Surplus) / Deficit of Trading Operations,DSA ,Training Expenses,Revenue,160642,1757,07/05/2014,8.75,Nil,Govt Services - Not Elsewhere Classified,GPC,Not yet available
Wakefield MDC,E08000036,30/06/2014,REGENCULT,A,Net (Surplus) / Deficit of Trading Operations,DSA ,Training Expenses,Revenue,160642,1758,07/05/2014,8.75,Nil,Govt Services - Not Elsewhere Classified,GPC,Not yet available
Wakefield MDC,E08000036,30/06/2014,REGENCULT,A,Net (Surplus) / Deficit of Trading Operations,DSA ,Training Expenses,Revenue,160642,1759,07/05/2014,8.75,Nil,Govt Services - Not Elsewhere Classified,GPC,Not yet available
Wakefield MDC,E08000036,30/06/2014,REGENCULT,A,Net (Surplus) / Deficit of Trading Operations,DSA ,Training Expenses,Revenue,160642,1823,07/05/2014,8.75,Nil,Govt Services - Not Elsewhere Classified,GPC,Not yet available
Wakefield MDC,E08000036,30/06/2014,REGENCULT,A,Net (Surplus) / Deficit of Trading Operations,DSA ,Training Expenses,Revenue,160642,1824,07/05/2014,8.75,Nil,Govt Services - Not Elsewhere Classified,GPC,Not yet available
Wakefield MDC,E08000036,30/06/2014,REGENCULT,A,Net (Surplus) / Deficit of Trading Operations,DSA ,Training Expenses,Revenue,160642,1825,07/05/2014,8.75,Nil,Govt Services - Not Elsewhere Classified,GPC,Not yet available
Wakefield MDC,E08000036,30/06/2014,REGENCULT,A,Net (Surplus) / Deficit of Trading Operations,DSA ,Training Expenses,Revenue,160642,1880,07/05/2014,8.75,Nil,Govt Services - Not Elsewhere Classified,GPC,Not yet available
Wakefield MDC,E08000036,30/06/2014,REGENCULT,A,Net (Surplus) / Deficit of Trading Operations,DSA ,Training Expenses,Revenue,160642,1881,07/05/2014,8.75,Nil,Govt Services - Not Elsewhere Classified,GPC,Not yet available
Wakefield MDC,E08000036,30/06/2014,REGENCULT,A,Net (Surplus) / Deficit of Trading Operations,DSA ,Training Expenses,Revenue,160642,1882,07/05/2014,8.75,Nil,Govt Services - Not Elsewhere Classified,GPC,Not yet available
Wakefield MDC,E08000036,30/06/2014,REGENCULT,A,Net (Surplus) / Deficit of Trading Operations,DSA ,Training Expenses,Revenue,160642,2021,07/05/2014,8.75,Nil,Govt Services - Not Elsewhere Classified,GPC,Not yet available
Wakefield MDC,E08000036,30/06/2014,REGENCULT,A,Net (Surplus) / Deficit of Trading Operations,DSA ,Training Expenses,Revenue,160642,2022,07/05/2014,8.75,Nil,Govt Services - Not Elsewhere Classified,GPC,Not yet available
Wakefield MDC,E08000036,30/06/2014,REGENCULT,A,Net (Surplus) / Deficit of Trading Operations,DSA ,Training Expenses,Revenue,160642,2023,07/05/2014,8.75,Nil,Govt Services - Not Elsewhere Classified,GPC,Not yet available
Wakefield MDC,E08000036,30/06/2014,REGENCULT,A,Net (Surplus) / Deficit of Trading Operations,DSA ,Training Expenses,Revenue,160642,2105,07/05/2014,8.75,Nil,Govt Services - Not Elsewhere Classified,GPC,Not yet available
Wakefield MDC,E08000036,30/06/2014,REGENCULT,A,Net (Surplus) / Deficit of Trading Operations,DSA ,Training Expenses,Revenue,160642,2106,07/05/2014,8.75,Nil,Govt Services - Not Elsewhere Classified,GPC,Not yet available
Wakefield MDC,E08000036,30/06/2014,REGENCULT,A,Net (Surplus) / Deficit of Trading Operations,DSA ,Training Expenses,Revenue,160642,2107,07/05/2014,8.75,Nil,Govt Services - Not Elsewhere Classified,GPC,Not yet available
Wakefield MDC,E08000036,30/06/2014,REGENCULT,A,Net (Surplus) / Deficit of Trading Operations,DSA ,Training Expenses,Revenue,160642,2168,07/05/2014,8.75,Nil,Govt Services - Not Elsewhere Classified,GPC,Not yet available
Wakefield MDC,E08000036,30/06/2014,REGENCULT,A,Net (Surplus) / Deficit of Trading Operations,DSA ,Training Expenses,Revenue,160642,2169,07/05/2014,8.75,Nil,Govt Services - Not Elsewhere Classified,GPC,Not yet available
Wakefield MDC,E08000036,30/06/2014,REGENCULT,A,Net (Surplus) / Deficit of Trading Operations,DSA ,Training Expenses,Revenue,160642,2170,07/05/2014,8.75,Nil,Govt Services - Not Elsewhere Classified,GPC,Not yet available
Wakefield MDC,E08000036,30/06/2014,REGENCULT,A,Net (Surplus) / Deficit of Trading Operations,DSA ,Training Expenses,Revenue,160642,2180,07/05/2014,8.75,Nil,Govt Services - Not Elsewhere Classified,GPC,Not yet available
Wakefield MDC,E08000036,30/06/2014,REGENCULT,A,Net (Surplus) / Deficit of Trading Operations,DSA ,Training Expenses,Revenue,160642,2181,07/05/2014,8.75,Nil,Govt Services - Not Elsewhere Classified,GPC,Not yet available
Wakefield MDC,E08000036,30/06/2014,REGENCULT,A,Net (Surplus) / Deficit of Trading Operations,DSA ,Training Expenses,Revenue,160642,2182,07/05/2014,8.75,Nil,Govt Services - Not Elsewhere Classified,GPC,Not yet available
Wakefield MDC,E08000036,30/06/2014,REGENCULT,A,Net (Surplus) / Deficit of Trading Operations,DSA ,Training Expenses,Revenue,160642,2280,07/05/2014,8.75,Nil,Govt Services - Not Elsewhere Classified,GPC,Not yet available
Wakefield MDC,E08000036,30/06/2014,REGENCULT,A,Net (Surplus) / Deficit of Trading Operations,DSA ,Training Expenses,Revenue,160642,2281,07/05/2014,8.75,Nil,Govt Services - Not Elsewhere Classified,GPC,Not yet available
Wakefield MDC,E08000036,30/06/2014,REGENCULT,A,Net (Surplus) / Deficit of Trading Operations,DSA ,Training Expenses,Revenue,160642,2282,07/05/2014,8.75,Nil,Govt Services - Not Elsewhere Classified,GPC,Not yet available
Wakefield MDC,E08000036,30/06/2014,REGENCULT,A,Net (Surplus) / Deficit of Trading Operations,DSA ,Training Expenses,Revenue,160642,2283,07/05/2014,8.75,Nil,Govt Services - Not Elsewhere Classified,GPC,Not yet available
Wakefield MDC,E08000036,30/06/2014,REGENCULT,A,Net (Surplus) / Deficit of Trading Operations,DSA ,Training Expenses,Revenue,160642,2284,07/05/2014,8.75,Nil,Govt Services - Not Elsewhere Classified,GPC,Not yet available
Wakefield MDC,E08000036,30/06/2014,REGENCULT,A,Net (Surplus) / Deficit of Trading Operations,DSA ,Training Expenses,Revenue,160642,2285,07/05/2014,8.75,Nil,Govt Services - Not Elsewhere Classified,GPC,Not yet available
Wakefield MDC,E08000036,30/06/2014,REGENCULT,A,Net (Surplus) / Deficit of Trading Operations,DSA ,Training Expenses,Revenue,160642,2319,07/05/2014,8.75,Nil,Govt Services - Not Elsewhere Classified,GPC,Not yet available
Wakefield MDC,E08000036,30/06/2014,REGENCULT,A,Net (Surplus) / Deficit of Trading Operations,DSA ,Training Expenses,Revenue,160642,2320,07/05/2014,8.75,Nil,Govt Services - Not Elsewhere Classified,GPC,Not yet available
Wakefield MDC,E08000036,30/06/2014,REGENCULT,A,Net (Surplus) / Deficit of Trading Operations,DSA ,Training Expenses,Revenue,160642,2321,07/05/2014,8.75,Nil,Govt Services - Not Elsewhere Classified,GPC,Not yet available
Wakefield MDC,E08000036,30/06/2014,REGENCULT,A,Net (Surplus) / Deficit of Trading Operations,DSA ,Training Expenses,Revenue,160642,2388,07/05/2014,8.75,Nil,Govt Services - Not Elsewhere Classified,GPC,Not yet available
Wakefield MDC,E08000036,30/06/2014,REGENCULT,A,Net (Surplus) / Deficit of Trading Operations,DSA ,Training Expenses,Revenue,160642,2389,07/05/2014,8.75,Nil,Govt Services - Not Elsewhere Classified,GPC,Not yet available
Wakefield MDC,E08000036,30/06/2014,REGENCULT,A,Net (Surplus) / Deficit of Trading Operations,DSA ,Training Expenses,Revenue,160642,2390,07/05/2014,8.75,Nil,Govt Services - Not Elsewhere Classified,GPC,Not yet available
Wakefield MDC,E08000036,30/06/2014,REGENCULT,A,Net (Surplus) / Deficit of Trading Operations,DSA ,Training Expenses,Revenue,160642,2454,07/05/2014,8.75,Nil,Govt Services - Not Elsewhere Classified,GPC,Not yet available
Wakefield MDC,E08000036,30/06/2014,REGENCULT,A,Net (Surplus) / Deficit of Trading Operations,DSA ,Training Expenses,Revenue,160642,2455,07/05/2014,8.75,Nil,Govt Services - Not Elsewhere Classified,GPC,Not yet available
Wakefield MDC,E08000036,30/06/2014,REGENCULT,A,Net (Surplus) / Deficit of Trading Operations,DSA ,Training Expenses,Revenue,160642,2456,07/05/2014,8.75,Nil,Govt Services - Not Elsewhere Classified,GPC,Not yet available
Wakefield MDC,E08000036,30/06/2014,REGENCULT,A,Net (Surplus) / Deficit of Trading Operations,DSA ,Training Expenses,Revenue,160642,2457,07/05/2014,8.75,Nil,Govt Services - Not Elsewhere Classified,GPC,Not yet available
Wakefield MDC,E08000036,30/06/2014,REGENCULT,A,Net (Surplus) / Deficit of Trading Operations,DSA ,Training Expenses,Revenue,160642,2458,07/05/2014,8.75,Nil,Govt Services - Not Elsewhere Classified,GPC,Not yet available
Wakefield MDC,E08000036,30/06/2014,REGENCULT,A,Net (Surplus) / Deficit of Trading Operations,DSA ,Training Expenses,Revenue,160642,2565,07/05/2014,8.75,Nil,Govt Services - Not Elsewhere Classified,GPC,Not yet available
Wakefield MDC,E08000036,30/06/2014,REGENCULT,A,Net (Surplus) / Deficit of Trading Operations,DSA ,Training Expenses,Revenue,160642,2566,07/05/2014,8.75,Nil,Govt Services - Not Elsewhere Classified,GPC,Not yet available
Wakefield MDC,E08000036,30/06/2014,REGENCULT,A,Net (Surplus) / Deficit of Trading Operations,DSA ,Training Expenses,Revenue,160642,2567,07/05/2014,8.75,Nil,Govt Services - Not Elsewhere Classified,GPC,Not yet available
Wakefield MDC,E08000036,30/06/2014,REGENCULT,A,Net (Surplus) / Deficit of Trading Operations,DSA ,Training Expenses,Revenue,160642,2631,07/05/2014,8.75,Nil,Govt Services - Not Elsewhere Classified,GPC,Not yet available
Wakefield MDC,E08000036,30/06/2014,REGENCULT,A,Net (Surplus) / Deficit of Trading Operations,DSA ,Training Expenses,Revenue,160642,2632,07/05/2014,8.75,Nil,Govt Services - Not Elsewhere Classified,GPC,Not yet available
Wakefield MDC,E08000036,30/06/2014,REGENCULT,A,Net (Surplus) / Deficit of Trading Operations,DSA ,Training Expenses,Revenue,160642,2633,07/05/2014,8.75,Nil,Govt Services - Not Elsewhere Classified,GPC,Not yet available
Wakefield MDC,E08000036,30/06/2014,REGENCULT,A,Net (Surplus) / Deficit of Trading Operations,DSA ,Training Expenses,Revenue,160642,2685,07/05/2014,8.75,Nil,Govt Services - Not Elsewhere Classified,GPC,Not yet available
Wakefield MDC,E08000036,30/06/2014,REGENCULT,A,Net (Surplus) / Deficit of Trading Operations,DSA ,Training Expenses,Revenue,160642,2686,07/05/2014,8.75,Nil,Govt Services - Not Elsewhere Classified,GPC,Not yet available
Wakefield MDC,E08000036,30/06/2014,REGENCULT,A,Net (Surplus) / Deficit of Trading Operations,DSA ,Training Expenses,Revenue,160642,2687,07/05/2014,8.75,Nil,Govt Services - Not Elsewhere Classified,GPC,Not yet available
Wakefield MDC,E08000036,30/06/2014,REGENCULT,A,Net (Surplus) / Deficit of Trading Operations,DSA ,Training Expenses,Revenue,160642,2805,07/05/2014,8.75,Nil,Govt Services - Not Elsewhere Classified,GPC,Not yet available
Wakefield MDC,E08000036,30/06/2014,REGENCULT,A,Net (Surplus) / Deficit of Trading Operations,DSA ,Training Expenses,Revenue,160642,2806,07/05/2014,8.75,Nil,Govt Services - Not Elsewhere Classified,GPC,Not yet available
Wakefield MDC,E08000036,30/06/2014,REGENCULT,A,Net (Surplus) / Deficit of Trading Operations,DSA ,Training Expenses,Revenue,160642,2807,07/05/2014,8.75,Nil,Govt Services - Not Elsewhere Classified,GPC,Not yet available
Wakefield MDC,E08000036,30/06/2014,REGENCULT,A,Net (Surplus) / Deficit of Trading Operations,DSA ,Training Expenses,Revenue,160642,2871,07/05/2014,8.75,Nil,Govt Services - Not Elsewhere Classified,GPC,Not yet available
Wakefield MDC,E08000036,30/06/2014,REGENCULT,A,Net (Surplus) / Deficit of Trading Operations,DSA ,Training Expenses,Revenue,160642,2872,07/05/2014,8.75,Nil,Govt Services - Not Elsewhere Classified,GPC,Not yet available
Wakefield MDC,E08000036,30/06/2014,REGENCULT,A,Net (Surplus) / Deficit of Trading Operations,DSA ,Training Expenses,Revenue,160642,2873,07/05/2014,8.75,Nil,Govt Services - Not Elsewhere Classified,GPC,Not yet available
Wakefield MDC,E08000036,30/06/2014,REGENCULT,A,Net (Surplus) / Deficit of Trading Operations,DSA ,Training Expenses,Revenue,160642,2901,07/05/2014,8.75,Nil,Govt Services - Not Elsewhere Classified,GPC,Not yet available
Wakefield MDC,E08000036,30/06/2014,REGENCULT,A,Net (Surplus) / Deficit of Trading Operations,DSA ,Training Expenses,Revenue,160642,2902,07/05/2014,8.75,Nil,Govt Services - Not Elsewhere Classified,GPC,Not yet available
Wakefield MDC,E08000036,30/06/2014,REGENCULT,A,Net (Surplus) / Deficit of Trading Operations,DSA ,Training Expenses,Revenue,160642,2903,07/05/2014,8.75,Nil,Govt Services - Not Elsewhere Classified,GPC,Not yet available
Wakefield MDC,E08000036,30/06/2014,REGENCULT,A,Net (Surplus) / Deficit of Trading Operations,DSA ,Training Expenses,Revenue,160647,122,03/06/2014,8.75,Nil,Govt Services - Not Elsewhere Classified,GPC,Not yet available
Wakefield MDC,E08000036,30/06/2014,REGENCULT,A,Net (Surplus) / Deficit of Trading Operations,DSA ,Training Expenses,Revenue,160647,123,03/06/2014,8.75,Nil,Govt Services - Not Elsewhere Classified,GPC,Not yet available
Wakefield MDC,E08000036,30/06/2014,REGENCULT,A,Net (Surplus) / Deficit of Trading Operations,DSA ,Training Expenses,Revenue,160647,124,03/06/2014,8.75,Nil,Govt Services - Not Elsewhere Classified,GPC,Not yet available
Wakefield MDC,E08000036,30/06/2014,REGENCULT,A,Net (Surplus) / Deficit of Trading Operations,DSA ,Training Expenses,Revenue,160647,681,03/06/2014,8.75,Nil,Govt Services - Not Elsewhere Classified,GPC,Not yet available
Wakefield MDC,E08000036,30/06/2014,REGENCULT,A,Net (Surplus) / Deficit of Trading Operations,DSA ,Training Expenses,Revenue,160647,682,03/06/2014,8.75,Nil,Govt Services - Not Elsewhere Classified,GPC,Not yet available
Wakefield MDC,E08000036,30/06/2014,REGENCULT,A,Net (Surplus) / Deficit of Trading Operations,DSA ,Training Expenses,Revenue,160647,683,03/06/2014,8.75,Nil,Govt Services - Not Elsewhere Classified,GPC,Not yet available
Wakefield MDC,E08000036,30/06/2014,REGENCULT,A,Net (Surplus) / Deficit of Trading Operations,DSA ,Training Expenses,Revenue,160647,726,03/06/2014,8.75,Nil,Govt Services - Not Elsewhere Classified,GPC,Not yet available
Wakefield MDC,E08000036,30/06/2014,REGENCULT,A,Net (Surplus) / Deficit of Trading Operations,DSA ,Training Expenses,Revenue,160647,727,03/06/2014,8.75,Nil,Govt Services - Not Elsewhere Classified,GPC,Not yet available
Wakefield MDC,E08000036,30/06/2014,REGENCULT,A,Net (Surplus) / Deficit of Trading Operations,DSA ,Training Expenses,Revenue,160647,728,03/06/2014,8.75,Nil,Govt Services - Not Elsewhere Classified,GPC,Not yet available
Wakefield MDC,E08000036,30/06/2014,REGENCULT,A,Net (Surplus) / Deficit of Trading Operations,DSA ,Training Expenses,Revenue,160647,1036,03/06/2014,8.75,Nil,Govt Services - Not Elsewhere Classified,GPC,Not yet available
Wakefield MDC,E08000036,30/06/2014,REGENCULT,A,Net (Surplus) / Deficit of Trading Operations,DSA ,Training Expenses,Revenue,160647,1037,03/06/2014,8.75,Nil,Govt Services - Not Elsewhere Classified,GPC,Not yet available
Wakefield MDC,E08000036,30/06/2014,REGENCULT,A,Net (Surplus) / Deficit of Trading Operations,DSA ,Training Expenses,Revenue,160647,1038,03/06/2014,8.75,Nil,Govt Services - Not Elsewhere Classified,GPC,Not yet available
Wakefield MDC,E08000036,30/06/2014,REGENCULT,A,Net (Surplus) / Deficit of Trading Operations,DSA ,Training Expenses,Revenue,160647,1686,03/06/2014,8.75,Nil,Govt Services - Not Elsewhere Classified,GPC,Not yet available
Wakefield MDC,E08000036,30/06/2014,REGENCULT,A,Net (Surplus) / Deficit of Trading Operations,DSA ,Training Expenses,Revenue,160647,1687,03/06/2014,8.75,Nil,Govt Services - Not Elsewhere Classified,GPC,Not yet available
Wakefield MDC,E08000036,30/06/2014,REGENCULT,A,Net (Surplus) / Deficit of Trading Operations,DSA ,Training Expenses,Revenue,160647,1688,03/06/2014,8.75,Nil,Govt Services - Not Elsewhere Classified,GPC,Not yet available
Wakefield MDC,E08000036,30/06/2014,REGENCULT,A,Net (Surplus) / Deficit of Trading Operations,DSA ,Training Expenses,Revenue,160647,1796,03/06/2014,8.75,Nil,Govt Services - Not Elsewhere Classified,GPC,Not yet available
Wakefield MDC,E08000036,30/06/2014,REGENCULT,A,Net (Surplus) / Deficit of Trading Operations,DSA ,Training Expenses,Revenue,160647,1797,03/06/2014,8.75,Nil,Govt Services - Not Elsewhere Classified,GPC,Not yet available
Wakefield MDC,E08000036,30/06/2014,REGENCULT,A,Net (Surplus) / Deficit of Trading Operations,DSA ,Training Expenses,Revenue,160647,1798,03/06/2014,8.75,Nil,Govt Services - Not Elsewhere Classified,GPC,Not yet available
Wakefield MDC,E08000036,30/06/2014,REGENCULT,A,Net (Surplus) / Deficit of Trading Operations,DSA ,Training Expenses,Revenue,160647,2292,03/06/2014,8.75,Nil,Govt Services - Not Elsewhere Classified,GPC,Not yet available
Wakefield MDC,E08000036,30/06/2014,REGENCULT,A,Net (Surplus) / Deficit of Trading Operations,DSA ,Training Expenses,Revenue,160647,2293,03/06/2014,8.75,Nil,Govt Services - Not Elsewhere Classified,GPC,Not yet available
Wakefield MDC,E08000036,30/06/2014,REGENCULT,A,Net (Surplus) / Deficit of Trading Operations,DSA ,Training Expenses,Revenue,160647,2294,03/06/2014,8.75,Nil,Govt Services - Not Elsewhere Classified,GPC,Not yet available
Wakefield MDC,E08000036,30/06/2014,REGENCULT,A,Net (Surplus) / Deficit of Trading Operations,DSA ,Training Expenses,Revenue,160647,2495,03/06/2014,8.75,Nil,Govt Services - Not Elsewhere Classified,GPC,Not yet available
Wakefield MDC,E08000036,30/06/2014,REGENCULT,A,Net (Surplus) / Deficit of Trading Operations,DSA ,Training Expenses,Revenue,160647,2496,03/06/2014,8.75,Nil,Govt Services - Not Elsewhere Classified,GPC,Not yet available
Wakefield MDC,E08000036,30/06/2014,REGENCULT,A,Net (Surplus) / Deficit of Trading Operations,DSA ,Training Expenses,Revenue,160647,2497,03/06/2014,8.75,Nil,Govt Services - Not Elsewhere Classified,GPC,Not yet available
Wakefield MDC,E08000036,30/06/2014,REGENCULT,A,Net (Surplus) / Deficit of Trading Operations,DSA ,Training Expenses,Revenue,160647,2912,03/06/2014,8.75,Nil,Govt Services - Not Elsewhere Classified,GPC,Not yet available
Wakefield MDC,E08000036,30/06/2014,REGENCULT,A,Net (Surplus) / Deficit of Trading Operations,DSA ,Training Expenses,Revenue,160647,2913,03/06/2014,8.75,Nil,Govt Services - Not Elsewhere Classified,GPC,Not yet available
Wakefield MDC,E08000036,30/06/2014,REGENCULT,A,Net (Surplus) / Deficit of Trading Operations,DSA ,Training Expenses,Revenue,160647,2914,03/06/2014,8.75,Nil,Govt Services - Not Elsewhere Classified,GPC,Not yet available
Wakefield MDC,E08000036,30/06/2014,REGENCULT,A,Net (Surplus) / Deficit of Trading Operations,DSA ,Training Expenses,Revenue,160647,3263,03/06/2014,8.75,Nil,Govt Services - Not Elsewhere Classified,GPC,Not yet available
Wakefield MDC,E08000036,30/06/2014,REGENCULT,A,Net (Surplus) / Deficit of Trading Operations,DSA ,Training Expenses,Revenue,160647,3264,03/06/2014,8.75,Nil,Govt Services - Not Elsewhere Classified,GPC,Not yet available
Wakefield MDC,E08000036,30/06/2014,REGENCULT,A,Net (Surplus) / Deficit of Trading Operations,DSA ,Training Expenses,Revenue,160647,3265,03/06/2014,8.75,Nil,Govt Services - Not Elsewhere Classified,GPC,Not yet available
Wakefield MDC,E08000036,30/06/2014,REGENCULT,A,Net (Surplus) / Deficit of Trading Operations,DSA ,Training Expenses,Revenue,160647,5325,03/06/2014,8.75,Nil,Govt Services - Not Elsewhere Classified,GPC,Not yet available
Wakefield MDC,E08000036,30/06/2014,REGENCULT,A,Net (Surplus) / Deficit of Trading Operations,DSA ,Training Expenses,Revenue,160647,5326,03/06/2014,8.75,Nil,Govt Services - Not Elsewhere Classified,GPC,Not yet available
Wakefield MDC,E08000036,30/06/2014,REGENCULT,A,Net (Surplus) / Deficit of Trading Operations,DSA ,Training Expenses,Revenue,160647,5327,03/06/2014,8.75,Nil,Govt Services - Not Elsewhere Classified,GPC,Not yet available
Wakefield MDC,E08000036,30/06/2014,REGENCULT,A,Net (Surplus) / Deficit of Trading Operations,DSA ,Training Expenses,Revenue,160647,6051,03/06/2014,8.75,Nil,Govt Services - Not Elsewhere Classified,GPC,Not yet available
Wakefield MDC,E08000036,30/06/2014,REGENCULT,A,Net (Surplus) / Deficit of Trading Operations,DSA ,Training Expenses,Revenue,160647,6052,03/06/2014,8.75,Nil,Govt Services - Not Elsewhere Classified,GPC,Not yet available
Wakefield MDC,E08000036,30/06/2014,REGENCULT,A,Net (Surplus) / Deficit of Trading Operations,DSA ,Training Expenses,Revenue,160647,6053,03/06/2014,8.75,Nil,Govt Services - Not Elsewhere Classified,GPC,Not yet available
Wakefield MDC,E08000036,30/06/2014,REGENCULT,A,Net (Surplus) / Deficit of Trading Operations,DSA ,Training Expenses,Revenue,160647,6114,03/06/2014,8.75,Nil,Govt Services - Not Elsewhere Classified,GPC,Not yet available
Wakefield MDC,E08000036,30/06/2014,REGENCULT,A,Net (Surplus) / Deficit of Trading Operations,DSA ,Training Expenses,Revenue,160647,6115,03/06/2014,8.75,Nil,Govt Services - Not Elsewhere Classified,GPC,Not yet available
Wakefield MDC,E08000036,30/06/2014,REGENCULT,A,Net (Surplus) / Deficit of Trading Operations,DSA ,Training Expenses,Revenue,160647,6116,03/06/2014,8.75,Nil,Govt Services - Not Elsewhere Classified,GPC,Not yet available
Wakefield MDC,E08000036,30/06/2014,REGENCULT,A,Net (Surplus) / Deficit of Trading Operations,DSA ,Training Expenses,Revenue,160647,6345,03/06/2014,8.75,Nil,Govt Services - Not Elsewhere Classified,GPC,Not yet available
Wakefield MDC,E08000036,30/06/2014,REGENCULT,A,Net (Surplus) / Deficit of Trading Operations,DSA ,Training Expenses,Revenue,160647,6346,03/06/2014,8.75,Nil,Govt Services - Not Elsewhere Classified,GPC,Not yet available
Wakefield MDC,E08000036,30/06/2014,REGENCULT,A,Net (Surplus) / Deficit of Trading Operations,DSA ,Training Expenses,Revenue,160647,6347,03/06/2014,8.75,Nil,Govt Services - Not Elsewhere Classified,GPC,Not yet available
Wakefield MDC,E08000036,30/06/2014,REGENCULT,A,Net (Surplus) / Deficit of Trading Operations,DSA ,Training Expenses,Revenue,160647,6369,03/06/2014,8.75,Nil,Govt Services - Not Elsewhere Classified,GPC,Not yet available
Wakefield MDC,E08000036,30/06/2014,REGENCULT,A,Net (Surplus) / Deficit of Trading Operations,DSA ,Training Expenses,Revenue,160647,6370,03/06/2014,8.75,Nil,Govt Services - Not Elsewhere Classified,GPC,Not yet available
Wakefield MDC,E08000036,30/06/2014,REGENCULT,A,Net (Surplus) / Deficit of Trading Operations,DSA ,Training Expenses,Revenue,160647,6371,03/06/2014,8.75,Nil,Govt Services - Not Elsewhere Classified,GPC,Not yet available
Wakefield MDC,E08000036,30/06/2014,REGENCULT,A,Net (Surplus) / Deficit of Trading Operations,DSA ,Training Expenses,Revenue,160647,7826,03/06/2014,8.75,Nil,Govt Services - Not Elsewhere Classified,GPC,Not yet available
Wakefield MDC,E08000036,30/06/2014,REGENCULT,A,Net (Surplus) / Deficit of Trading Operations,DSA ,Training Expenses,Revenue,160647,7827,03/06/2014,8.75,Nil,Govt Services - Not Elsewhere Classified,GPC,Not yet available
Wakefield MDC,E08000036,30/06/2014,REGENCULT,A,Net (Surplus) / Deficit of Trading Operations,DSA ,Training Expenses,Revenue,160647,7828,03/06/2014,8.75,Nil,Govt Services - Not Elsewhere Classified,GPC,Not yet available
Wakefield MDC,E08000036,30/06/2014,REGENCULT,A,Net (Surplus) / Deficit of Trading Operations,DSA ,Training Expenses,Revenue,160647,7958,03/06/2014,8.75,Nil,Govt Services - Not Elsewhere Classified,GPC,Not yet available
Wakefield MDC,E08000036,30/06/2014,REGENCULT,A,Net (Surplus) / Deficit of Trading Operations,DSA ,Training Expenses,Revenue,160647,7959,03/06/2014,8.75,Nil,Govt Services - Not Elsewhere Classified,GPC,Not yet available
Wakefield MDC,E08000036,30/06/2014,REGENCULT,A,Net (Surplus) / Deficit of Trading Operations,DSA ,Training Expenses,Revenue,160647,7960,03/06/2014,8.75,Nil,Govt Services - Not Elsewhere Classified,GPC,Not yet available
Wakefield MDC,E08000036,30/06/2014,REGENCULT,A,Net (Surplus) / Deficit of Trading Operations,DSA ,Training Expenses,Revenue,160647,9674,03/06/2014,8.75,Nil,Govt Services - Not Elsewhere Classified,GPC,Not yet available
Wakefield MDC,E08000036,30/06/2014,REGENCULT,A,Net (Surplus) / Deficit of Trading Operations,DSA ,Training Expenses,Revenue,160647,9675,03/06/2014,8.75,Nil,Govt Services - Not Elsewhere Classified,GPC,Not yet available
Wakefield MDC,E08000036,30/06/2014,REGENCULT,A,Net (Surplus) / Deficit of Trading Operations,DSA ,Training Expenses,Revenue,160647,9676,03/06/2014,8.75,Nil,Govt Services - Not Elsewhere Classified,GPC,Not yet available
Wakefield MDC,E08000036,30/06/2014,REGENCULT,A,Net (Surplus) / Deficit of Trading Operations,DSA ,Training Expenses,Revenue,160647,9728,03/06/2014,8.75,Nil,Govt Services - Not Elsewhere Classified,GPC,Not yet available
Wakefield MDC,E08000036,30/06/2014,REGENCULT,A,Net (Surplus) / Deficit of Trading Operations,DSA ,Training Expenses,Revenue,160647,9729,03/06/2014,8.75,Nil,Govt Services - Not Elsewhere Classified,GPC,Not yet available
Wakefield MDC,E08000036,30/06/2014,REGENCULT,A,Net (Surplus) / Deficit of Trading Operations,DSA ,Training Expenses,Revenue,160647,9730,03/06/2014,8.75,Nil,Govt Services - Not Elsewhere Classified,GPC,Not yet available
Wakefield MDC,E08000036,30/06/2014,REGENCULT,A,Net (Surplus) / Deficit of Trading Operations,DSA ,Training Expenses,Revenue,160647,9836,03/06/2014,8.75,Nil,Govt Services - Not Elsewhere Classified,GPC,Not yet available
Wakefield MDC,E08000036,30/06/2014,REGENCULT,A,Net (Surplus) / Deficit of Trading Operations,DSA ,Training Expenses,Revenue,160647,9837,03/06/2014,8.75,Nil,Govt Services - Not Elsewhere Classified,GPC,Not yet available
Wakefield MDC,E08000036,30/06/2014,REGENCULT,A,Net (Surplus) / Deficit of Trading Operations,DSA ,Training Expenses,Revenue,160647,9838,03/06/2014,8.75,Nil,Govt Services - Not Elsewhere Classified,GPC,Not yet available
Wakefield MDC,E08000036,30/06/2014,REGENCULT,A,Net (Surplus) / Deficit of Trading Operations,DSA ,Training Expenses,Revenue,160647,10079,03/06/2014,8.75,Nil,Govt Services - Not Elsewhere Classified,GPC,Not yet available
Wakefield MDC,E08000036,30/06/2014,REGENCULT,A,Net (Surplus) / Deficit of Trading Operations,DSA ,Training Expenses,Revenue,160647,10080,03/06/2014,8.75,Nil,Govt Services - Not Elsewhere Classified,GPC,Not yet available
Wakefield MDC,E08000036,30/06/2014,REGENCULT,A,Net (Surplus) / Deficit of Trading Operations,DSA ,Training Expenses,Revenue,160647,10081,03/06/2014,8.75,Nil,Govt Services - Not Elsewhere Classified,GPC,Not yet available
Wakefield MDC,E08000036,30/06/2014,REGENCULT,A,Net (Surplus) / Deficit of Trading Operations,DSA ,Training Expenses,Revenue,160650,68,16/06/2014,8.75,Nil,Govt Services - Not Elsewhere Classified,GPC,Not yet available
Wakefield MDC,E08000036,30/06/2014,REGENCULT,A,Net (Surplus) / Deficit of Trading Operations,DSA ,Training Expenses,Revenue,160650,69,16/06/2014,8.75,Nil,Govt Services - Not Elsewhere Classified,GPC,Not yet available
Wakefield MDC,E08000036,30/06/2014,REGENCULT,A,Net (Surplus) / Deficit of Trading Operations,DSA ,Training Expenses,Revenue,160650,70,16/06/2014,8.75,Nil,Govt Services - Not Elsewhere Classified,GPC,Not yet available
Wakefield MDC,E08000036,30/06/2014,REGENCULT,A,Net (Surplus) / Deficit of Trading Operations,DSA ,Training Expenses,Revenue,160650,113,16/06/2014,8.75,Nil,Govt Services - Not Elsewhere Classified,GPC,Not yet available
Wakefield MDC,E08000036,30/06/2014,REGENCULT,A,Net (Surplus) / Deficit of Trading Operations,DSA ,Training Expenses,Revenue,160650,114,16/06/2014,8.75,Nil,Govt Services - Not Elsewhere Classified,GPC,Not yet available
Wakefield MDC,E08000036,30/06/2014,REGENCULT,A,Net (Surplus) / Deficit of Trading Operations,DSA ,Training Expenses,Revenue,160650,115,16/06/2014,8.75,Nil,Govt Services - Not Elsewhere Classified,GPC,Not yet available
Wakefield MDC,E08000036,30/06/2014,REGENCULT,A,Net (Surplus) / Deficit of Trading Operations,DSA ,Training Expenses,Revenue,160650,182,16/06/2014,8.75,Nil,Govt Services - Not Elsewhere Classified,GPC,Not yet available
Wakefield MDC,E08000036,30/06/2014,REGENCULT,A,Net (Surplus) / Deficit of Trading Operations,DSA ,Training Expenses,Revenue,160650,183,16/06/2014,8.75,Nil,Govt Services - Not Elsewhere Classified,GPC,Not yet available
Wakefield MDC,E08000036,30/06/2014,REGENCULT,A,Net (Surplus) / Deficit of Trading Operations,DSA ,Training Expenses,Revenue,160650,184,16/06/2014,8.75,Nil,Govt Services - Not Elsewhere Classified,GPC,Not yet available
Wakefield MDC,E08000036,30/06/2014,REGENCULT,A,Net (Surplus) / Deficit of Trading Operations,DSA ,Training Expenses,Revenue,160650,206,16/06/2014,8.75,Nil,Govt Services - Not Elsewhere Classified,GPC,Not yet available
Wakefield MDC,E08000036,30/06/2014,REGENCULT,A,Net (Surplus) / Deficit of Trading Operations,DSA ,Training Expenses,Revenue,160650,207,16/06/2014,8.75,Nil,Govt Services - Not Elsewhere Classified,GPC,Not yet available
Wakefield MDC,E08000036,30/06/2014,REGENCULT,A,Net (Surplus) / Deficit of Trading Operations,DSA ,Training Expenses,Revenue,160650,208,16/06/2014,8.75,Nil,Govt Services - Not Elsewhere Classified,GPC,Not yet available
Wakefield MDC,E08000036,30/06/2014,REGENCULT,A,Net (Surplus) / Deficit of Trading Operations,DSA ,Training Expenses,Revenue,160650,296,16/06/2014,8.75,Nil,Govt Services - Not Elsewhere Classified,GPC,Not yet available
Wakefield MDC,E08000036,30/06/2014,REGENCULT,A,Net (Surplus) / Deficit of Trading Operations,DSA ,Training Expenses,Revenue,160650,297,16/06/2014,8.75,Nil,Govt Services - Not Elsewhere Classified,GPC,Not yet available
Wakefield MDC,E08000036,30/06/2014,REGENCULT,A,Net (Surplus) / Deficit of Trading Operations,DSA ,Training Expenses,Revenue,160650,341,16/06/2014,8.75,Nil,Govt Services - Not Elsewhere Classified,GPC,Not yet available
Wakefield MDC,E08000036,30/06/2014,REGENCULT,A,Net (Surplus) / Deficit of Trading Operations,DSA ,Training Expenses,Revenue,160650,342,16/06/2014,8.75,Nil,Govt Services - Not Elsewhere Classified,GPC,Not yet available
Wakefield MDC,E08000036,30/06/2014,REGENCULT,A,Net (Surplus) / Deficit of Trading Operations,DSA ,Training Expenses,Revenue,160650,343,16/06/2014,8.75,Nil,Govt Services - Not Elsewhere Classified,GPC,Not yet available
Wakefield MDC,E08000036,30/06/2014,REGENCULT,A,Net (Surplus) / Deficit of Trading Operations,DSA ,Training Expenses,Revenue,160650,410,16/06/2014,8.75,Nil,Govt Services - Not Elsewhere Classified,GPC,Not yet available
Wakefield MDC,E08000036,30/06/2014,REGENCULT,A,Net (Surplus) / Deficit of Trading Operations,DSA ,Training Expenses,Revenue,160650,411,16/06/2014,8.75,Nil,Govt Services - Not Elsewhere Classified,GPC,Not yet available
Wakefield MDC,E08000036,30/06/2014,REGENCULT,A,Net (Surplus) / Deficit of Trading Operations,DSA ,Training Expenses,Revenue,160650,412,16/06/2014,8.75,Nil,Govt Services - Not Elsewhere Classified,GPC,Not yet available
Wakefield MDC,E08000036,30/06/2014,REGENCULT,A,Net (Surplus) / Deficit of Trading Operations,DSA ,Training Expenses,Revenue,160650,464,16/06/2014,8.75,Nil,Govt Services - Not Elsewhere Classified,GPC,Not yet available
Wakefield MDC,E08000036,30/06/2014,REGENCULT,A,Net (Surplus) / Deficit of Trading Operations,DSA ,Training Expenses,Revenue,160650,465,16/06/2014,8.75,Nil,Govt Services - Not Elsewhere Classified,GPC,Not yet available
Wakefield MDC,E08000036,30/06/2014,REGENCULT,A,Net (Surplus) / Deficit of Trading Operations,DSA ,Training Expenses,Revenue,160650,466,16/06/2014,8.75,Nil,Govt Services - Not Elsewhere Classified,GPC,Not yet available
Wakefield MDC,E08000036,30/06/2014,REGENCULT,A,Net (Surplus) / Deficit of Trading Operations,DSA ,Training Expenses,Revenue,160650,524,16/06/2014,8.75,Nil,Govt Services - Not Elsewhere Classified,GPC,Not yet available
Wakefield MDC,E08000036,30/06/2014,REGENCULT,A,Net (Surplus) / Deficit of Trading Operations,DSA ,Training Expenses,Revenue,160650,525,16/06/2014,8.75,Nil,Govt Services - Not Elsewhere Classified,GPC,Not yet available
Wakefield MDC,E08000036,30/06/2014,REGENCULT,A,Net (Surplus) / Deficit of Trading Operations,DSA ,Training Expenses,Revenue,160650,526,16/06/2014,8.75,Nil,Govt Services - Not Elsewhere Classified,GPC,Not yet available
Wakefield MDC,E08000036,30/06/2014,REGENCULT,A,Net (Surplus) / Deficit of Trading Operations,DSA ,Training Expenses,Revenue,160650,548,16/06/2014,8.75,Nil,Govt Services - Not Elsewhere Classified,GPC,Not yet available
Wakefield MDC,E08000036,30/06/2014,REGENCULT,A,Net (Surplus) / Deficit of Trading Operations,DSA ,Training Expenses,Revenue,160650,549,16/06/2014,8.75,Nil,Govt Services - Not Elsewhere Classified,GPC,Not yet available
Wakefield MDC,E08000036,30/06/2014,REGENCULT,A,Net (Surplus) / Deficit of Trading Operations,DSA ,Training Expenses,Revenue,160650,550,16/06/2014,8.75,Nil,Govt Services - Not Elsewhere Classified,GPC,Not yet available
Wakefield MDC,E08000036,30/06/2014,REGENCULT,A,Net (Surplus) / Deficit of Trading Operations,DSA ,Training Expenses,Revenue,160650,636,16/06/2014,8.75,Nil,Govt Services - Not Elsewhere Classified,GPC,Not yet available
Wakefield MDC,E08000036,30/06/2014,REGENCULT,A,Net (Surplus) / Deficit of Trading Operations,DSA ,Training Expenses,Revenue,160650,637,16/06/2014,8.75,Nil,Govt Services - Not Elsewhere Classified,GPC,Not yet available
Wakefield MDC,E08000036,30/06/2014,REGENCULT,A,Net (Surplus) / Deficit of Trading Operations,DSA ,Training Expenses,Revenue,160650,638,16/06/2014,8.75,Nil,Govt Services - Not Elsewhere Classified,GPC,Not yet available
Wakefield MDC,E08000036,30/06/2014,REGENCULT,A,Net (Surplus) / Deficit of Trading Operations,DSA ,Training Expenses,Revenue,160650,675,16/06/2014,8.75,Nil,Govt Services - Not Elsewhere Classified,GPC,Not yet available
Wakefield MDC,E08000036,30/06/2014,REGENCULT,A,Net (Surplus) / Deficit of Trading Operations,DSA ,Training Expenses,Revenue,160650,1600,16/06/2014,8.75,Nil,Govt Services - Not Elsewhere Classified,GPC,Not yet available
Wakefield MDC,E08000036,30/06/2014,REGENCULT,A,Net (Surplus) / Deficit of Trading Operations,DSA ,Training Expenses,Revenue,160650,1601,16/06/2014,8.75,Nil,Govt Services - Not Elsewhere Classified,GPC,Not yet available
Wakefield MDC,E08000036,30/06/2014,REGENCULT,A,Net (Surplus) / Deficit of Trading Operations,DSA ,Training Expenses,Revenue,160650,1686,16/06/2014,8.75,Nil,Govt Services - Not Elsewhere Classified,GPC,Not yet available
Wakefield MDC,E08000036,30/06/2014,REGENCULT,A,Net (Surplus) / Deficit of Trading Operations,DSA ,Training Expenses,Revenue,160650,1687,16/06/2014,8.75,Nil,Govt Services - Not Elsewhere Classified,GPC,Not yet available
Wakefield MDC,E08000036,30/06/2014,REGENCULT,A,Net (Surplus) / Deficit of Trading Operations,DSA ,Training Expenses,Revenue,160650,1688,16/06/2014,8.75,Nil,Govt Services - Not Elsewhere Classified,GPC,Not yet available
Wakefield MDC,E08000036,30/06/2014,REGENCULT,A,Net (Surplus) / Deficit of Trading Operations,DSA ,Training Expenses,Revenue,160650,1722,16/06/2014,8.75,Nil,Govt Services - Not Elsewhere Classified,GPC,Not yet available
Wakefield MDC,E08000036,30/06/2014,REGENCULT,A,Net (Surplus) / Deficit of Trading Operations,DSA ,Training Expenses,Revenue,160650,1723,16/06/2014,8.75,Nil,Govt Services - Not Elsewhere Classified,GPC,Not yet available
Wakefield MDC,E08000036,30/06/2014,REGENCULT,A,Net (Surplus) / Deficit of Trading Operations,DSA ,Training Expenses,Revenue,160650,1724,16/06/2014,8.75,Nil,Govt Services - Not Elsewhere Classified,GPC,Not yet available
Wakefield MDC,E08000036,30/06/2014,REGENCULT,A,Net (Surplus) / Deficit of Trading Operations,DSA ,Training Expenses,Revenue,160650,1797,16/06/2014,8.75,Nil,Govt Services - Not Elsewhere Classified,GPC,Not yet available
Wakefield MDC,E08000036,30/06/2014,REGENCULT,A,Net (Surplus) / Deficit of Trading Operations,DSA ,Training Expenses,Revenue,160650,1798,16/06/2014,8.75,Nil,Govt Services - Not Elsewhere Classified,GPC,Not yet available
Wakefield MDC,E08000036,30/06/2014,REGENCULT,A,Net (Surplus) / Deficit of Trading Operations,DSA ,Training Expenses,Revenue,160650,1799,16/06/2014,8.75,Nil,Govt Services - Not Elsewhere Classified,GPC,Not yet available
Wakefield MDC,E08000036,30/06/2014,REGENCULT,A,Net (Surplus) / Deficit of Trading Operations,DSA ,Training Expenses,Revenue,160650,1869,16/06/2014,8.75,Nil,Govt Services - Not Elsewhere Classified,GPC,Not yet available
Wakefield MDC,E08000036,30/06/2014,REGENCULT,A,Net (Surplus) / Deficit of Trading Operations,DSA ,Training Expenses,Revenue,160650,1870,16/06/2014,8.75,Nil,Govt Services - Not Elsewhere Classified,GPC,Not yet available
Wakefield MDC,E08000036,30/06/2014,REGENCULT,A,Net (Surplus) / Deficit of Trading Operations,DSA ,Training Expenses,Revenue,160650,1871,16/06/2014,8.75,Nil,Govt Services - Not Elsewhere Classified,GPC,Not yet available
Wakefield MDC,E08000036,30/06/2014,REGENCULT,A,Net (Surplus) / Deficit of Trading Operations,DSA ,Training Expenses,Revenue,160650,1923,16/06/2014,8.75,Nil,Govt Services - Not Elsewhere Classified,GPC,Not yet available
Wakefield MDC,E08000036,30/06/2014,REGENCULT,A,Net (Surplus) / Deficit of Trading Operations,DSA ,Training Expenses,Revenue,160650,1924,16/06/2014,8.75,Nil,Govt Services - Not Elsewhere Classified,GPC,Not yet available
Wakefield MDC,E08000036,30/06/2014,REGENCULT,A,Net (Surplus) / Deficit of Trading Operations,DSA ,Training Expenses,Revenue,160650,1925,16/06/2014,8.75,Nil,Govt Services - Not Elsewhere Classified,GPC,Not yet available
Wakefield MDC,E08000036,30/06/2014,REGENCULT,A,Net (Surplus) / Deficit of Trading Operations,JAUPT,Training Expenses,Revenue,160647,9247,03/06/2014,252.00,Nil,Govt Services - Not Elsewhere Classified,GPC,Not yet available
Wakefield MDC,E08000036,30/06/2014,REGENCULT,A,Net (Surplus) / Deficit of Trading Operations,JAUPT,Training Expenses,Revenue,160650,298,16/06/2014,252.00,Nil,Govt Services - Not Elsewhere Classified,GPC,Not yet available
Wakefield MDC,E08000036,30/06/2014,REGENCULT,L,Cultural and Related Services,SWIMMING,Training Expenses,Revenue,160659,766,02/07/2014,566.67,Nil,Membership Organisations - Not Elsewhere Classified,GPC,Not yet available
Wakefield MDC,E08000036,30/06/2014,REGENCULT,M,Environmental and Regulatory Services,CIEH,Training Expenses,Revenue,160643,3882,12/05/2014,99.00,Nil,Membership Organisations - Not Elsewhere Classified,GPC,Not yet available
Wakefield MDC,E08000036,30/06/2014,REGENCULT,M,Environmental and Regulatory Services,HPA,Training Expenses,Revenue,160640,152,25/04/2014,75.00,Nil,Misc Publishing And Printing,GPC,Not yet available
Wakefield MDC,E08000036,30/06/2014,REGENCULT,M,Environmental and Regulatory Services,IOSH,Training Expenses,Revenue,160656,523,26/06/2014,135.00,Nil,Membership Organisations - Not Elsewhere Classified,GPC,Not yet available
Wakefield MDC,E08000036,30/06/2014,CHILDYOU,4,Children's and Education Services,GET LICENSED,Training Expenses,Revenue,160642,1151,07/05/2014,37.50,Nil,Membership Organisations - Not Elsewhere Classified,GPC,Not yet available
Wakefield MDC,E08000036,30/06/2014,CHILDYOU,4,Children's and Education Services,TRAINLINE,Training Expenses,Revenue,160640,47,25/04/2014,7.45,Nil,Passenger Railways,GPC,Not yet available
Wakefield MDC,E08000036,30/06/2014,CHILDYOU,4,Children's and Education Services,CHARTERED MNGMENT,Training Expenses,Revenue,160651,935,18/06/2014,35.00,Nil,Direct Marketing - Continuity/Subscription Merchant,GPC,Not yet available
Wakefield MDC,E08000036,30/06/2014,CHILDYOU,4,Children's and Education Services,FOCUS PROJECT MGMNT,Training Expenses,Revenue,160642,2003,07/05/2014,281.87,Nil,Membership Organisations - Not Elsewhere Classified,GPC,Not yet available
Wakefield MDC,E08000036,30/06/2014,CHILDYOU,4,Children's and Education Services,FOCUS PROJECT MGMNT,Training Expenses,Revenue,160644,986,14/05/2014,281.87,Nil,Membership Organisations - Not Elsewhere Classified,GPC,Not yet available
Wakefield MDC,E08000036,30/06/2014,BUSINESS,A,Net (Surplus) / Deficit of Trading Operations,WAKEFIELD COLLEGE,Training Expenses,Revenue,160647,3027,03/06/2014,45.00,Nil,Colleges/Unis/Junior Colleges/Professional Schools,GPC,Not yet available
Wakefield MDC,E08000036,30/06/2014,BUSINESS,A,Net (Surplus) / Deficit of Trading Operations,WAKEFIELD COLLEGE,Training Expenses,Revenue,160656,1148,26/06/2014,43.00,Nil,Colleges/Unis/Junior Colleges/Professional Schools,GPC,Not yet available
Wakefield MDC,E08000036,30/06/2014,BUSINESS,A,Net (Surplus) / Deficit of Trading Operations,WAKEFIELD COLLEGE,Training Expenses,Revenue,160658,17,30/06/2014,45.00,Nil,Colleges/Unis/Junior Colleges/Professional Schools,GPC,Not yet available
Wakefield MDC,E08000036,30/06/2014,BUSINESS,A,Net (Surplus) / Deficit of Trading Operations,WAKEFIELD COLLEGE ,Training Expenses,Revenue,160647,9211,03/06/2014,35.83,Nil,Membership Organisations - Not Elsewhere Classified,GPC,Not yet available
Wakefield MDC,E08000036,30/06/2014,BUSINESS,A,Net (Surplus) / Deficit of Trading Operations,LOMAX TRAINING SERVICE,Training Expenses,Revenue,160646,,15/05/2014,"2,400.00",Nil,Membership Organisations - Not Elsewhere Classified,GPC,Not yet available
Wakefield MDC,E08000036,30/06/2014,BUSINESS,A,Net (Surplus) / Deficit of Trading Operations,CONSTRUCTION SC LTD ,Training Expenses,Revenue,160639,70,14/04/2014,295.00,Nil,Lumber/Building Materials Stores,GPC,Not yet available
Wakefield MDC,E08000036,30/06/2014,CHILDYOU,4,Children's and Education Services,AMAZON,Repairs - Reactive,Revenue,160643,2572,12/05/2014,26.72,Nil,Book Stores,GPC,Not yet available
Wakefield MDC,E08000036,30/06/2014,CHILDYOU,4,Children's and Education Services,AMAZON,Repairs - Reactive,Revenue,160643,2573,12/05/2014,17.04,Nil,Book Stores,GPC,Not yet available
Wakefield MDC,E08000036,30/06/2014,CHILDYOU,4,Children's and Education Services,AMAZON,Repairs - Reactive,Revenue,160643,2574,12/05/2014,11.53,Nil,Book Stores,GPC,Not yet available
Wakefield MDC,E08000036,30/06/2014,CHILDYOU,4,Children's and Education Services,AMAZON,Repairs - Reactive,Revenue,160648,2139,09/06/2014,11.44,Nil,Book Stores,GPC,Not yet available
Wakefield MDC,E08000036,30/06/2014,CHILDYOU,4,Children's and Education Services,AMAZON,Repairs - Reactive,Revenue,160648,2239,09/06/2014,17.16,Nil,Book Stores,GPC,Not yet available
Wakefield MDC,E08000036,30/06/2014,CHILDYOU,4,Children's and Education Services,B & Q ,Repairs - Reactive,Revenue,160655,30,25/06/2014,16.67,Nil,Lumber/Building Materials Stores,GPC,Not yet available
Wakefield MDC,E08000036,30/06/2014,CHILDYOU,4,Children's and Education Services,ABODE WINDOW FILMS,Repairs - Reactive,Revenue,160647,2333,03/06/2014,39.17,Nil,Lumber/Building Materials Stores,GPC,Not yet available
Wakefield MDC,E08000036,30/06/2014,CHILDYOU,4,Children's and Education Services,ARCHIDEC LIMITED ,Repairs - Reactive,Revenue,160658,454,30/06/2014,28.63,Nil,Lumber/Building Materials Stores,GPC,Not yet available
Wakefield MDC,E08000036,30/06/2014,CHILDYOU,4,Children's and Education Services,ARCHIDEC LIMITED,Repairs - Reactive,Revenue,160648,1034,09/06/2014,190.99,Nil,Lumber/Building Materials Stores,GPC,Not yet available
Wakefield MDC,E08000036,30/06/2014,CHILDYOU,4,Children's and Education Services,ARCHIDEC LIMITED,Repairs - Reactive,Revenue,160648,1036,09/06/2014,73.68,Nil,Lumber/Building Materials Stores,GPC,Not yet available
Wakefield MDC,E08000036,30/06/2014,CHILDYOU,4,Children's and Education Services,B & Q,Repairs - Reactive,Revenue,160659,101,02/07/2014,200.00,Nil,Lumber/Building Materials Stores,GPC,Not yet available
Wakefield MDC,E08000036,30/06/2014,CHILDYOU,4,Children's and Education Services,AMAZON ,Repairs - Reactive,Revenue,160640,147,25/04/2014,37.39,Nil,Book Stores,GPC,Not yet available
Wakefield MDC,E08000036,30/06/2014,CHILDYOU,4,Children's and Education Services,B & Q,Repairs - Reactive,Revenue,160652,261,19/06/2014,115.81,Nil,Lumber/Building Materials Stores,GPC,Not yet available
Wakefield MDC,E08000036,30/06/2014,CHILDYOU,4,Children's and Education Services,B & Q,Repairs - Reactive,Revenue,160653,727,23/06/2014,13.32,Nil,Lumber/Building Materials Stores,GPC,Not yet available
Wakefield MDC,E08000036,30/06/2014,CHILDYOU,4,Children's and Education Services,B & Q,Repairs - Reactive,Revenue,160653,729,23/06/2014,13.32,Nil,Lumber/Building Materials Stores,GPC,Not yet available
Wakefield MDC,E08000036,30/06/2014,CHILDYOU,4,Children's and Education Services,B & Q,Repairs - Reactive,Revenue,160653,749,23/06/2014,56.67,Nil,Lumber/Building Materials Stores,GPC,Not yet available
Wakefield MDC,E08000036,30/06/2014,CHILDYOU,4,Children's and Education Services,B & Q,Repairs - Reactive,Revenue,160653,763,23/06/2014,56.67,Nil,Lumber/Building Materials Stores,GPC,Not yet available
Wakefield MDC,E08000036,30/06/2014,CHILDYOU,4,Children's and Education Services,B & Q,Repairs - Reactive,Revenue,160653,765,23/06/2014,6.67,Nil,Lumber/Building Materials Stores,GPC,Not yet available
Wakefield MDC,E08000036,30/06/2014,CHILDYOU,4,Children's and Education Services,B & Q,Repairs - Reactive,Revenue,160653,893,23/06/2014,20.82,Nil,Lumber/Building Materials Stores,GPC,Not yet available
Wakefield MDC,E08000036,30/06/2014,CHILDYOU,4,Children's and Education Services,B & Q,Repairs - Reactive,Revenue,160653,907,23/06/2014,4.98,Nil,Lumber/Building Materials Stores,GPC,Not yet available
Wakefield MDC,E08000036,30/06/2014,CHILDYOU,4,Children's and Education Services,B & Q,Repairs - Reactive,Revenue,160653,909,23/06/2014,4.98,Nil,Lumber/Building Materials Stores,GPC,Not yet available
Wakefield MDC,E08000036,30/06/2014,CHILDYOU,4,Children's and Education Services,B & Q,Repairs - Reactive,Revenue,160653,1019,23/06/2014,15.82,Nil,Lumber/Building Materials Stores,GPC,Not yet available
Wakefield MDC,E08000036,30/06/2014,CHILDYOU,4,Children's and Education Services,B & Q,Repairs - Reactive,Revenue,160653,1063,23/06/2014,13.32,Nil,Lumber/Building Materials Stores,GPC,Not yet available
Wakefield MDC,E08000036,30/06/2014,CHILDYOU,4,Children's and Education Services,B & Q,Repairs - Reactive,Revenue,160653,1065,23/06/2014,13.32,Nil,Lumber/Building Materials Stores,GPC,Not yet available
Wakefield MDC,E08000036,30/06/2014,CHILDYOU,4,Children's and Education Services,B & Q,Repairs - Reactive,Revenue,160658,20,30/06/2014,37.48,Nil,Lumber/Building Materials Stores,GPC,Not yet available
Wakefield MDC,E08000036,30/06/2014,CHILDYOU,4,Children's and Education Services,B & Q,Repairs - Reactive,Revenue,160658,22,30/06/2014,37.48,Nil,Lumber/Building Materials Stores,GPC,Not yet available
Wakefield MDC,E08000036,30/06/2014,CHILDYOU,4,Children's and Education Services,B & Q,Repairs - Reactive,Revenue,160658,25,30/06/2014,4.57,Nil,Lumber/Building Materials Stores,GPC,Not yet available
Wakefield MDC,E08000036,30/06/2014,CHILDYOU,4,Children's and Education Services,B & Q,Repairs - Reactive,Revenue,160658,27,30/06/2014,4.57,Nil,Lumber/Building Materials Stores,GPC,Not yet available
Wakefield MDC,E08000036,30/06/2014,CHILDYOU,4,Children's and Education Services,B & Q,Repairs - Reactive,Revenue,160658,29,30/06/2014,100.00,Nil,Lumber/Building Materials Stores,GPC,Not yet available
Wakefield MDC,E08000036,30/06/2014,CHILDYOU,4,Children's and Education Services,TIMPSON LTD,Repairs - Reactive,Revenue,160649,695,13/06/2014,20.00,Nil,Shoe Repair/Shine/Hat Cleaning,GPC,Not yet available
Wakefield MDC,E08000036,30/06/2014,CHILDYOU,4,Children's and Education Services,B & Q,Repairs - Reactive,Revenue,160641,1794,02/05/2014,5.00,Nil,Lumber/Building Materials Stores,GPC,Not yet available
Wakefield MDC,E08000036,30/06/2014,CHILDYOU,4,Children's and Education Services,B & Q,Repairs - Reactive,Revenue,160641,1979,02/05/2014,5.00,Nil,Lumber/Building Materials Stores,GPC,Not yet available
Wakefield MDC,E08000036,30/06/2014,CHILDYOU,4,Children's and Education Services,B & Q,Repairs - Reactive,Revenue,160641,1990,02/05/2014,2.08,Nil,Lumber/Building Materials Stores,GPC,Not yet available
Wakefield MDC,E08000036,30/06/2014,CHILDYOU,4,Children's and Education Services,B & Q,Repairs - Reactive,Revenue,160641,1992,02/05/2014,2.08,Nil,Lumber/Building Materials Stores,GPC,Not yet available
Wakefield MDC,E08000036,30/06/2014,CHILDYOU,4,Children's and Education Services,B & Q,Repairs - Reactive,Revenue,160641,2171,02/05/2014,2.08,Nil,Lumber/Building Materials Stores,GPC,Not yet available
Wakefield MDC,E08000036,30/06/2014,CHILDYOU,4,Children's and Education Services,B & Q,Repairs - Reactive,Revenue,160641,2215,02/05/2014,2.08,Nil,Lumber/Building Materials Stores,GPC,Not yet available
Wakefield MDC,E08000036,30/06/2014,CHILDYOU,4,Children's and Education Services,B & Q,Repairs - Reactive,Revenue,160641,2217,02/05/2014,1.25,Nil,Lumber/Building Materials Stores,GPC,Not yet available
Wakefield MDC,E08000036,30/06/2014,CHILDYOU,4,Children's and Education Services,B & Q,Repairs - Reactive,Revenue,160641,2267,02/05/2014,3.33,Nil,Lumber/Building Materials Stores,GPC,Not yet available
Wakefield MDC,E08000036,30/06/2014,CHILDYOU,4,Children's and Education Services,B & Q,Repairs - Reactive,Revenue,160641,2311,02/05/2014,3.33,Nil,Lumber/Building Materials Stores,GPC,Not yet available
Wakefield MDC,E08000036,30/06/2014,CHILDYOU,4,Children's and Education Services,B & Q,Repairs - Reactive,Revenue,160641,2313,02/05/2014,3.33,Nil,Lumber/Building Materials Stores,GPC,Not yet available
Wakefield MDC,E08000036,30/06/2014,CHILDYOU,4,Children's and Education Services,B & Q,Repairs - Reactive,Revenue,160641,2474,02/05/2014,3.33,Nil,Lumber/Building Materials Stores,GPC,Not yet available
Wakefield MDC,E08000036,30/06/2014,CHILDYOU,4,Children's and Education Services,B & Q,Repairs - Reactive,Revenue,160641,2509,02/05/2014,3.33,Nil,Lumber/Building Materials Stores,GPC,Not yet available
Wakefield MDC,E08000036,30/06/2014,CHILDYOU,4,Children's and Education Services,B & Q,Repairs - Reactive,Revenue,160641,2511,02/05/2014,54.98,Nil,Lumber/Building Materials Stores,GPC,Not yet available
Wakefield MDC,E08000036,30/06/2014,CHILDYOU,4,Children's and Education Services,B & Q,Repairs - Reactive,Revenue,160641,2694,02/05/2014,29.15,Nil,Lumber/Building Materials Stores,GPC,Not yet available
Wakefield MDC,E08000036,30/06/2014,CHILDYOU,4,Children's and Education Services,B & Q,Repairs - Reactive,Revenue,160641,2696,02/05/2014,39.98,Nil,Lumber/Building Materials Stores,GPC,Not yet available
Wakefield MDC,E08000036,30/06/2014,CHILDYOU,4,Children's and Education Services,B & Q,Repairs - Reactive,Revenue,160641,2707,02/05/2014,2.50,Nil,Lumber/Building Materials Stores,GPC,Not yet available
Wakefield MDC,E08000036,30/06/2014,CHILDYOU,4,Children's and Education Services,B & Q,Repairs - Reactive,Revenue,160641,2880,02/05/2014,2.50,Nil,Lumber/Building Materials Stores,GPC,Not yet available
Wakefield MDC,E08000036,30/06/2014,CHILDYOU,4,Children's and Education Services,B & Q,Repairs - Reactive,Revenue,160641,2882,02/05/2014,2.50,Nil,Lumber/Building Materials Stores,GPC,Not yet available
Wakefield MDC,E08000036,30/06/2014,CHILDYOU,4,Children's and Education Services,HEMSWORTH HARDWARE,Repairs - Reactive,Revenue,160641,2899,02/05/2014,78.98,Nil,Hardware Stores,GPC,Not yet available
Wakefield MDC,E08000036,30/06/2014,CHILDYOU,4,Children's and Education Services,HEMSWORTH HARDWARE,Repairs - Reactive,Revenue,160647,9857,03/06/2014,35.75,Nil,Hardware Stores,GPC,Not yet available
Wakefield MDC,E08000036,30/06/2014,CHILDYOU,4,Children's and Education Services,HEMSWORTH HARDWARE,Repairs - Reactive,Revenue,160647,9858,03/06/2014,68.75,Nil,Hardware Stores,GPC,Not yet available
Wakefield MDC,E08000036,30/06/2014,CHILDYOU,4,Children's and Education Services,HEMSWORTH HARDWARE,Repairs - Reactive,Revenue,160659,87,02/07/2014,18.53,Nil,Hardware Stores,GPC,Not yet available
Wakefield MDC,E08000036,30/06/2014,CHILDYOU,4,Children's and Education Services,WASHWARE ESSENTIALS LTD,Repairs - Reactive,Revenue,160659,89,02/07/2014,129.00,Nil,Discount Stores,GPC,Not yet available
Wakefield MDC,E08000036,30/06/2014,REGENCULT,L,Cultural and Related Services,ASDA,Repairs - Reactive,Revenue,160643,1347,12/05/2014,5.00,Nil,Grocery Stores/Supermarkets,GPC,Not yet available
Wakefield MDC,E08000036,30/06/2014,REGENCULT,L,Cultural and Related Services,ASDA,Repairs - Reactive,Revenue,160657,609,27/06/2014,10.50,Nil,Grocery Stores/Supermarkets,GPC,Not yet available
Wakefield MDC,E08000036,30/06/2014,REGENCULT,L,Cultural and Related Services,CALDER SECURITY,Repairs - Reactive,Revenue,160643,1690,12/05/2014,40.15,Nil,Hardware Stores,GPC,Not yet available
Wakefield MDC,E08000036,30/06/2014,REGENCULT,L,Cultural and Related Services,CALDER SECURITY,Repairs - Reactive,Revenue,160644,2727,14/05/2014,4.50,Nil,Hardware Stores,GPC,Not yet available
Wakefield MDC,E08000036,30/06/2014,REGENCULT,L,Cultural and Related Services,CALDER SECURITY,Repairs - Reactive,Revenue,160647,1730,03/06/2014,4.50,Nil,Hardware Stores,GPC,Not yet available
Wakefield MDC,E08000036,30/06/2014,REGENCULT,L,Cultural and Related Services,CALDER SECURITY,Repairs - Reactive,Revenue,160651,409,18/06/2014,12.25,Nil,Hardware Stores,GPC,Not yet available
Wakefield MDC,E08000036,30/06/2014,REGENCULT,L,Cultural and Related Services,CALDER SECURITY,Repairs - Reactive,Revenue,160651,630,18/06/2014,36.50,Nil,Hardware Stores,GPC,Not yet available
Wakefield MDC,E08000036,30/06/2014,REGENCULT,L,Cultural and Related Services,T J MORRIS LTD,Repairs - Reactive,Revenue,160643,1616,12/05/2014,5.82,Nil,Hardware Stores,GPC,Not yet available
Wakefield MDC,E08000036,30/06/2014,REGENCULT,L,Cultural and Related Services,DIXON HALL,Repairs - Reactive,Revenue,160659,647,02/07/2014,25.35,Nil,Hardware/Equipment/Supplies,GPC,Not yet available
Wakefield MDC,E08000036,30/06/2014,REGENCULT,L,Cultural and Related Services,ARCO LTD,Repairs - Reactive,Revenue,160659,645,02/07/2014,156.70,Nil,Uniforms And Commercial Clothing,GPC,Not yet available
Wakefield MDC,E08000036,30/06/2014,CHILDYOU,4,Children's and Education Services,ARGOS,Repairs - Reactive,Revenue,160639,4945,14/04/2014,45.47,Nil,Discount Stores,GPC,Not yet available
Wakefield MDC,E08000036,30/06/2014,CHILDYOU,4,Children's and Education Services,ARGOS,Repairs - Reactive,Revenue,160639,4947,14/04/2014,23.77,Nil,Discount Stores,GPC,Not yet available
Wakefield MDC,E08000036,30/06/2014,ADULTS,7,Adult Social Care,ABLE CARE SERVICES,Repairs - Reactive,Revenue,160647,3313,03/06/2014,170.00,Nil,General Retail And Wholesale,GPC,Not yet available
Wakefield MDC,E08000036,30/06/2014,ADULTS,7,Adult Social Care,B & Q ,Repairs - Reactive,Revenue,160648,2196,09/06/2014,-27.48,Nil,Lumber/Building Materials Stores,GPC,Not yet available
Wakefield MDC,E08000036,30/06/2014,ADULTS,7,Adult Social Care,B & Q ,Repairs - Reactive,Revenue,160648,2219,09/06/2014,-4.15,Nil,Lumber/Building Materials Stores,GPC,Not yet available
Wakefield MDC,E08000036,30/06/2014,CHILDYOU,4,Children's and Education Services,WILKINSON,Repairs - Reactive,Revenue,160648,2607,09/06/2014,1.67,Nil,Household Appliance Stores,GPC,Not yet available
Wakefield MDC,E08000036,30/06/2014,CHILDYOU,4,Children's and Education Services,WILKINSON,Repairs - Reactive,Revenue,160649,645,13/06/2014,5.64,Nil,Household Appliance Stores,GPC,Not yet available
Wakefield MDC,E08000036,30/06/2014,CHILDYOU,4,Children's and Education Services,WILKINSON,Repairs - Reactive,Revenue,160650,14,16/06/2014,6.21,Nil,Household Appliance Stores,GPC,Not yet available
Wakefield MDC,E08000036,30/06/2014,BUSINESS,9,Non Distributed Costs,B & Q,Repairs - Reactive,Revenue,160640,107,25/04/2014,15.82,Nil,Lumber/Building Materials Stores,GPC,Not yet available
Wakefield MDC,E08000036,30/06/2014,BUSINESS,9,Non Distributed Costs,TURNER SUPPLIES LTD,Repairs - Reactive,Revenue,160640,111,25/04/2014,50.52,Nil,Misc Food Stores - Convenience Stores & Specialty Markets,GPC,Not yet available
Wakefield MDC,E08000036,30/06/2014,BUSINESS,A,Net (Surplus) / Deficit of Trading Operations,CLARKES SAFETY MIRROR,Repairs - Reactive,Revenue,160651,2937,18/06/2014,96.40,Nil,Household Appliance Stores,GPC,Not yet available
Wakefield MDC,E08000036,30/06/2014,BUSINESS,A,Net (Surplus) / Deficit of Trading Operations,FASTPART UK,Repairs - Reactive,Revenue,160639,2965,14/04/2014,28.78,Nil,Furniture/Home Furn/Equip Stores - Except Appliances,GPC,Not yet available
Wakefield MDC,E08000036,30/06/2014,BUSINESS,A,Net (Surplus) / Deficit of Trading Operations,FASTPART UK,Repairs - Reactive,Revenue,160641,1368,02/05/2014,22.36,Nil,Furniture/Home Furn/Equip Stores - Except Appliances,GPC,Not yet available
Wakefield MDC,E08000036,30/06/2014,BUSINESS,A,Net (Surplus) / Deficit of Trading Operations,RS COMPONENTS,Repairs - Reactive,Revenue,160651,2981,18/06/2014,20.01,Nil,Electrical Parts/Equipment,GPC,Not yet available
Wakefield MDC,E08000036,30/06/2014,BUSINESS,A,Net (Surplus) / Deficit of Trading Operations,SIMPLY BEARINGS LTD ,Repairs - Reactive,Revenue,160651,2639,18/06/2014,18.80,Nil,Electrical Parts/Equipment,GPC,Not yet available
Wakefield MDC,E08000036,30/06/2014,BUSINESS,A,Net (Surplus) / Deficit of Trading Operations,TOILET SPARE,Repairs - Reactive,Revenue,160641,1366,02/05/2014,68.28,Nil,Misc House Furnishing Specialty Stores,GPC,Not yet available
Wakefield MDC,E08000036,30/06/2014,BUSINESS,A,Net (Surplus) / Deficit of Trading Operations,TOILET SPARE,Repairs - Reactive,Revenue,160659,807,02/07/2014,68.28,Nil,Misc House Furnishing Specialty Stores,GPC,Not yet available
Wakefield MDC,E08000036,30/06/2014,CHILDYOU,4,Children's and Education Services,B & M RETAIL,Repairs - Planned,Revenue,160656,1294,26/06/2014,50.98,Nil,Discount Stores,GPC,Not yet available
Wakefield MDC,E08000036,30/06/2014,CHILDYOU,4,Children's and Education Services,B & Q,Repairs - Planned,Revenue,160656,1260,26/06/2014,0.68,Nil,Lumber/Building Materials Stores,GPC,Not yet available
Wakefield MDC,E08000036,30/06/2014,CHILDYOU,4,Children's and Education Services,B & Q,Repairs - Planned,Revenue,160656,1262,26/06/2014,0.69,Nil,Lumber/Building Materials Stores,GPC,Not yet available
Wakefield MDC,E08000036,30/06/2014,CHILDYOU,4,Children's and Education Services,B & Q,Repairs - Planned,Revenue,160656,1264,26/06/2014,0.69,Nil,Lumber/Building Materials Stores,GPC,Not yet available
Wakefield MDC,E08000036,30/06/2014,CHILDYOU,4,Children's and Education Services,B & Q,Repairs - Planned,Revenue,160656,1266,26/06/2014,0.68,Nil,Lumber/Building Materials Stores,GPC,Not yet available
Wakefield MDC,E08000036,30/06/2014,CHILDYOU,4,Children's and Education Services,B & Q,Repairs - Planned,Revenue,160656,1268,26/06/2014,0.68,Nil,Lumber/Building Materials Stores,GPC,Not yet available
Wakefield MDC,E08000036,30/06/2014,CHILDYOU,4,Children's and Education Services,B & Q,Repairs - Planned,Revenue,160656,1270,26/06/2014,0.68,Nil,Lumber/Building Materials Stores,GPC,Not yet available
Wakefield MDC,E08000036,30/06/2014,CHILDYOU,4,Children's and Education Services,B & Q,Repairs - Planned,Revenue,160656,1272,26/06/2014,0.68,Nil,Lumber/Building Materials Stores,GPC,Not yet available
Wakefield MDC,E08000036,30/06/2014,CHILDYOU,4,Children's and Education Services,B & Q,Repairs - Planned,Revenue,160656,1276,26/06/2014,0.69,Nil,Lumber/Building Materials Stores,GPC,Not yet available
Wakefield MDC,E08000036,30/06/2014,CHILDYOU,4,Children's and Education Services,B & Q,Repairs - Planned,Revenue,160656,1278,26/06/2014,0.69,Nil,Lumber/Building Materials Stores,GPC,Not yet available
Wakefield MDC,E08000036,30/06/2014,CHILDYOU,4,Children's and Education Services,B & Q,Repairs - Planned,Revenue,160656,1282,26/06/2014,0.69,Nil,Lumber/Building Materials Stores,GPC,Not yet available
Wakefield MDC,E08000036,30/06/2014,CHILDYOU,4,Children's and Education Services,B & Q,Repairs - Planned,Revenue,160656,1284,26/06/2014,0.68,Nil,Lumber/Building Materials Stores,GPC,Not yet available
Wakefield MDC,E08000036,30/06/2014,CHILDYOU,4,Children's and Education Services,B & Q,Repairs - Planned,Revenue,160656,1286,26/06/2014,-0.88,Nil,Lumber/Building Materials Stores,GPC,Not yet available
Wakefield MDC,E08000036,30/06/2014,CHILDYOU,4,Children's and Education Services,B & Q,Repairs - Planned,Revenue,160656,1292,26/06/2014,-0.86,Nil,Lumber/Building Materials Stores,GPC,Not yet available
Wakefield MDC,E08000036,30/06/2014,CHILDYOU,4,Children's and Education Services,B & Q,Repairs - Planned,Revenue,160656,1295,26/06/2014,88.06,Nil,Lumber/Building Materials Stores,GPC,Not yet available
Wakefield MDC,E08000036,30/06/2014,CHILDYOU,4,Children's and Education Services,BMB BUILDBASE,Repairs - Planned,Revenue,160641,525,02/05/2014,82.80,Nil,Lumber/Building Materials Stores,GPC,Not yet available
Wakefield MDC,E08000036,30/06/2014,CHILDYOU,4,Children's and Education Services,AL MURAD DIY LTD ,Repairs - Planned,Revenue,160639,1028,14/04/2014,121.53,Nil,Glass/Paint/Wallpaper Store,GPC,Not yet available
Wakefield MDC,E08000036,30/06/2014,ADULTS,7,Adult Social Care,B & Q ,Repairs - Planned,Revenue,160648,1271,09/06/2014,7.90,Nil,Lumber/Building Materials Stores,GPC,Not yet available
Wakefield MDC,E08000036,30/06/2014,ADULTS,7,Adult Social Care,B & Q ,Repairs - Planned,Revenue,160648,1472,09/06/2014,1.65,Nil,Lumber/Building Materials Stores,GPC,Not yet available
Wakefield MDC,E08000036,30/06/2014,ADULTS,7,Adult Social Care,B & Q ,Repairs - Planned,Revenue,160648,1492,09/06/2014,1.65,Nil,Lumber/Building Materials Stores,GPC,Not yet available
Wakefield MDC,E08000036,30/06/2014,ADULTS,7,Adult Social Care,B & Q ,Repairs - Planned,Revenue,160648,1494,09/06/2014,1.40,Nil,Lumber/Building Materials Stores,GPC,Not yet available
Wakefield MDC,E08000036,30/06/2014,ADULTS,7,Adult Social Care,B & Q ,Repairs - Planned,Revenue,160648,1628,09/06/2014,1.40,Nil,Lumber/Building Materials Stores,GPC,Not yet available
Wakefield MDC,E08000036,30/06/2014,ADULTS,7,Adult Social Care,B & Q ,Repairs - Planned,Revenue,160648,1690,09/06/2014,1.73,Nil,Lumber/Building Materials Stores,GPC,Not yet available
Wakefield MDC,E08000036,30/06/2014,ADULTS,7,Adult Social Care,B & Q ,Repairs - Planned,Revenue,160648,1692,09/06/2014,-1.40,Nil,Lumber/Building Materials Stores,GPC,Not yet available
Wakefield MDC,E08000036,30/06/2014,ADULTS,7,Adult Social Care,B & Q ,Repairs - Planned,Revenue,160648,1811,09/06/2014,-1.40,Nil,Lumber/Building Materials Stores,GPC,Not yet available
Wakefield MDC,E08000036,30/06/2014,ADULTS,7,Adult Social Care,B & Q ,Repairs - Planned,Revenue,160648,1885,09/06/2014,-1.73,Nil,Lumber/Building Materials Stores,GPC,Not yet available
Wakefield MDC,E08000036,30/06/2014,ADULTS,7,Adult Social Care,B & Q ,Repairs - Planned,Revenue,160648,1887,09/06/2014,1.23,Nil,Lumber/Building Materials Stores,GPC,Not yet available
Wakefield MDC,E08000036,30/06/2014,ADULTS,7,Adult Social Care,B & Q ,Repairs - Planned,Revenue,160648,1898,09/06/2014,1.40,Nil,Lumber/Building Materials Stores,GPC,Not yet available
Wakefield MDC,E08000036,30/06/2014,ADULTS,7,Adult Social Care,B & Q ,Repairs - Planned,Revenue,160648,2041,09/06/2014,1.40,Nil,Lumber/Building Materials Stores,GPC,Not yet available
Wakefield MDC,E08000036,30/06/2014,ADULTS,7,Adult Social Care,B & Q ,Repairs - Planned,Revenue,160648,2043,09/06/2014,1.82,Nil,Lumber/Building Materials Stores,GPC,Not yet available
Wakefield MDC,E08000036,30/06/2014,ADULTS,7,Adult Social Care,B & Q ,Repairs - Planned,Revenue,160648,2063,09/06/2014,27.48,Nil,Lumber/Building Materials Stores,GPC,Not yet available
Wakefield MDC,E08000036,30/06/2014,ADULTS,7,Adult Social Care,B & Q ,Repairs - Planned,Revenue,160648,2194,09/06/2014,4.15,Nil,Lumber/Building Materials Stores,GPC,Not yet available
Wakefield MDC,E08000036,30/06/2014,ADULTS,7,Adult Social Care,B & Q ,Repairs - Planned,Revenue,160648,2512,09/06/2014,2.73,Nil,Lumber/Building Materials Stores,GPC,Not yet available
Wakefield MDC,E08000036,30/06/2014,ADULTS,7,Adult Social Care,B & Q ,Repairs - Planned,Revenue,160648,2528,09/06/2014,2.73,Nil,Lumber/Building Materials Stores,GPC,Not yet available
Wakefield MDC,E08000036,30/06/2014,BUSINESS,A,Net (Surplus) / Deficit of Trading Operations,HOMEBASE LTD,Repairs - Planned,Revenue,160644,781,14/05/2014,47.26,Nil,Lumber/Building Materials Stores,GPC,Not yet available
Wakefield MDC,E08000036,30/06/2014,REGENCULT,M,Environmental and Regulatory Services,DIXON HALL,Premises Security,Revenue,160650,580,16/06/2014,17.36,Nil,Hardware/Equipment/Supplies,GPC,Not yet available
Wakefield MDC,E08000036,30/06/2014,CHILDYOU,4,Children's and Education Services,ASDA,Premises Cleaning,Revenue,160647,6126,03/06/2014,9.00,Nil,Grocery Stores/Supermarkets,GPC,Not yet available
Wakefield MDC,E08000036,30/06/2014,CHILDYOU,4,Children's and Education Services,CO-OP GROUP,Premises Cleaning,Revenue,160639,325,14/04/2014,5.83,Nil,Grocery Stores/Supermarkets,GPC,Not yet available
Wakefield MDC,E08000036,30/06/2014,CHILDYOU,4,Children's and Education Services,W M MORRISONS,Premises Cleaning,Revenue,160647,8862,03/06/2014,26.44,Nil,Grocery Stores/Supermarkets,GPC,Not yet available
Wakefield MDC,E08000036,30/06/2014,CHILDYOU,4,Children's and Education Services,TESCO,Premises Cleaning,Revenue,160640,265,25/04/2014,3.33,Nil,Grocery Stores/Supermarkets,GPC,Not yet available
Wakefield MDC,E08000036,30/06/2014,CHILDYOU,4,Children's and Education Services,POUNDLAND LTD,Premises Cleaning,Revenue,160643,3703,12/05/2014,4.00,Nil,Discount Stores,GPC,Not yet available
Wakefield MDC,E08000036,30/06/2014,CHILDYOU,4,Children's and Education Services,W M MORRISONS ,Premises Cleaning,Revenue,160654,435,24/06/2014,4.49,Nil,Grocery Stores/Supermarkets,GPC,Not yet available
Wakefield MDC,E08000036,30/06/2014,BUSINESS,A,Net (Surplus) / Deficit of Trading Operations,GEORGES TOOLS,Premises Cleaning,Revenue,160643,827,12/05/2014,8.99,Nil,Glass/Paint/Wallpaper Store,GPC,Not yet available
Wakefield MDC,E08000036,30/06/2014,CHILDYOU,4,Children's and Education Services,CO-OP GROUP,Premises Cleaning,Revenue,160652,333,19/06/2014,2.31,Nil,Grocery Stores/Supermarkets,GPC,Not yet available
Wakefield MDC,E08000036,30/06/2014,CHILDYOU,4,Children's and Education Services,ASDA,Premises Cleaning,Revenue,160649,1042,13/06/2014,77.16,Nil,Grocery Stores/Supermarkets,GPC,Not yet available
Wakefield MDC,E08000036,30/06/2014,CHILDYOU,4,Children's and Education Services,B & M RETAIL,Premises Cleaning,Revenue,160641,2454,02/05/2014,13.30,Nil,Discount Stores,GPC,Not yet available
Wakefield MDC,E08000036,30/06/2014,CHILDYOU,4,Children's and Education Services,W M MORRISONS,Premises Cleaning,Revenue,160649,1040,13/06/2014,22.66,Nil,Grocery Stores/Supermarkets,GPC,Not yet available
Wakefield MDC,E08000036,30/06/2014,CHILDYOU,4,Children's and Education Services,ASDA,Premises Cleaning,Revenue,160648,323,09/06/2014,20.00,Nil,Grocery Stores/Supermarkets,GPC,Not yet available
Wakefield MDC,E08000036,30/06/2014,CHILDYOU,4,Children's and Education Services,ASDA,Premises Cleaning,Revenue,160648,1155,09/06/2014,3.35,Nil,Grocery Stores/Supermarkets,GPC,Not yet available
Wakefield MDC,E08000036,30/06/2014,CHILDYOU,4,Children's and Education Services,ASDA,Premises Cleaning,Revenue,160649,1691,13/06/2014,5.00,Nil,Grocery Stores/Supermarkets,GPC,Not yet available
Wakefield MDC,E08000036,30/06/2014,CHILDYOU,4,Children's and Education Services,ASDA,Premises Cleaning,Revenue,160651,2990,18/06/2014,10.00,Nil,Grocery Stores/Supermarkets,GPC,Not yet available
Wakefield MDC,E08000036,30/06/2014,CHILDYOU,4,Children's and Education Services,W M MORRISONS,Premises Cleaning,Revenue,160657,559,27/06/2014,2.87,Nil,Grocery Stores/Supermarkets,GPC,Not yet available
Wakefield MDC,E08000036,30/06/2014,CHILDYOU,4,Children's and Education Services,TESCO,Premises Cleaning,Revenue,160641,1701,02/05/2014,3.40,Nil,Grocery Stores/Supermarkets,GPC,Not yet available
Wakefield MDC,E08000036,30/06/2014,ADULTS,7,Adult Social Care,AMAZON,Premises Cleaning,Revenue,160649,1239,13/06/2014,51.80,Nil,Book Stores,GPC,Not yet available
Wakefield MDC,E08000036,30/06/2014,ADULTS,7,Adult Social Care,GOMPELS,Premises Cleaning,Revenue,160649,1129,13/06/2014,123.90,Nil,Industrial Supplies - Not Elsewhere Classified,GPC,Not yet available
Wakefield MDC,E08000036,30/06/2014,ADULTS,7,Adult Social Care,PATTERSONS,Premises Cleaning,Revenue,160649,1249,13/06/2014,27.11,Nil,Household Appliance Stores,GPC,Not yet available
Wakefield MDC,E08000036,30/06/2014,ADULTS,7,Adult Social Care,AMAZON,Premises Cleaning,Revenue,160647,6131,03/06/2014,120.00,Nil,Book Stores,GPC,Not yet available
Wakefield MDC,E08000036,30/06/2014,CHILDYOU,4,Children's and Education Services,WILKINSON,Premises Cleaning,Revenue,160648,2534,09/06/2014,4.25,Nil,Household Appliance Stores,GPC,Not yet available
Wakefield MDC,E08000036,30/06/2014,BUSINESS,9,Non Distributed Costs,ASDA,Premises Cleaning,Revenue,160640,283,25/04/2014,26.67,Nil,Grocery Stores/Supermarkets,GPC,Not yet available
Wakefield MDC,E08000036,30/06/2014,BUSINESS,9,Non Distributed Costs,ASDA,Premises Cleaning,Revenue,160648,148,09/06/2014,28.33,Nil,Grocery Stores/Supermarkets,GPC,Not yet available
Wakefield MDC,E08000036,30/06/2014,BUSINESS,9,Non Distributed Costs,RAINBOW INTERNATIONAL,Premises Cleaning,Revenue,160653,1252,23/06/2014,446.25,Nil,Insurance Sales/Underwriting/Premiums,GPC,Not yet available
Wakefield MDC,E08000036,30/06/2014,BUSINESS,9,Non Distributed Costs,TOTAL FOOD SVS LTD,Premises Cleaning,Revenue,160645,36,14/05/2014,182.97,Nil,Caterers,GPC,Not yet available
Wakefield MDC,E08000036,30/06/2014,BUSINESS,9,Non Distributed Costs,TOTAL FOOD SVS LTD,Premises Cleaning,Revenue,160648,2639,09/06/2014,17.55,Nil,Caterers,GPC,Not yet available
Wakefield MDC,E08000036,30/06/2014,BUSINESS,9,Non Distributed Costs,TOTAL FOOD SVS LTD,Premises Cleaning,Revenue,160654,56,24/06/2014,130.76,Nil,Caterers,GPC,Not yet available
Wakefield MDC,E08000036,30/06/2014,BUSINESS,9,Non Distributed Costs,WAKEFIELD FLOORCARE,Premises Cleaning,Revenue,160651,1098,18/06/2014,24.99,Nil,Household Appliance Stores,GPC,Not yet available
Wakefield MDC,E08000036,30/06/2014,BUSINESS,A,Net (Surplus) / Deficit of Trading Operations,TOTAL FOOD SVS LTD,Premises Cleaning,Revenue,160639,3947,14/04/2014,4.32,Nil,Caterers,GPC,Not yet available
Wakefield MDC,E08000036,30/06/2014,BUSINESS,A,Net (Surplus) / Deficit of Trading Operations,TOTAL FOOD SVS LTD,Premises Cleaning,Revenue,160640,67,25/04/2014,63.97,Nil,Caterers,GPC,Not yet available
Wakefield MDC,E08000036,30/06/2014,BUSINESS,A,Net (Surplus) / Deficit of Trading Operations,TOTAL FOOD SVS LTD,Premises Cleaning,Revenue,160640,72,25/04/2014,11.28,Nil,Caterers,GPC,Not yet available
Wakefield MDC,E08000036,30/06/2014,BUSINESS,A,Net (Surplus) / Deficit of Trading Operations,TOTAL FOOD SVS LTD,Premises Cleaning,Revenue,160647,3723,03/06/2014,26.05,Nil,Caterers,GPC,Not yet available
Wakefield MDC,E08000036,30/06/2014,BUSINESS,A,Net (Surplus) / Deficit of Trading Operations,TOTAL FOOD SVS LTD,Premises Cleaning,Revenue,160648,2120,09/06/2014,4.32,Nil,Caterers,GPC,Not yet available
Wakefield MDC,E08000036,30/06/2014,REGENCULT,M,Environmental and Regulatory Services,B & Q,Refuse Collection,Revenue,160658,387,30/06/2014,6.65,Nil,Lumber/Building Materials Stores,GPC,Not yet available
Wakefield MDC,E08000036,30/06/2014,REGENCULT,M,Environmental and Regulatory Services,B & Q,Refuse Collection,Revenue,160658,389,30/06/2014,2.50,Nil,Lumber/Building Materials Stores,GPC,Not yet available
Wakefield MDC,E08000036,30/06/2014,REGENCULT,N/A VARIOUS,,A1 BUILDING SUPPLIES,Refuse Collection,Revenue,160658,393,30/06/2014,12.92,Nil,Construction Materials - Not Elsewhere Classified,GPC,Not yet available
Wakefield MDC,E08000036,30/06/2014,REGENCULT,N/A VARIOUS,,ARCO CLEARANCE SHOP,Refuse Collection,Revenue,160658,391,30/06/2014,54.00,Nil,Industrial Supplies - Not Elsewhere Classified,GPC,Not yet available
Wakefield MDC,E08000036,30/06/2014,CHILDYOU,4,Children's and Education Services,PHS WASTETECH LTD,Refuse Collection,Revenue,160640,118,25/04/2014,284.04,Nil,Waste Disposal Services,GPC,Not yet available
Wakefield MDC,E08000036,30/06/2014,ADULTS,7,Adult Social Care,PERSONNEL HYGIENE SERVICES,Refuse Collection,Revenue,160647,3237,03/06/2014,38.25,Nil,Industrial Supplies - Not Elsewhere Classified,GPC,Not yet available
Wakefield MDC,E08000036,30/06/2014,ADULTS,7,Adult Social Care,NWM YORKSHIRE LTD,Refuse Collection,Revenue,160649,1981,13/06/2014,170.00,Nil,Equip/Tool/Furn/Appliance Rental/Leasing,GPC,Not yet available
Wakefield MDC,E08000036,30/06/2014,REGENCULT,L,Cultural and Related Services,CALDER SECURITY,Grounds Maintenance - Non Contract,Revenue,160658,385,30/06/2014,35.40,Nil,Hardware Stores,GPC,Not yet available
Wakefield MDC,E08000036,30/06/2014,CHILDYOU,4,Children's and Education Services,B & Q,Grounds Maintenance - Non Contract,Revenue,160641,1162,02/05/2014,4.16,Nil,Lumber/Building Materials Stores,GPC,Not yet available
Wakefield MDC,E08000036,30/06/2014,CHILDYOU,4,Children's and Education Services,B & Q,Grounds Maintenance - Non Contract,Revenue,160641,1164,02/05/2014,4.16,Nil,Lumber/Building Materials Stores,GPC,Not yet available
Wakefield MDC,E08000036,30/06/2014,CHILDYOU,4,Children's and Education Services,B & Q,Grounds Maintenance - Non Contract,Revenue,160641,1202,02/05/2014,2.65,Nil,Lumber/Building Materials Stores,GPC,Not yet available
Wakefield MDC,E08000036,30/06/2014,CHILDYOU,4,Children's and Education Services,B & Q,Grounds Maintenance - Non Contract,Revenue,160641,1435,02/05/2014,4.15,Nil,Lumber/Building Materials Stores,GPC,Not yet available
Wakefield MDC,E08000036,30/06/2014,CHILDYOU,4,Children's and Education Services,B & Q,Grounds Maintenance - Non Contract,Revenue,160641,1437,02/05/2014,4.15,Nil,Lumber/Building Materials Stores,GPC,Not yet available
Wakefield MDC,E08000036,30/06/2014,CHILDYOU,4,Children's and Education Services,B & Q,Grounds Maintenance - Non Contract,Revenue,160641,1478,02/05/2014,4.15,Nil,Lumber/Building Materials Stores,GPC,Not yet available
Wakefield MDC,E08000036,30/06/2014,CHILDYOU,4,Children's and Education Services,B & Q,Grounds Maintenance - Non Contract,Revenue,160641,1498,02/05/2014,4.15,Nil,Lumber/Building Materials Stores,GPC,Not yet available
Wakefield MDC,E08000036,30/06/2014,CHILDYOU,4,Children's and Education Services,SPRING GREEN,Grounds Maintenance - Non Contract,Revenue,160644,1114,14/05/2014,47.48,Nil,Nursery/Lawn/Garden Supply Stores,GPC,Not yet available
Wakefield MDC,E08000036,30/06/2014,BUSINESS,9,Non Distributed Costs,FISCO WAKEFIELD,Grounds Maintenance - Non Contract,Revenue,160654,61,24/06/2014,83.33,Nil,Misc Auto/Aircraft/Farm Equipment Dealers,GPC,Not yet available
Wakefield MDC,E08000036,30/06/2014,BUSINESS,9,Non Distributed Costs,FISCO WAKEFIELD,Grounds Maintenance - Non Contract,Revenue,160654,63,24/06/2014,83.33,Nil,Misc Auto/Aircraft/Farm Equipment Dealers,GPC,Not yet available
Wakefield MDC,E08000036,30/06/2014,BUSINESS,9,Non Distributed Costs,FISCO WAKEFIELD,Grounds Maintenance - Non Contract,Revenue,160654,65,24/06/2014,15.72,Nil,Misc Auto/Aircraft/Farm Equipment Dealers,GPC,Not yet available
Wakefield MDC,E08000036,30/06/2014,BUSINESS,9,Non Distributed Costs,FISCO WAKEFIELD,Grounds Maintenance - Non Contract,Revenue,160654,67,24/06/2014,7.65,Nil,Misc Auto/Aircraft/Farm Equipment Dealers,GPC,Not yet available
Wakefield MDC,E08000036,30/06/2014,ADULTS,Z,BVACOP Not Applicable,ACKWORTH SERVICE STATION,Grounds Maintenance - Non Contract,Revenue,160652,128,19/06/2014,16.67,Nil,Service Stations,GPC,Not yet available
Wakefield MDC,E08000036,30/06/2014,ADULTS,Z,BVACOP Not Applicable,FISCO WAKEFIELD,Grounds Maintenance - Non Contract,Revenue,160652,132,19/06/2014,17.00,Nil,Misc Auto/Aircraft/Farm Equipment Dealers,GPC,Not yet available
Wakefield MDC,E08000036,30/06/2014,ADULTS,Z,BVACOP Not Applicable,GARDEN CENTRE ,Grounds Maintenance - Non Contract,Revenue,160652,130,19/06/2014,3.32,Nil,Nursery/Lawn/Garden Supply Stores,GPC,Not yet available
Wakefield MDC,E08000036,30/06/2014,ADULTS,Z,BVACOP Not Applicable,TESCO,Grounds Maintenance - Non Contract,Revenue,160641,808,02/05/2014,8.52,Nil,Grocery Stores/Supermarkets,GPC,Not yet available
Wakefield MDC,E08000036,30/06/2014,REGENCULT,L,Cultural and Related Services,DIXON HALL,Gas,Revenue,160648,917,09/06/2014,38.38,Nil,Hardware/Equipment/Supplies,GPC,Not yet available
Wakefield MDC,E08000036,30/06/2014,REGENCULT,L,Cultural and Related Services,ASDA,Fixtures & Fittings,Revenue,160659,642,02/07/2014,4.17,Nil,Grocery Stores/Supermarkets,GPC,Not yet available
Wakefield MDC,E08000036,30/06/2014,REGENCULT,L,Cultural and Related Services,WILKINSON,Fixtures & Fittings,Revenue,160659,640,02/07/2014,5.83,Nil,Household Appliance Stores,GPC,Not yet available
Wakefield MDC,E08000036,30/06/2014,CHILDYOU,4,Children's and Education Services,TESCO,Fixtures & Fittings,Revenue,160652,372,19/06/2014,52.50,Nil,Grocery Stores/Supermarkets,GPC,Not yet available
Wakefield MDC,E08000036,30/06/2014,CHILDYOU,4,Children's and Education Services,ASDA,Fixtures & Fittings,Revenue,160647,2471,03/06/2014,6.67,Nil,Grocery Stores/Supermarkets,GPC,Not yet available
Wakefield MDC,E08000036,30/06/2014,CHILDYOU,4,Children's and Education Services,B & Q,Fixtures & Fittings,Revenue,160649,1733,13/06/2014,4.15,Nil,Lumber/Building Materials Stores,GPC,Not yet available
Wakefield MDC,E08000036,30/06/2014,CHILDYOU,4,Children's and Education Services,B & Q,Fixtures & Fittings,Revenue,160649,1735,13/06/2014,2.48,Nil,Lumber/Building Materials Stores,GPC,Not yet available
Wakefield MDC,E08000036,30/06/2014,CHILDYOU,4,Children's and Education Services,B & Q,Fixtures & Fittings,Revenue,160649,1785,13/06/2014,2.48,Nil,Lumber/Building Materials Stores,GPC,Not yet available
Wakefield MDC,E08000036,30/06/2014,CHILDYOU,4,Children's and Education Services,B & Q,Fixtures & Fittings,Revenue,160649,1856,13/06/2014,2.90,Nil,Lumber/Building Materials Stores,GPC,Not yet available
Wakefield MDC,E08000036,30/06/2014,CHILDYOU,4,Children's and Education Services,B & Q,Fixtures & Fittings,Revenue,160649,1858,13/06/2014,2.90,Nil,Lumber/Building Materials Stores,GPC,Not yet available
Wakefield MDC,E08000036,30/06/2014,CHILDYOU,4,Children's and Education Services,B & Q,Fixtures & Fittings,Revenue,160649,1869,13/06/2014,13.32,Nil,Lumber/Building Materials Stores,GPC,Not yet available
Wakefield MDC,E08000036,30/06/2014,CHILDYOU,4,Children's and Education Services,B & Q,Fixtures & Fittings,Revenue,160649,1976,13/06/2014,9.15,Nil,Lumber/Building Materials Stores,GPC,Not yet available
Wakefield MDC,E08000036,30/06/2014,CHILDYOU,4,Children's and Education Services,BHS,Fixtures & Fittings,Revenue,160649,1176,13/06/2014,42.47,Nil,Department Stores,GPC,Not yet available
Wakefield MDC,E08000036,30/06/2014,CHILDYOU,4,Children's and Education Services,BHS,Fixtures & Fittings,Revenue,160649,1229,13/06/2014,22.91,Nil,Department Stores,GPC,Not yet available
Wakefield MDC,E08000036,30/06/2014,CHILDYOU,4,Children's and Education Services,BHS,Fixtures & Fittings,Revenue,160649,1231,13/06/2014,22.91,Nil,Department Stores,GPC,Not yet available
Wakefield MDC,E08000036,30/06/2014,CHILDYOU,4,Children's and Education Services,BHS,Fixtures & Fittings,Revenue,160649,1296,13/06/2014,24.00,Nil,Department Stores,GPC,Not yet available
Wakefield MDC,E08000036,30/06/2014,CHILDYOU,4,Children's and Education Services,BHS,Fixtures & Fittings,Revenue,160650,313,16/06/2014,87.31,Nil,Department Stores,GPC,Not yet available
Wakefield MDC,E08000036,30/06/2014,CHILDYOU,4,Children's and Education Services,BHS,Fixtures & Fittings,Revenue,160650,425,16/06/2014,22.48,Nil,Department Stores,GPC,Not yet available
Wakefield MDC,E08000036,30/06/2014,CHILDYOU,4,Children's and Education Services,BM RETAIL LTD,Fixtures & Fittings,Revenue,160647,5626,03/06/2014,107.86,Nil,Discount Stores,GPC,Not yet available
Wakefield MDC,E08000036,30/06/2014,CHILDYOU,4,Children's and Education Services,BM RETAIL LTD,Fixtures & Fittings,Revenue,160647,7600,03/06/2014,80.55,Nil,Discount Stores,GPC,Not yet available
Wakefield MDC,E08000036,30/06/2014,CHILDYOU,4,Children's and Education Services,BRITISH HEART FOUNDATION,Fixtures & Fittings,Revenue,160644,2684,14/05/2014,37.50,Nil,Charitable/Social Service Orgs,GPC,Not yet available
Wakefield MDC,E08000036,30/06/2014,CHILDYOU,4,Children's and Education Services,HOME BARGAINS,Fixtures & Fittings,Revenue,160650,321,16/06/2014,57.42,Nil,Hardware Stores,GPC,Not yet available
Wakefield MDC,E08000036,30/06/2014,CHILDYOU,4,Children's and Education Services,HOMEBASE LTD,Fixtures & Fittings,Revenue,160641,2452,02/05/2014,3.16,Nil,Lumber/Building Materials Stores,GPC,Not yet available
Wakefield MDC,E08000036,30/06/2014,CHILDYOU,4,Children's and Education Services,POUNDSTRETCHER,Fixtures & Fittings,Revenue,160647,1387,03/06/2014,24.52,Nil,Household Appliance Stores,GPC,Not yet available
Wakefield MDC,E08000036,30/06/2014,CHILDYOU,4,Children's and Education Services,POUNDSTRETCHER,Fixtures & Fittings,Revenue,160647,8888,03/06/2014,31.62,Nil,Household Appliance Stores,GPC,Not yet available
Wakefield MDC,E08000036,30/06/2014,CHILDYOU,4,Children's and Education Services,POUNDSTRETCHER,Fixtures & Fittings,Revenue,160647,10229,03/06/2014,70.72,Nil,Household Appliance Stores,GPC,Not yet available
Wakefield MDC,E08000036,30/06/2014,CHILDYOU,4,Children's and Education Services,THE YORKSHIRE LINE,Fixtures & Fittings,Revenue,160641,2396,02/05/2014,56.62,Nil,Sewing/Fabric/Needlework/Piece Goods Stores,GPC,Not yet available
Wakefield MDC,E08000036,30/06/2014,CHILDYOU,4,Children's and Education Services,W H SMITH,Fixtures & Fittings,Revenue,160650,427,16/06/2014,32.24,Nil,News Dealers/Newsstands,GPC,Not yet available
Wakefield MDC,E08000036,30/06/2014,CHILDYOU,4,Children's and Education Services,WAKEFIELD HOSPICE LTD,Fixtures & Fittings,Revenue,160644,2421,14/05/2014,16.67,Nil,Charitable/Social Service Orgs,GPC,Not yet available
Wakefield MDC,E08000036,30/06/2014,CHILDYOU,4,Children's and Education Services,WAKEFIELD HOSPICE LTD,Fixtures & Fittings,Revenue,160644,2712,14/05/2014,12.50,Nil,Charitable/Social Service Orgs,GPC,Not yet available
Wakefield MDC,E08000036,30/06/2014,CHILDYOU,4,Children's and Education Services,WILKINSON,Fixtures & Fittings,Revenue,160639,798,14/04/2014,53.75,Nil,Household Appliance Stores,GPC,Not yet available
Wakefield MDC,E08000036,30/06/2014,CHILDYOU,4,Children's and Education Services,ZEX YORKSHIRE LTD,Fixtures & Fittings,Revenue,160647,7644,03/06/2014,87.50,Nil,Household Appliance Stores,GPC,Not yet available
Wakefield MDC,E08000036,30/06/2014,CHILDYOU,4,Children's and Education Services,BM RETAIL LTD,Fixtures & Fittings,Revenue,160647,7829,03/06/2014,73.94,Nil,Discount Stores,GPC,Not yet available
Wakefield MDC,E08000036,30/06/2014,CHILDYOU,4,Children's and Education Services,IKEA,Fixtures & Fittings,Revenue,160651,3186,18/06/2014,11.80,Nil,Misc House Furnishing Specialty Stores,GPC,Not yet available
Wakefield MDC,E08000036,30/06/2014,ADULTS,7,Adult Social Care,GAILARDE LTD,Fixtures & Fittings,Revenue,160647,6025,03/06/2014,220.00,Nil,Misc House Furnishing Specialty Stores,GPC,Not yet available
Wakefield MDC,E08000036,30/06/2014,ADULTS,7,Adult Social Care,GAILARDE LTD,Fixtures & Fittings,Revenue,160647,6129,03/06/2014,47.20,Nil,Misc House Furnishing Specialty Stores,GPC,Not yet available
Wakefield MDC,E08000036,30/06/2014,BUSINESS,9,Non Distributed Costs,S K FUEL LTD,Vehicle Fuel,Revenue,160654,69,24/06/2014,30.00,Nil,Service Stations,GPC,Not yet available
Wakefield MDC,E08000036,30/06/2014,CHILDYOU,4,Children's and Education Services,POST OFFICE COUNTER,Hired Vehicles,Revenue,160652,473,19/06/2014,13.50,Nil,Postal Services - Gov Only,GPC,Not yet available
Wakefield MDC,E08000036,30/06/2014,CHILDYOU,4,Children's and Education Services,ARRIVA,Travel & Public Transport Expenses,Revenue,160639,4051,14/04/2014,107.50,Nil,Bus Lines,GPC,Not yet available
Wakefield MDC,E08000036,30/06/2014,CHILDYOU,4,Children's and Education Services,EC MAINLINE,Travel & Public Transport Expenses,Revenue,160648,942,09/06/2014,23.50,Nil,Passenger Railways,GPC,Not yet available
Wakefield MDC,E08000036,30/06/2014,CHILDYOU,4,Children's and Education Services,ARRIVA,Travel & Public Transport Expenses,Revenue,160643,3501,12/05/2014,80.00,Nil,Bus Lines,GPC,Not yet available
Wakefield MDC,E08000036,30/06/2014,CHILDYOU,4,Children's and Education Services,ARRIVA,Travel & Public Transport Expenses,Revenue,160647,3277,03/06/2014,34.00,Nil,Bus Lines,GPC,Not yet available
Wakefield MDC,E08000036,30/06/2014,CHILDYOU,4,Children's and Education Services,ARRIVA,Travel & Public Transport Expenses,Revenue,160649,1848,13/06/2014,34.00,Nil,Bus Lines,GPC,Not yet available
Wakefield MDC,E08000036,30/06/2014,CHILDYOU,4,Children's and Education Services,EC MAINLINE,Travel & Public Transport Expenses,Revenue,160645,804,14/05/2014,14.40,Nil,Passenger Railways,GPC,Not yet available
Wakefield MDC,E08000036,30/06/2014,CHILDYOU,4,Children's and Education Services,LALS,Travel & Public Transport Expenses,Revenue,160643,3500,12/05/2014,18.00,Nil,General Retail And Wholesale,GPC,Not yet available
Wakefield MDC,E08000036,30/06/2014,CHILDYOU,4,Children's and Education Services,LALS,Travel & Public Transport Expenses,Revenue,160643,3704,12/05/2014,69.00,Nil,General Retail And Wholesale,GPC,Not yet available
Wakefield MDC,E08000036,30/06/2014,CHILDYOU,4,Children's and Education Services,LALS,Travel & Public Transport Expenses,Revenue,160654,424,24/06/2014,69.00,Nil,General Retail And Wholesale,GPC,Not yet available
Wakefield MDC,E08000036,30/06/2014,CHILDYOU,4,Children's and Education Services,LALS,Travel & Public Transport Expenses,Revenue,160654,427,24/06/2014,18.00,Nil,General Retail And Wholesale,GPC,Not yet available
Wakefield MDC,E08000036,30/06/2014,CHILDYOU,4,Children's and Education Services,PARANS MINI MARKET,Travel & Public Transport Expenses,Revenue,160649,605,13/06/2014,18.25,Nil,Grocery Stores/Supermarkets,GPC,Not yet available
Wakefield MDC,E08000036,30/06/2014,CHILDYOU,4,Children's and Education Services,POST OFFICE COUNTER,Travel & Public Transport Expenses,Revenue,160649,404,13/06/2014,80.00,Nil,Postal Services - Gov Only,GPC,Not yet available
Wakefield MDC,E08000036,30/06/2014,CHILDYOU,4,Children's and Education Services,POST OFFICE COUNTER,Travel & Public Transport Expenses,Revenue,160649,1762,13/06/2014,5.50,Nil,Postal Services - Gov Only,GPC,Not yet available
Wakefield MDC,E08000036,30/06/2014,CHILDYOU,4,Children's and Education Services,THE POST OFFICE,Travel & Public Transport Expenses,Revenue,160643,3295,12/05/2014,80.00,Nil,Postal Services - Gov Only,GPC,Not yet available
Wakefield MDC,E08000036,30/06/2014,CHILDYOU,4,Children's and Education Services,THE POST OFFICE,Travel & Public Transport Expenses,Revenue,160654,422,24/06/2014,80.00,Nil,Postal Services - Gov Only,GPC,Not yet available
Wakefield MDC,E08000036,30/06/2014,CHILDYOU,4,Children's and Education Services,TRAINLINE,Travel & Public Transport Expenses,Revenue,160649,2086,13/06/2014,95.88,Nil,Passenger Railways,GPC,Not yet available
Wakefield MDC,E08000036,30/06/2014,REGENCULT,5,Highways & Transport Services,TRAINLINE,Travel & Public Transport Expenses,Revenue,160649,1635,13/06/2014,312.63,Nil,Passenger Railways,GPC,Not yet available
Wakefield MDC,E08000036,30/06/2014,REGENCULT,L,Cultural and Related Services,COLUMBUS TRAINLINE,Travel & Public Transport Expenses,Revenue,160643,787,12/05/2014,2.00,Nil,Passenger Railways,GPC,Not yet available
Wakefield MDC,E08000036,30/06/2014,REGENCULT,L,Cultural and Related Services,COLUMBUS TRAINLINE,Travel & Public Transport Expenses,Revenue,160643,788,12/05/2014,2.00,Nil,Passenger Railways,GPC,Not yet available
Wakefield MDC,E08000036,30/06/2014,REGENCULT,L,Cultural and Related Services,TRAINLINE,Travel & Public Transport Expenses,Revenue,160643,789,12/05/2014,182.89,Nil,Passenger Railways,GPC,Not yet available
Wakefield MDC,E08000036,30/06/2014,BUSINESS,A,Net (Surplus) / Deficit of Trading Operations,TRAINLINE,Travel & Public Transport Expenses,Revenue,160647,502,03/06/2014,309.57,Nil,Passenger Railways,GPC,Not yet available
Wakefield MDC,E08000036,30/06/2014,BUSINESS,A,Net (Surplus) / Deficit of Trading Operations,TRAINLINE,Travel & Public Transport Expenses,Revenue,160649,102,13/06/2014,104.65,Nil,Passenger Railways,GPC,Not yet available
Wakefield MDC,E08000036,30/06/2014,BUSINESS,8,Corporate and Democratic Core,EC MAINLINE,Travel & Public Transport Expenses,Revenue,160659,2,02/07/2014,160.25,Nil,Passenger Railways,GPC,Not yet available
Wakefield MDC,E08000036,30/06/2014,CHILDYOU,4,Children's and Education Services,EC MAINLINE ,Travel & Public Transport Expenses,Revenue,160647,9440,03/06/2014,165.40,Nil,Passenger Railways,GPC,Not yet available
Wakefield MDC,E08000036,30/06/2014,CHILDYOU,4,Children's and Education Services,CROSS COUNTRY,Travel & Public Transport Expenses,Revenue,160649,1281,13/06/2014,100.00,Nil,Passenger Railways,GPC,Not yet available
Wakefield MDC,E08000036,30/06/2014,CHILDYOU,4,Children's and Education Services,EC MAINLINE,Travel & Public Transport Expenses,Revenue,160647,4811,03/06/2014,149.00,Nil,Passenger Railways,GPC,Not yet available
Wakefield MDC,E08000036,30/06/2014,CHILDYOU,4,Children's and Education Services,EC MAINLINE,Travel & Public Transport Expenses,Revenue,160647,7635,03/06/2014,145.00,Nil,Passenger Railways,GPC,Not yet available
Wakefield MDC,E08000036,30/06/2014,ADULTS,P,Public Health,EC MAINLINE,Travel & Public Transport Expenses,Revenue,160641,529,02/05/2014,132.30,Nil,Passenger Railways,GPC,Not yet available
Wakefield MDC,E08000036,30/06/2014,CHILDYOU,4,Children's and Education Services,TRAINLINE,Travel & Public Transport Expenses,Revenue,160642,1479,07/05/2014,158.61,Nil,Passenger Railways,GPC,Not yet available
Wakefield MDC,E08000036,30/06/2014,ADULTS,4,Children's and Education Services,TRAINLINE,Travel & Public Transport Expenses,Revenue,160648,2126,09/06/2014,246.84,Nil,Passenger Railways,GPC,Not yet available
Wakefield MDC,E08000036,30/06/2014,ADULTS,4,Children's and Education Services,TRAINLINE,Travel & Public Transport Expenses,Revenue,160648,2127,09/06/2014,192.47,Nil,Passenger Railways,GPC,Not yet available
Wakefield MDC,E08000036,30/06/2014,ADULTS,4,Children's and Education Services,TRAINLINE,Travel & Public Transport Expenses,Revenue,160648,2134,09/06/2014,10.30,Nil,Passenger Railways,GPC,Not yet available
Wakefield MDC,E08000036,30/06/2014,ADULTS,7,Adult Social Care,EC MAINLINE,Travel & Public Transport Expenses,Revenue,160647,4810,03/06/2014,339.00,Nil,Passenger Railways,GPC,Not yet available
Wakefield MDC,E08000036,30/06/2014,ADULTS,P,Public Health,EC MAINLINE,Travel & Public Transport Expenses,Revenue,160649,1495,13/06/2014,60.80,Nil,Passenger Railways,GPC,Not yet available
Wakefield MDC,E08000036,30/06/2014,ADULTS,P,Public Health,EC MAINLINE,Travel & Public Transport Expenses,Revenue,160649,1512,13/06/2014,13.30,Nil,Passenger Railways,GPC,Not yet available
Wakefield MDC,E08000036,30/06/2014,ADULTS,P,Public Health,EC MAINLINE,Travel & Public Transport Expenses,Revenue,160649,1513,13/06/2014,13.50,Nil,Passenger Railways,GPC,Not yet available
Wakefield MDC,E08000036,30/06/2014,ADULTS,P,Public Health,EC MAINLINE,Travel & Public Transport Expenses,Revenue,160649,1613,13/06/2014,26.60,Nil,Passenger Railways,GPC,Not yet available
Wakefield MDC,E08000036,30/06/2014,ADULTS,P,Public Health,EC MAINLINE,Travel & Public Transport Expenses,Revenue,160649,1614,13/06/2014,188.20,Nil,Passenger Railways,GPC,Not yet available
Wakefield MDC,E08000036,30/06/2014,ADULTS,P,Public Health,EC MAINLINE,Travel & Public Transport Expenses,Revenue,160649,1615,13/06/2014,13.30,Nil,Passenger Railways,GPC,Not yet available
Wakefield MDC,E08000036,30/06/2014,ADULTS,P,Public Health,EC MAINLINE,Travel & Public Transport Expenses,Revenue,160649,1652,13/06/2014,26.60,Nil,Passenger Railways,GPC,Not yet available
Wakefield MDC,E08000036,30/06/2014,ADULTS,P,Public Health,EC MAINLINE,Travel & Public Transport Expenses,Revenue,160649,1654,13/06/2014,12.60,Nil,Passenger Railways,GPC,Not yet available
Wakefield MDC,E08000036,30/06/2014,ADULTS,P,Public Health,EC MAINLINE,Travel & Public Transport Expenses,Revenue,160640,307,25/04/2014,174.00,Nil,Passenger Railways,GPC,Not yet available
Wakefield MDC,E08000036,30/06/2014,ADULTS,P,Public Health,EC MAINLINE,Travel & Public Transport Expenses,Revenue,160649,1653,13/06/2014,174.45,Nil,Passenger Railways,GPC,Not yet available
Wakefield MDC,E08000036,30/06/2014,ADULTS,P,Public Health,EC MAINLINE,Travel & Public Transport Expenses,Revenue,160658,447,30/06/2014,9.50,Nil,Passenger Railways,GPC,Not yet available
Wakefield MDC,E08000036,30/06/2014,ADULTS,P,Public Health,HORSFORTH STN,Travel & Public Transport Expenses,Revenue,160658,445,30/06/2014,178.00,Nil,Passenger Railways,GPC,Not yet available
Wakefield MDC,E08000036,30/06/2014,ADULTS,P,Public Health,LUL TICKET MACHINE ,Travel & Public Transport Expenses,Revenue,160658,444,30/06/2014,8.90,Nil,Auto Parking Lots/Garages,GPC,Not yet available
Wakefield MDC,E08000036,30/06/2014,ADULTS,P,Public Health,LUL TICKET MACHINE ,Travel & Public Transport Expenses,Revenue,160658,446,30/06/2014,4.70,Nil,Auto Parking Lots/Garages,GPC,Not yet available
Wakefield MDC,E08000036,30/06/2014,ADULTS,P,Public Health,LUL TICKET MACHINE ,Travel & Public Transport Expenses,Revenue,160658,448,30/06/2014,8.90,Nil,Auto Parking Lots/Garages,GPC,Not yet available
Wakefield MDC,E08000036,30/06/2014,ADULTS,P,Public Health,NORTHERN RAIL,Travel & Public Transport Expenses,Revenue,160656,1305,26/06/2014,6.60,Nil,Passenger Railways,GPC,Not yet available
Wakefield MDC,E08000036,30/06/2014,ADULTS,P,Public Health,EC MAINLINE,Travel & Public Transport Expenses,Revenue,160640,305,25/04/2014,79.40,Nil,Passenger Railways,GPC,Not yet available
Wakefield MDC,E08000036,30/06/2014,ADULTS,P,Public Health,EC MAINLINE,Travel & Public Transport Expenses,Revenue,160640,306,25/04/2014,79.40,Nil,Passenger Railways,GPC,Not yet available
Wakefield MDC,E08000036,30/06/2014,ADULTS,P,Public Health,TRAINLINE,Travel & Public Transport Expenses,Revenue,160647,3416,03/06/2014,87.11,Nil,Passenger Railways,GPC,Not yet available
Wakefield MDC,E08000036,30/06/2014,ADULTS,P,Public Health,TRAINLINE,Travel & Public Transport Expenses,Revenue,160656,1303,26/06/2014,148.31,Nil,Passenger Railways,GPC,Not yet available
Wakefield MDC,E08000036,30/06/2014,ADULTS,P,Public Health,TRAINLINE,Travel & Public Transport Expenses,Revenue,160656,1304,26/06/2014,-73.90,Nil,Passenger Railways,GPC,Not yet available
Wakefield MDC,E08000036,30/06/2014,REGENCULT,N,Planning Services,EC MAINLINE,Travel & Public Transport Expenses,Revenue,160652,210,19/06/2014,4.83,Nil,Passenger Railways,GPC,Not yet available
Wakefield MDC,E08000036,30/06/2014,REGENCULT,N,Planning Services,EC MAINLINE,Travel & Public Transport Expenses,Revenue,160652,216,19/06/2014,4.83,Nil,Passenger Railways,GPC,Not yet available
Wakefield MDC,E08000036,30/06/2014,CHILDYOU,4,Children's and Education Services,TRAINLINE,Travel & Public Transport Expenses,Revenue,160642,367,07/05/2014,188.19,Nil,Passenger Railways,GPC,Not yet available
Wakefield MDC,E08000036,30/06/2014,BUSINESS,8,Corporate and Democratic Core,EC MAINLINE,Travel & Public Transport Expenses,Revenue,160648,2199,09/06/2014,106.80,Nil,Passenger Railways,GPC,Not yet available
Wakefield MDC,E08000036,30/06/2014,BUSINESS,8,Corporate and Democratic Core,Q PARK,Travel & Public Transport Expenses,Revenue,160648,2227,09/06/2014,14.00,Nil,Auto Parking Lots/Garages,GPC,Not yet available
Wakefield MDC,E08000036,30/06/2014,BUSINESS,8,Corporate and Democratic Core,TRAINLINE,Travel & Public Transport Expenses,Revenue,160648,1888,09/06/2014,255.51,Nil,Passenger Railways,GPC,Not yet available
Wakefield MDC,E08000036,30/06/2014,BUSINESS,8,Corporate and Democratic Core,TRAINLINE,Travel & Public Transport Expenses,Revenue,160648,1889,09/06/2014,204.51,Nil,Passenger Railways,GPC,Not yet available
Wakefield MDC,E08000036,30/06/2014,BUSINESS,8,Corporate and Democratic Core,TRAINLINE,Travel & Public Transport Expenses,Revenue,160648,1890,09/06/2014,-189.00,Nil,Passenger Railways,GPC,Not yet available
Wakefield MDC,E08000036,30/06/2014,BUSINESS,A,Net (Surplus) / Deficit of Trading Operations,TRAINLINE,Travel & Public Transport Expenses,Revenue,160649,101,13/06/2014,26.62,Nil,Passenger Railways,GPC,Not yet available
Wakefield MDC,E08000036,30/06/2014,BUSINESS,A,Net (Surplus) / Deficit of Trading Operations,TRAINLINE,Travel & Public Transport Expenses,Revenue,160649,103,13/06/2014,76.09,Nil,Passenger Railways,GPC,Not yet available
Wakefield MDC,E08000036,30/06/2014,BUSINESS,A,Net (Surplus) / Deficit of Trading Operations,TRAINLINE,Travel & Public Transport Expenses,Revenue,160649,209,13/06/2014,29.68,Nil,Passenger Railways,GPC,Not yet available
Wakefield MDC,E08000036,30/06/2014,ADULTS,N,Planning Services,EC MAINLINE,Travel & Public Transport Expenses,Revenue,160643,1329,12/05/2014,257.90,Nil,Passenger Railways,GPC,Not yet available
Wakefield MDC,E08000036,30/06/2014,REGENCULT,6,Housing Services,EC MAINLINE,Travel & Public Transport Expenses,Revenue,160650,1189,16/06/2014,42.46,Nil,Passenger Railways,GPC,Not yet available
Wakefield MDC,E08000036,30/06/2014,REGENCULT,6,Housing Services,FRENCHGATE SHOPPING PK,Travel & Public Transport Expenses,Revenue,160648,1517,09/06/2014,9.17,Nil,Auto Parking Lots/Garages,GPC,Not yet available
Wakefield MDC,E08000036,30/06/2014,REGENCULT,6,Housing Services,NORTHERN RAIL,Travel & Public Transport Expenses,Revenue,160650,1195,16/06/2014,3.30,Nil,Passenger Railways,GPC,Not yet available
Wakefield MDC,E08000036,30/06/2014,REGENCULT,6,Housing Services,TRAINLINE,Travel & Public Transport Expenses,Revenue,160650,1082,16/06/2014,13.46,Nil,Passenger Railways,GPC,Not yet available
Wakefield MDC,E08000036,30/06/2014,REGENCULT,6,Housing Services,TRAINLINE,Travel & Public Transport Expenses,Revenue,160650,1112,16/06/2014,18.87,Nil,Passenger Railways,GPC,Not yet available
Wakefield MDC,E08000036,30/06/2014,REGENCULT,6,Housing Services,TRAINLINE,Travel & Public Transport Expenses,Revenue,160650,1188,16/06/2014,108.63,Nil,Passenger Railways,GPC,Not yet available
Wakefield MDC,E08000036,30/06/2014,REGENCULT,6,Housing Services,TRAINLINE,Travel & Public Transport Expenses,Revenue,160650,1196,16/06/2014,139.13,Nil,Passenger Railways,GPC,Not yet available
Wakefield MDC,E08000036,30/06/2014,REGENCULT,6,Housing Services,TRAINLINE,Travel & Public Transport Expenses,Revenue,160650,1299,16/06/2014,272.85,Nil,Passenger Railways,GPC,Not yet available
Wakefield MDC,E08000036,30/06/2014,REGENCULT,6,Housing Services,TRAINLINE,Travel & Public Transport Expenses,Revenue,160650,1300,16/06/2014,102.51,Nil,Passenger Railways,GPC,Not yet available
Wakefield MDC,E08000036,30/06/2014,REGENCULT,6,Housing Services,TRINITY MSCP,Travel & Public Transport Expenses,Revenue,160648,1606,09/06/2014,7.00,Nil,Auto Parking Lots/Garages,GPC,Not yet available
Wakefield MDC,E08000036,30/06/2014,REGENCULT,6,Housing Services,TRINITY MSCP,Travel & Public Transport Expenses,Revenue,160648,1607,09/06/2014,8.50,Nil,Auto Parking Lots/Garages,GPC,Not yet available
Wakefield MDC,E08000036,30/06/2014,REGENCULT,6,Housing Services,TRINITY MSCP,Travel & Public Transport Expenses,Revenue,160648,1608,09/06/2014,7.00,Nil,Auto Parking Lots/Garages,GPC,Not yet available
Wakefield MDC,E08000036,30/06/2014,REGENCULT,N,Planning Services,EC MAINLINE,Travel & Public Transport Expenses,Revenue,160652,212,19/06/2014,4.83,Nil,Passenger Railways,GPC,Not yet available
Wakefield MDC,E08000036,30/06/2014,REGENCULT,N,Planning Services,EC MAINLINE,Travel & Public Transport Expenses,Revenue,160652,214,19/06/2014,3.58,Nil,Passenger Railways,GPC,Not yet available
Wakefield MDC,E08000036,30/06/2014,REGENCULT,N,Planning Services,TRAINLINE,Travel & Public Transport Expenses,Revenue,160651,3092,18/06/2014,51.31,Nil,Passenger Railways,GPC,Not yet available
Wakefield MDC,E08000036,30/06/2014,REGENCULT,N,Planning Services,TRAINLINE,Travel & Public Transport Expenses,Revenue,160651,3337,18/06/2014,84.25,Nil,Passenger Railways,GPC,Not yet available
Wakefield MDC,E08000036,30/06/2014,REGENCULT,N,Planning Services,TRAINLINE,Travel & Public Transport Expenses,Revenue,160651,3534,18/06/2014,9.49,Nil,Passenger Railways,GPC,Not yet available
Wakefield MDC,E08000036,30/06/2014,REGENCULT,N,Planning Services,TRAINLINE,Travel & Public Transport Expenses,Revenue,160651,3586,18/06/2014,7.45,Nil,Passenger Railways,GPC,Not yet available
Wakefield MDC,E08000036,30/06/2014,REGENCULT,N,Planning Services,TRAINLINE,Travel & Public Transport Expenses,Revenue,160651,3587,18/06/2014,5.92,Nil,Passenger Railways,GPC,Not yet available
Wakefield MDC,E08000036,30/06/2014,REGENCULT,N,Planning Services,TRAINLINE,Travel & Public Transport Expenses,Revenue,160651,3588,18/06/2014,9.49,Nil,Passenger Railways,GPC,Not yet available
Wakefield MDC,E08000036,30/06/2014,REGENCULT,N,Planning Services,TRAINLINE,Travel & Public Transport Expenses,Revenue,160653,802,23/06/2014,18.97,Nil,Passenger Railways,GPC,Not yet available
Wakefield MDC,E08000036,30/06/2014,REGENCULT,N,Planning Services,TRAINLINE,Travel & Public Transport Expenses,Revenue,160653,803,23/06/2014,9.49,Nil,Passenger Railways,GPC,Not yet available
Wakefield MDC,E08000036,30/06/2014,REGENCULT,N,Planning Services,EC MAINLINE,Travel & Public Transport Expenses,Revenue,160643,3605,12/05/2014,5.80,Nil,Passenger Railways,GPC,Not yet available
Wakefield MDC,E08000036,30/06/2014,REGENCULT,N,Planning Services,EC MAINLINE,Travel & Public Transport Expenses,Revenue,160648,894,09/06/2014,124.50,Nil,Passenger Railways,GPC,Not yet available
Wakefield MDC,E08000036,30/06/2014,REGENCULT,N,Planning Services,TRAINLINE,Travel & Public Transport Expenses,Revenue,160643,1188,12/05/2014,100.57,Nil,Passenger Railways,GPC,Not yet available
Wakefield MDC,E08000036,30/06/2014,REGENCULT,L,Cultural and Related Services,EC MAINLINE,Travel & Public Transport Expenses,Revenue,160647,3034,03/06/2014,55.25,Nil,Passenger Railways,GPC,Not yet available
Wakefield MDC,E08000036,30/06/2014,ADULTS,4,Children's and Education Services,LUL TICKET MACHINE ,Travel & Public Transport Expenses,Revenue,160643,2683,12/05/2014,4.70,Nil,Auto Parking Lots/Garages,GPC,Not yet available
Wakefield MDC,E08000036,30/06/2014,ADULTS,4,Children's and Education Services,NORTHERN RAIL,Travel & Public Transport Expenses,Revenue,160643,2319,12/05/2014,7.70,Nil,Passenger Railways,GPC,Not yet available
Wakefield MDC,E08000036,30/06/2014,REGENCULT,M,Environmental and Regulatory Services,EAST COAST TRAINS,Travel & Public Transport Expenses,Revenue,160644,26,14/05/2014,66.00,Nil,Passenger Railways,GPC,Not yet available
Wakefield MDC,E08000036,30/06/2014,REGENCULT,M,Environmental and Regulatory Services,EAST COAST TRAINS,Travel & Public Transport Expenses,Revenue,160647,4585,03/06/2014,234.00,Nil,Passenger Railways,GPC,Not yet available
Wakefield MDC,E08000036,30/06/2014,REGENCULT,M,Environmental and Regulatory Services,EAST COAST TRAINS,Travel & Public Transport Expenses,Revenue,160647,4613,03/06/2014,45.60,Nil,Passenger Railways,GPC,Not yet available
Wakefield MDC,E08000036,30/06/2014,REGENCULT,M,Environmental and Regulatory Services,Q PARK THE LIGHT,Travel & Public Transport Expenses,Revenue,160649,228,13/06/2014,10.00,Nil,Auto Parking Lots/Garages,GPC,Not yet available
Wakefield MDC,E08000036,30/06/2014,REGENCULT,M,Environmental and Regulatory Services,CROSS COUNTRY,Travel & Public Transport Expenses,Revenue,160656,527,26/06/2014,11.30,Nil,Passenger Railways,GPC,Not yet available
Wakefield MDC,E08000036,30/06/2014,REGENCULT,M,Environmental and Regulatory Services,EC MAINLINE,Travel & Public Transport Expenses,Revenue,160640,153,25/04/2014,78.40,Nil,Passenger Railways,GPC,Not yet available
Wakefield MDC,E08000036,30/06/2014,REGENCULT,M,Environmental and Regulatory Services,EC MAINLINE,Travel & Public Transport Expenses,Revenue,160640,154,25/04/2014,88.20,Nil,Passenger Railways,GPC,Not yet available
Wakefield MDC,E08000036,30/06/2014,REGENCULT,M,Environmental and Regulatory Services,EC MAINLINE,Travel & Public Transport Expenses,Revenue,160643,4171,12/05/2014,71.65,Nil,Passenger Railways,GPC,Not yet available
Wakefield MDC,E08000036,30/06/2014,REGENCULT,M,Environmental and Regulatory Services,EC MAINLINE,Travel & Public Transport Expenses,Revenue,160656,525,26/06/2014,95.55,Nil,Passenger Railways,GPC,Not yet available
Wakefield MDC,E08000036,30/06/2014,REGENCULT,M,Environmental and Regulatory Services,NORTHERN RAIL,Travel & Public Transport Expenses,Revenue,160656,526,26/06/2014,26.60,Nil,Passenger Railways,GPC,Not yet available
Wakefield MDC,E08000036,30/06/2014,REGENCULT,M,Environmental and Regulatory Services,OYSTER ISSUE,Travel & Public Transport Expenses,Revenue,160643,3889,12/05/2014,55.00,Nil,Passenger Railways,GPC,Not yet available
Wakefield MDC,E08000036,30/06/2014,REGENCULT,M,Environmental and Regulatory Services,TRAINLINE,Travel & Public Transport Expenses,Revenue,160640,156,25/04/2014,60.79,Nil,Passenger Railways,GPC,Not yet available
Wakefield MDC,E08000036,30/06/2014,CHILDYOU,4,Children's and Education Services,CHOPD LTD,Travel & Public Transport Expenses,Revenue,160652,395,19/06/2014,6.75,Nil,Restaurants And Bars,GPC,Not yet available
Wakefield MDC,E08000036,30/06/2014,CHILDYOU,4,Children's and Education Services,EAST MIDLANDS TRAINS,Travel & Public Transport Expenses,Revenue,160652,393,19/06/2014,16.70,Nil,Passenger Railways,GPC,Not yet available
Wakefield MDC,E08000036,30/06/2014,CHILDYOU,4,Children's and Education Services,EC MAINLINE,Travel & Public Transport Expenses,Revenue,160652,284,19/06/2014,3.58,Nil,Passenger Railways,GPC,Not yet available
Wakefield MDC,E08000036,30/06/2014,CHILDYOU,4,Children's and Education Services,EC MAINLINE ,Travel & Public Transport Expenses,Revenue,160652,392,19/06/2014,11.40,Nil,Passenger Railways,GPC,Not yet available
Wakefield MDC,E08000036,30/06/2014,CHILDYOU,4,Children's and Education Services,NORTHERN RAIL,Travel & Public Transport Expenses,Revenue,160652,276,19/06/2014,6.42,Nil,Passenger Railways,GPC,Not yet available
Wakefield MDC,E08000036,30/06/2014,CHILDYOU,4,Children's and Education Services,NORTHERN RAIL,Travel & Public Transport Expenses,Revenue,160652,278,19/06/2014,6.42,Nil,Passenger Railways,GPC,Not yet available
Wakefield MDC,E08000036,30/06/2014,CHILDYOU,4,Children's and Education Services,ONE STOP,Travel & Public Transport Expenses,Revenue,160652,335,19/06/2014,14.58,Nil,Grocery Stores/Supermarkets,GPC,Not yet available
Wakefield MDC,E08000036,30/06/2014,CHILDYOU,4,Children's and Education Services,POST OFFICE COUNTER,Travel & Public Transport Expenses,Revenue,160652,302,19/06/2014,102.00,Nil,Postal Services - Gov Only,GPC,Not yet available
Wakefield MDC,E08000036,30/06/2014,CHILDYOU,4,Children's and Education Services,POST OFFICE COUNTER,Travel & Public Transport Expenses,Revenue,160652,327,19/06/2014,18.00,Nil,Postal Services - Gov Only,GPC,Not yet available
Wakefield MDC,E08000036,30/06/2014,CHILDYOU,4,Children's and Education Services,POST OFFICE COUNTER,Travel & Public Transport Expenses,Revenue,160652,363,19/06/2014,17.50,Nil,Postal Services - Gov Only,GPC,Not yet available
Wakefield MDC,E08000036,30/06/2014,CHILDYOU,4,Children's and Education Services,POST OFFICE COUNTER,Travel & Public Transport Expenses,Revenue,160652,477,19/06/2014,16.50,Nil,Postal Services - Gov Only,GPC,Not yet available
Wakefield MDC,E08000036,30/06/2014,CHILDYOU,4,Children's and Education Services,Q PARK SHEFFIELD STATION,Travel & Public Transport Expenses,Revenue,160652,390,19/06/2014,12.50,Nil,Auto Parking Lots/Garages,GPC,Not yet available
Wakefield MDC,E08000036,30/06/2014,CHILDYOU,4,Children's and Education Services,TRAINLINE,Travel & Public Transport Expenses,Revenue,160642,1150,07/05/2014,132.50,Nil,Passenger Railways,GPC,Not yet available
Wakefield MDC,E08000036,30/06/2014,CHILDYOU,4,Children's and Education Services,TRAINLINE,Travel & Public Transport Expenses,Revenue,160652,389,19/06/2014,208.59,Nil,Passenger Railways,GPC,Not yet available
Wakefield MDC,E08000036,30/06/2014,CHILDYOU,4,Children's and Education Services,TRAINLINE,Travel & Public Transport Expenses,Revenue,160652,394,19/06/2014,232.56,Nil,Passenger Railways,GPC,Not yet available
Wakefield MDC,E08000036,30/06/2014,CHILDYOU,4,Children's and Education Services,ARRIVA,Travel & Public Transport Expenses,Revenue,160639,876,14/04/2014,21.50,Nil,Bus Lines,GPC,Not yet available
Wakefield MDC,E08000036,30/06/2014,CHILDYOU,4,Children's and Education Services,ARRIVA,Travel & Public Transport Expenses,Revenue,160639,3919,14/04/2014,21.50,Nil,Bus Lines,GPC,Not yet available
Wakefield MDC,E08000036,30/06/2014,CHILDYOU,4,Children's and Education Services,ARRIVA,Travel & Public Transport Expenses,Revenue,160644,909,14/05/2014,55.00,Nil,Bus Lines,GPC,Not yet available
Wakefield MDC,E08000036,30/06/2014,CHILDYOU,4,Children's and Education Services,ARRIVA,Travel & Public Transport Expenses,Revenue,160647,1452,03/06/2014,68.75,Nil,Bus Lines,GPC,Not yet available
Wakefield MDC,E08000036,30/06/2014,CHILDYOU,4,Children's and Education Services,HARVEYS,Travel & Public Transport Expenses,Revenue,160650,415,16/06/2014,32.30,Nil,Restaurants And Bars,GPC,Not yet available
Wakefield MDC,E08000036,30/06/2014,CHILDYOU,4,Children's and Education Services,POST OFFICE COUNTER,Travel & Public Transport Expenses,Revenue,160639,1880,14/04/2014,45.00,Nil,Postal Services - Gov Only,GPC,Not yet available
Wakefield MDC,E08000036,30/06/2014,CHILDYOU,4,Children's and Education Services,POST OFFICE COUNTER,Travel & Public Transport Expenses,Revenue,160641,1610,02/05/2014,67.50,Nil,Postal Services - Gov Only,GPC,Not yet available
Wakefield MDC,E08000036,30/06/2014,CHILDYOU,4,Children's and Education Services,POST OFFICE COUNTER,Travel & Public Transport Expenses,Revenue,160647,438,03/06/2014,68.75,Nil,Postal Services - Gov Only,GPC,Not yet available
Wakefield MDC,E08000036,30/06/2014,CHILDYOU,4,Children's and Education Services,POST OFFICE COUNTER,Travel & Public Transport Expenses,Revenue,160648,1568,09/06/2014,91.67,Nil,Postal Services - Gov Only,GPC,Not yet available
Wakefield MDC,E08000036,30/06/2014,CHILDYOU,4,Children's and Education Services,POST OFFICE COUNTER,Travel & Public Transport Expenses,Revenue,160656,1202,26/06/2014,64.17,Nil,Postal Services - Gov Only,GPC,Not yet available
Wakefield MDC,E08000036,30/06/2014,CHILDYOU,4,Children's and Education Services,POST OFFICE COUNTER,Travel & Public Transport Expenses,Revenue,160656,1219,26/06/2014,45.83,Nil,Postal Services - Gov Only,GPC,Not yet available
Wakefield MDC,E08000036,30/06/2014,CHILDYOU,4,Children's and Education Services,TRINITY WALK,Travel & Public Transport Expenses,Revenue,160647,3287,03/06/2014,0.67,Nil,Auto Parking Lots/Garages,GPC,Not yet available
Wakefield MDC,E08000036,30/06/2014,CHILDYOU,4,Children's and Education Services,ASDA,Travel & Public Transport Expenses,Revenue,160653,1225,23/06/2014,81.06,Nil,Grocery Stores/Supermarkets,GPC,Not yet available
Wakefield MDC,E08000036,30/06/2014,CHILDYOU,4,Children's and Education Services,DRIVER-THEORY-TEST,Travel & Public Transport Expenses,Revenue,160653,189,23/06/2014,55.50,Nil,Professional Services - Not Elsewhere Classified,GPC,Not yet available
Wakefield MDC,E08000036,30/06/2014,CHILDYOU,4,Children's and Education Services,HOPE TOWN POST OFFICE,Travel & Public Transport Expenses,Revenue,160653,1226,23/06/2014,35.50,Nil,Grocery Stores/Supermarkets,GPC,Not yet available
Wakefield MDC,E08000036,30/06/2014,CHILDYOU,4,Children's and Education Services,POST OFFICE COUNTER,Travel & Public Transport Expenses,Revenue,160647,2041,03/06/2014,82.50,Nil,Postal Services - Gov Only,GPC,Not yet available
Wakefield MDC,E08000036,30/06/2014,CHILDYOU,4,Children's and Education Services,POST OFFICE COUNTER,Travel & Public Transport Expenses,Revenue,160647,4622,03/06/2014,34.00,Nil,Postal Services - Gov Only,GPC,Not yet available
Wakefield MDC,E08000036,30/06/2014,CHILDYOU,4,Children's and Education Services,POST OFFICE COUNTER,Travel & Public Transport Expenses,Revenue,160649,597,13/06/2014,110.00,Nil,Postal Services - Gov Only,GPC,Not yet available
Wakefield MDC,E08000036,30/06/2014,CHILDYOU,4,Children's and Education Services,POST OFFICE COUNTER,Travel & Public Transport Expenses,Revenue,160649,598,13/06/2014,110.00,Nil,Postal Services - Gov Only,GPC,Not yet available
Wakefield MDC,E08000036,30/06/2014,CHILDYOU,4,Children's and Education Services,POST OFFICE COUNTER,Travel & Public Transport Expenses,Revenue,160649,1805,13/06/2014,55.00,Nil,Postal Services - Gov Only,GPC,Not yet available
Wakefield MDC,E08000036,30/06/2014,CHILDYOU,4,Children's and Education Services,POST OFFICE COUNTER,Travel & Public Transport Expenses,Revenue,160653,32,23/06/2014,9.50,Nil,Postal Services - Gov Only,GPC,Not yet available
Wakefield MDC,E08000036,30/06/2014,CHILDYOU,4,Children's and Education Services,UKANKAN,Travel & Public Transport Expenses,Revenue,160642,1339,07/05/2014,101.75,Nil,Passenger Railways,GPC,Not yet available
Wakefield MDC,E08000036,30/06/2014,CHILDYOU,4,Children's and Education Services,CO-OP GROUP PETROL,Travel & Public Transport Expenses,Revenue,160649,1259,13/06/2014,25.00,Nil,Automotive Fuel,GPC,Not yet available
Wakefield MDC,E08000036,30/06/2014,CHILDYOU,4,Children's and Education Services,LTH NHST CAR PARKS,Travel & Public Transport Expenses,Revenue,160643,2871,12/05/2014,2.80,Nil,Auto Parking Lots/Garages,GPC,Not yet available
Wakefield MDC,E08000036,30/06/2014,CHILDYOU,4,Children's and Education Services,TFL CC/LEZ CHARGE,Travel & Public Transport Expenses,Revenue,160649,2048,13/06/2014,12.00,Nil,Auto Parking Lots/Garages,GPC,Not yet available
Wakefield MDC,E08000036,30/06/2014,CHILDYOU,4,Children's and Education Services,FLYBE,Travel & Public Transport Expenses,Revenue,160647,9094,03/06/2014,187.59,Nil,Airlines And Air Carriers - Not Elsewhere Classified,GPC,Not yet available
Wakefield MDC,E08000036,30/06/2014,CHILDYOU,4,Children's and Education Services,VIRGIN TRAINS,Travel & Public Transport Expenses,Revenue,160648,265,09/06/2014,67.00,Nil,Passenger Railways,GPC,Not yet available
Wakefield MDC,E08000036,30/06/2014,CHILDYOU,4,Children's and Education Services,VIRGIN TRAINS,Travel & Public Transport Expenses,Revenue,160648,395,09/06/2014,79.30,Nil,Passenger Railways,GPC,Not yet available
Wakefield MDC,E08000036,30/06/2014,CHILDYOU,4,Children's and Education Services,BULL HOTEL,Travel & Public Transport Expenses,Revenue,160647,9100,03/06/2014,79.17,Nil,Hotels And Accommodation,GPC,Not yet available
Wakefield MDC,E08000036,30/06/2014,CHILDYOU,4,Children's and Education Services,TRAINLINE,Travel & Public Transport Expenses,Revenue,160648,2495,09/06/2014,139.64,Nil,Passenger Railways,GPC,Not yet available
Wakefield MDC,E08000036,30/06/2014,CHILDYOU,4,Children's and Education Services,VIRGIN TRAINS,Travel & Public Transport Expenses,Revenue,160647,2320,03/06/2014,221.40,Nil,Passenger Railways,GPC,Not yet available
Wakefield MDC,E08000036,30/06/2014,CHILDYOU,4,Children's and Education Services,AURIGNY,Travel & Public Transport Expenses,Revenue,160648,247,09/06/2014,169.00,Nil,Airlines And Air Carriers - Not Elsewhere Classified,GPC,Not yet available
Wakefield MDC,E08000036,30/06/2014,CHILDYOU,4,Children's and Education Services,EASTERN AIRWAYS,Travel & Public Transport Expenses,Revenue,160644,3347,14/05/2014,265.70,Nil,Airlines And Air Carriers - Not Elsewhere Classified,GPC,Not yet available
Wakefield MDC,E08000036,30/06/2014,CHILDYOU,4,Children's and Education Services,EC MAINLINE,Travel & Public Transport Expenses,Revenue,160644,342,14/05/2014,264.22,Nil,Passenger Railways,GPC,Not yet available
Wakefield MDC,E08000036,30/06/2014,CHILDYOU,4,Children's and Education Services,FTPE WEBTIS 1 ,Travel & Public Transport Expenses,Revenue,160648,264,09/06/2014,33.90,Nil,Passenger Railways,GPC,Not yet available
Wakefield MDC,E08000036,30/06/2014,CHILDYOU,4,Children's and Education Services,HX PAYMENTS,Travel & Public Transport Expenses,Revenue,160648,599,09/06/2014,41.51,Nil,Travel Agencies/Tour Operators,GPC,Not yet available
Wakefield MDC,E08000036,30/06/2014,CHILDYOU,4,Children's and Education Services,VIRGIN TRAINS,Travel & Public Transport Expenses,Revenue,160647,9092,03/06/2014,122.50,Nil,Passenger Railways,GPC,Not yet available
Wakefield MDC,E08000036,30/06/2014,CHILDYOU,4,Children's and Education Services,VIRGIN TRAINS,Travel & Public Transport Expenses,Revenue,160648,610,09/06/2014,60.80,Nil,Passenger Railways,GPC,Not yet available
Wakefield MDC,E08000036,30/06/2014,CHILDYOU,4,Children's and Education Services,VIRGIN TRAINS,Travel & Public Transport Expenses,Revenue,160656,1242,26/06/2014,52.10,Nil,Passenger Railways,GPC,Not yet available
Wakefield MDC,E08000036,30/06/2014,CHILDYOU,4,Children's and Education Services,EC MAINLINE,Travel & Public Transport Expenses,Revenue,160639,3913,14/04/2014,78.40,Nil,Passenger Railways,GPC,Not yet available
Wakefield MDC,E08000036,30/06/2014,CHILDYOU,4,Children's and Education Services,EC MAINLINE,Travel & Public Transport Expenses,Revenue,160648,2627,09/06/2014,100.00,Nil,Passenger Railways,GPC,Not yet available
Wakefield MDC,E08000036,30/06/2014,CHILDYOU,4,Children's and Education Services,TRAINLINE,Travel & Public Transport Expenses,Revenue,160641,2086,02/05/2014,92.31,Nil,Passenger Railways,GPC,Not yet available
Wakefield MDC,E08000036,30/06/2014,CHILDYOU,4,Children's and Education Services,TRAINLINE,Travel & Public Transport Expenses,Revenue,160647,6125,03/06/2014,57.53,Nil,Passenger Railways,GPC,Not yet available
Wakefield MDC,E08000036,30/06/2014,CHILDYOU,4,Children's and Education Services,TRAINLINE,Travel & Public Transport Expenses,Revenue,160648,2500,09/06/2014,200.43,Nil,Passenger Railways,GPC,Not yet available
Wakefield MDC,E08000036,30/06/2014,CHILDYOU,4,Children's and Education Services,TSM,Travel & Public Transport Expenses,Revenue,160641,2087,02/05/2014,50.20,Nil,Passenger Railways,GPC,Not yet available
Wakefield MDC,E08000036,30/06/2014,CHILDYOU,4,Children's and Education Services,RAIL EASY ,Travel & Public Transport Expenses,Revenue,160647,2622,03/06/2014,156.90,Nil,Passenger Railways,GPC,Not yet available
Wakefield MDC,E08000036,30/06/2014,CHILDYOU,4,Children's and Education Services,AURIGNY,Travel & Public Transport Expenses,Revenue,160648,263,09/06/2014,169.00,Nil,Airlines And Air Carriers - Not Elsewhere Classified,GPC,Not yet available
Wakefield MDC,E08000036,30/06/2014,CHILDYOU,4,Children's and Education Services,EASTERN AIRWAYS,Travel & Public Transport Expenses,Revenue,160644,3346,14/05/2014,265.70,Nil,Airlines And Air Carriers - Not Elsewhere Classified,GPC,Not yet available
Wakefield MDC,E08000036,30/06/2014,CHILDYOU,4,Children's and Education Services,EC MAINLINE,Travel & Public Transport Expenses,Revenue,160647,7220,03/06/2014,101.95,Nil,Passenger Railways,GPC,Not yet available
Wakefield MDC,E08000036,30/06/2014,CHILDYOU,4,Children's and Education Services,FLYBE,Travel & Public Transport Expenses,Revenue,160647,9098,03/06/2014,187.59,Nil,Airlines And Air Carriers - Not Elsewhere Classified,GPC,Not yet available
Wakefield MDC,E08000036,30/06/2014,CHILDYOU,4,Children's and Education Services,TRAINLINE,Travel & Public Transport Expenses,Revenue,160651,1606,18/06/2014,502.55,Nil,Passenger Railways,GPC,Not yet available
Wakefield MDC,E08000036,30/06/2014,CHILDYOU,4,Children's and Education Services,VIRGIN TRAINS,Travel & Public Transport Expenses,Revenue,160647,9085,03/06/2014,122.50,Nil,Passenger Railways,GPC,Not yet available
Wakefield MDC,E08000036,30/06/2014,ADULTS,7,Adult Social Care,TRAINLINE,Travel & Public Transport Expenses,Revenue,160659,1002,02/07/2014,111.69,Nil,Passenger Railways,GPC,Not yet available
Wakefield MDC,E08000036,30/06/2014,CHILDYOU,4,Children's and Education Services,EC MAINLINE,Travel & Public Transport Expenses,Revenue,160647,4845,03/06/2014,238.00,Nil,Passenger Railways,GPC,Not yet available
Wakefield MDC,E08000036,30/06/2014,CHILDYOU,4,Children's and Education Services,EC MAINLINE,Travel & Public Transport Expenses,Revenue,160647,4847,03/06/2014,60.00,Nil,Passenger Railways,GPC,Not yet available
Wakefield MDC,E08000036,30/06/2014,CHILDYOU,4,Children's and Education Services,VIRGIN TRAINS,Travel & Public Transport Expenses,Revenue,160644,3445,14/05/2014,67.50,Nil,Passenger Railways,GPC,Not yet available
Wakefield MDC,E08000036,30/06/2014,CHILDYOU,4,Children's and Education Services,TRAINLINE,Travel & Public Transport Expenses,Revenue,160649,398,13/06/2014,107.10,Nil,Passenger Railways,GPC,Not yet available
Wakefield MDC,E08000036,30/06/2014,CHILDYOU,4,Children's and Education Services,EC MAINLINE,Travel & Public Transport Expenses,Revenue,160647,5627,03/06/2014,36.27,Nil,Passenger Railways,GPC,Not yet available
Wakefield MDC,E08000036,30/06/2014,CHILDYOU,4,Children's and Education Services,EC MAINLINE,Travel & Public Transport Expenses,Revenue,160650,543,16/06/2014,78.40,Nil,Passenger Railways,GPC,Not yet available
Wakefield MDC,E08000036,30/06/2014,CHILDYOU,4,Children's and Education Services,TRAINLINE,Travel & Public Transport Expenses,Revenue,160649,1308,13/06/2014,142.80,Nil,Passenger Railways,GPC,Not yet available
Wakefield MDC,E08000036,30/06/2014,CHILDYOU,4,Children's and Education Services,TRAINLINE,Travel & Public Transport Expenses,Revenue,160652,86,19/06/2014,104.35,Nil,Passenger Railways,GPC,Not yet available
Wakefield MDC,E08000036,30/06/2014,CHILDYOU,4,Children's and Education Services,EC MAINLINE,Travel & Public Transport Expenses,Revenue,160647,4024,03/06/2014,388.30,Nil,Passenger Railways,GPC,Not yet available
Wakefield MDC,E08000036,30/06/2014,CHILDYOU,4,Children's and Education Services,TRAINLINE,Travel & Public Transport Expenses,Revenue,160642,1948,07/05/2014,8.98,Nil,Passenger Railways,GPC,Not yet available
Wakefield MDC,E08000036,30/06/2014,CHILDYOU,4,Children's and Education Services,TRAINLINE,Travel & Public Transport Expenses,Revenue,160651,841,18/06/2014,183.09,Nil,Passenger Railways,GPC,Not yet available
Wakefield MDC,E08000036,30/06/2014,CHILDYOU,4,Children's and Education Services,TRAINLINE,Travel & Public Transport Expenses,Revenue,160642,368,07/05/2014,111.69,Nil,Passenger Railways,GPC,Not yet available
Wakefield MDC,E08000036,30/06/2014,BUSINESS,A,Net (Surplus) / Deficit of Trading Operations,EC MAINLINE,Travel & Public Transport Expenses,Revenue,160644,869,14/05/2014,13.40,Nil,Passenger Railways,GPC,Not yet available
Wakefield MDC,E08000036,30/06/2014,BUSINESS,1,Central Services,NORTHERN RAIL,Travel & Public Transport Expenses,Revenue,160659,842,02/07/2014,20.90,Nil,Passenger Railways,GPC,Not yet available
Wakefield MDC,E08000036,30/06/2014,BUSINESS,A,Net (Surplus) / Deficit of Trading Operations,EC MAINLINE,Travel & Public Transport Expenses,Revenue,160642,1078,07/05/2014,168.60,Nil,Passenger Railways,GPC,Not yet available
Wakefield MDC,E08000036,30/06/2014,BUSINESS,A,Net (Surplus) / Deficit of Trading Operations,EC MAINLINE,Travel & Public Transport Expenses,Revenue,160649,274,13/06/2014,4.30,Nil,Passenger Railways,GPC,Not yet available
Wakefield MDC,E08000036,30/06/2014,BUSINESS,A,Net (Surplus) / Deficit of Trading Operations,EC MAINLINE,Travel & Public Transport Expenses,Revenue,160648,1797,09/06/2014,159.25,Nil,Passenger Railways,GPC,Not yet available
Wakefield MDC,E08000036,30/06/2014,BUSINESS,A,Net (Surplus) / Deficit of Trading Operations,TRAINLINE,Travel & Public Transport Expenses,Revenue,160648,1831,09/06/2014,77.83,Nil,Passenger Railways,GPC,Not yet available
Wakefield MDC,E08000036,30/06/2014,BUSINESS,A,Net (Surplus) / Deficit of Trading Operations,TRAINLINE,Travel & Public Transport Expenses,Revenue,160648,1832,09/06/2014,23.97,Nil,Passenger Railways,GPC,Not yet available
Wakefield MDC,E08000036,30/06/2014,BUSINESS,A,Net (Surplus) / Deficit of Trading Operations,TRAINLINE,Travel & Public Transport Expenses,Revenue,160648,1833,09/06/2014,22.00,Nil,Passenger Railways,GPC,Not yet available
Wakefield MDC,E08000036,30/06/2014,BUSINESS,1,Central Services,FTPE WEBTIS 1 ,Travel & Public Transport Expenses,Revenue,160650,1488,16/06/2014,23.08,Nil,Passenger Railways,GPC,Not yet available
Wakefield MDC,E08000036,30/06/2014,BUSINESS,1,Central Services,CROSS COUNTRY,Travel & Public Transport Expenses,Revenue,160659,334,02/07/2014,94.60,Nil,Passenger Railways,GPC,Not yet available
Wakefield MDC,E08000036,30/06/2014,BUSINESS,8,Corporate and Democratic Core,EC MAINLINE,Travel & Public Transport Expenses,Revenue,160641,229,02/05/2014,168.30,Nil,Passenger Railways,GPC,Not yet available
Wakefield MDC,E08000036,30/06/2014,BUSINESS,8,Corporate and Democratic Core,EC MAINLINE,Travel & Public Transport Expenses,Revenue,160641,230,02/05/2014,103.30,Nil,Passenger Railways,GPC,Not yet available
Wakefield MDC,E08000036,30/06/2014,BUSINESS,8,Corporate and Democratic Core,EC MAINLINE,Travel & Public Transport Expenses,Revenue,160641,409,02/05/2014,103.30,Nil,Passenger Railways,GPC,Not yet available
Wakefield MDC,E08000036,30/06/2014,BUSINESS,8,Corporate and Democratic Core,EC MAINLINE,Travel & Public Transport Expenses,Revenue,160647,308,03/06/2014,71.30,Nil,Passenger Railways,GPC,Not yet available
Wakefield MDC,E08000036,30/06/2014,BUSINESS,8,Corporate and Democratic Core,EC MAINLINE,Travel & Public Transport Expenses,Revenue,160647,2616,03/06/2014,21.60,Nil,Passenger Railways,GPC,Not yet available
Wakefield MDC,E08000036,30/06/2014,BUSINESS,8,Corporate and Democratic Core,EC MAINLINE,Travel & Public Transport Expenses,Revenue,160647,2617,03/06/2014,109.20,Nil,Passenger Railways,GPC,Not yet available
Wakefield MDC,E08000036,30/06/2014,BUSINESS,8,Corporate and Democratic Core,EC MAINLINE,Travel & Public Transport Expenses,Revenue,160652,127,19/06/2014,109.20,Nil,Passenger Railways,GPC,Not yet available
Wakefield MDC,E08000036,30/06/2014,BUSINESS,8,Corporate and Democratic Core,OYSTER AUTO TOP UP,Travel & Public Transport Expenses,Revenue,160641,231,02/05/2014,40.00,Nil,Passenger Railways,GPC,Not yet available
Wakefield MDC,E08000036,30/06/2014,BUSINESS,8,Corporate and Democratic Core,TRAINLINE,Travel & Public Transport Expenses,Revenue,160647,307,03/06/2014,215.73,Nil,Passenger Railways,GPC,Not yet available
Wakefield MDC,E08000036,30/06/2014,BUSINESS,8,Corporate and Democratic Core,TRAINLINE,Travel & Public Transport Expenses,Revenue,160652,122,19/06/2014,39.17,Nil,Passenger Railways,GPC,Not yet available
Wakefield MDC,E08000036,30/06/2014,BUSINESS,8,Corporate and Democratic Core,WEST COAST TRAINS,Travel & Public Transport Expenses,Revenue,160652,126,19/06/2014,70.60,Nil,Passenger Railways,GPC,Not yet available
Wakefield MDC,E08000036,30/06/2014,BUSINESS,A,Net (Surplus) / Deficit of Trading Operations,FTPE WEBTIS 1 ,Travel & Public Transport Expenses,Revenue,160657,80,27/06/2014,31.70,Nil,Passenger Railways,GPC,Not yet available
Wakefield MDC,E08000036,30/06/2014,CHILDYOU,4,Children's and Education Services,HALFORDS,Equipment,Revenue,160647,1692,03/06/2014,104.16,Nil,Bicycle Shops - Sales/Service,GPC,Not yet available
Wakefield MDC,E08000036,30/06/2014,CHILDYOU,4,Children's and Education Services,CURRYS,Equipment,Revenue,160640,354,25/04/2014,133.23,Nil,Electronics Stores,GPC,Not yet available
Wakefield MDC,E08000036,30/06/2014,CHILDYOU,4,Children's and Education Services,CURRYS,Equipment,Revenue,160640,360,25/04/2014,17.49,Nil,Electronics Stores,GPC,Not yet available
Wakefield MDC,E08000036,30/06/2014,CHILDYOU,4,Children's and Education Services,CURRYS,Equipment,Revenue,160640,362,25/04/2014,17.49,Nil,Electronics Stores,GPC,Not yet available
Wakefield MDC,E08000036,30/06/2014,CHILDYOU,4,Children's and Education Services,CURRYS,Equipment,Revenue,160648,2228,09/06/2014,233.33,Nil,Electronics Stores,GPC,Not yet available
Wakefield MDC,E08000036,30/06/2014,CHILDYOU,4,Children's and Education Services,CURRYS,Equipment,Revenue,160648,2350,09/06/2014,7.48,Nil,Electronics Stores,GPC,Not yet available
Wakefield MDC,E08000036,30/06/2014,CHILDYOU,4,Children's and Education Services,CURRYS,Equipment,Revenue,160648,2352,09/06/2014,6.66,Nil,Electronics Stores,GPC,Not yet available
Wakefield MDC,E08000036,30/06/2014,CHILDYOU,4,Children's and Education Services,HOMEBASE LTD,Equipment,Revenue,160650,907,16/06/2014,7.59,Nil,Lumber/Building Materials Stores,GPC,Not yet available
Wakefield MDC,E08000036,30/06/2014,CHILDYOU,4,Children's and Education Services,POUNDLAND LTD,Equipment,Revenue,160640,358,25/04/2014,3.33,Nil,Discount Stores,GPC,Not yet available
Wakefield MDC,E08000036,30/06/2014,REGENCULT,M,Environmental and Regulatory Services,JOHN KING,Equipment,Revenue,160644,780,14/05/2014,61.99,Nil,Computer Programming/Data Processing/Integrated Sys Design,GPC,Not yet available
Wakefield MDC,E08000036,30/06/2014,REGENCULT,M,Environmental and Regulatory Services,ORBITAL FASTENERS,Equipment,Revenue,160644,778,14/05/2014,38.03,Nil,Lumber/Building Materials Stores,GPC,Not yet available
Wakefield MDC,E08000036,30/06/2014,REGENCULT,M,Environmental and Regulatory Services,SCREWFIX,Equipment,Revenue,160640,286,25/04/2014,60.80,Nil,Lumber/Building Materials Stores,GPC,Not yet available
Wakefield MDC,E08000036,30/06/2014,REGENCULT,M,Environmental and Regulatory Services,SIMPLY BEARINGS LTD ,Equipment,Revenue,160642,276,07/05/2014,57.00,Nil,Misc & Speciality Retail Stores,GPC,Not yet available
Wakefield MDC,E08000036,30/06/2014,REGENCULT,M,Environmental and Regulatory Services,TAPES DIRECT,Equipment,Revenue,160647,2437,03/06/2014,47.00,Nil,Misc & Speciality Retail Stores,GPC,Not yet available
Wakefield MDC,E08000036,30/06/2014,REGENCULT,M,Environmental and Regulatory Services,WAKEFIELD WELDING CTR,Equipment,Revenue,160657,487,27/06/2014,75.00,Nil,Misc & Speciality Retail Stores,GPC,Not yet available
Wakefield MDC,E08000036,30/06/2014,REGENCULT,M,Environmental and Regulatory Services,YB COMPONENTS LIMITED,Equipment,Revenue,160645,747,14/05/2014,20.00,Nil,Misc & Speciality Retail Stores,GPC,Not yet available
Wakefield MDC,E08000036,30/06/2014,REGENCULT,M,Environmental and Regulatory Services,YB COMPONENTS LIMITED,Equipment,Revenue,160647,430,03/06/2014,64.25,Nil,Misc & Speciality Retail Stores,GPC,Not yet available
Wakefield MDC,E08000036,30/06/2014,REGENCULT,M,Environmental and Regulatory Services,AMAZON,Equipment,Revenue,160648,1703,09/06/2014,38.81,Nil,Book Stores,GPC,Not yet available
Wakefield MDC,E08000036,30/06/2014,REGENCULT,M,Environmental and Regulatory Services,AMAZON,Equipment,Revenue,160653,1304,23/06/2014,119.85,Nil,Book Stores,GPC,Not yet available
Wakefield MDC,E08000036,30/06/2014,REGENCULT,M,Environmental and Regulatory Services,ASDA,Equipment,Revenue,160642,1760,07/05/2014,16.67,Nil,Grocery Stores/Supermarkets,GPC,Not yet available
Wakefield MDC,E08000036,30/06/2014,REGENCULT,M,Environmental and Regulatory Services,ASDA,Equipment,Revenue,160642,1762,07/05/2014,16.67,Nil,Grocery Stores/Supermarkets,GPC,Not yet available
Wakefield MDC,E08000036,30/06/2014,REGENCULT,M,Environmental and Regulatory Services,ASDA,Equipment,Revenue,160642,1773,07/05/2014,14.17,Nil,Grocery Stores/Supermarkets,GPC,Not yet available
Wakefield MDC,E08000036,30/06/2014,REGENCULT,M,Environmental and Regulatory Services,ASDA,Equipment,Revenue,160647,1404,03/06/2014,-11.67,Nil,Grocery Stores/Supermarkets,GPC,Not yet available
Wakefield MDC,E08000036,30/06/2014,REGENCULT,M,Environmental and Regulatory Services,ASDA,Equipment,Revenue,160647,7608,03/06/2014,40.83,Nil,Grocery Stores/Supermarkets,GPC,Not yet available
Wakefield MDC,E08000036,30/06/2014,REGENCULT,M,Environmental and Regulatory Services,ASDA,Equipment,Revenue,160647,7654,03/06/2014,3.33,Nil,Grocery Stores/Supermarkets,GPC,Not yet available
Wakefield MDC,E08000036,30/06/2014,REGENCULT,M,Environmental and Regulatory Services,ASDA,Equipment,Revenue,160648,1520,09/06/2014,5.00,Nil,Grocery Stores/Supermarkets,GPC,Not yet available
Wakefield MDC,E08000036,30/06/2014,REGENCULT,M,Environmental and Regulatory Services,ASDA,Equipment,Revenue,160648,1736,09/06/2014,21.67,Nil,Grocery Stores/Supermarkets,GPC,Not yet available
Wakefield MDC,E08000036,30/06/2014,REGENCULT,M,Environmental and Regulatory Services,CURRYS,Equipment,Revenue,160642,2013,07/05/2014,40.83,Nil,Electronics Stores,GPC,Not yet available
Wakefield MDC,E08000036,30/06/2014,REGENCULT,M,Environmental and Regulatory Services,POSTURITE (UK) LTD,Equipment,Revenue,160639,1708,14/04/2014,39.95,Nil,Office & Commercial Furniture,GPC,Not yet available
Wakefield MDC,E08000036,30/06/2014,REGENCULT,M,Environmental and Regulatory Services,TESCO,Equipment,Revenue,160639,3365,14/04/2014,43.58,Nil,Grocery Stores/Supermarkets,GPC,Not yet available
Wakefield MDC,E08000036,30/06/2014,REGENCULT,M,Environmental and Regulatory Services,TESCO,Equipment,Revenue,160642,1603,07/05/2014,28.33,Nil,Grocery Stores/Supermarkets,GPC,Not yet available
Wakefield MDC,E08000036,30/06/2014,REGENCULT,M,Environmental and Regulatory Services,TT OFFICE LTD,Equipment,Revenue,160647,4636,03/06/2014,140.00,Nil,Telecom. Equip./Phone Sales,GPC,Not yet available
Wakefield MDC,E08000036,30/06/2014,REGENCULT,M,Environmental and Regulatory Services,WILKINSON,Equipment,Revenue,160639,3461,14/04/2014,46.57,Nil,Household Appliance Stores,GPC,Not yet available
Wakefield MDC,E08000036,30/06/2014,REGENCULT,M,Environmental and Regulatory Services,WILKINSON,Equipment,Revenue,160647,4634,03/06/2014,11.67,Nil,Household Appliance Stores,GPC,Not yet available
Wakefield MDC,E08000036,30/06/2014,CHILDYOU,4,Children's and Education Services,SAINSBURYS,Equipment,Revenue,160647,9162,03/06/2014,17.08,Nil,Grocery Stores/Supermarkets,GPC,Not yet available
Wakefield MDC,E08000036,30/06/2014,CHILDYOU,4,Children's and Education Services,ASDA,Equipment,Revenue,160639,5500,14/04/2014,150.00,Nil,Grocery Stores/Supermarkets,GPC,Not yet available
Wakefield MDC,E08000036,30/06/2014,CHILDYOU,4,Children's and Education Services,INSECTLORE-EUROPE,Equipment,Revenue,160647,6056,03/06/2014,14.98,Nil,Misc & Speciality Retail Stores,GPC,Not yet available
Wakefield MDC,E08000036,30/06/2014,CHILDYOU,4,Children's and Education Services,AMAZON,Equipment,Revenue,160659,70,02/07/2014,68.09,Nil,Book Stores,GPC,Not yet available
Wakefield MDC,E08000036,30/06/2014,CHILDYOU,4,Children's and Education Services,TOUCH-NEEDS,Equipment,Revenue,160647,7638,03/06/2014,41.75,Nil,Children/Infants Wear Stores,GPC,Not yet available
Wakefield MDC,E08000036,30/06/2014,CHILDYOU,4,Children's and Education Services,AMAZON,Equipment,Revenue,160648,1577,09/06/2014,11.06,Nil,Book Stores,GPC,Not yet available
Wakefield MDC,E08000036,30/06/2014,CHILDYOU,4,Children's and Education Services,HSE BOOKS,Equipment,Revenue,160647,4802,03/06/2014,7.50,Nil,Govt Services - Not Elsewhere Classified,GPC,Not yet available
Wakefield MDC,E08000036,30/06/2014,CHILDYOU,4,Children's and Education Services,POUNDSTRETCHER,Equipment,Revenue,160647,4801,03/06/2014,21.90,Nil,Household Appliance Stores,GPC,Not yet available
Wakefield MDC,E08000036,30/06/2014,CHILDYOU,4,Children's and Education Services,CHANGE PEOPLE,Equipment,Revenue,160640,168,25/04/2014,131.80,Nil,Office & Commercial Furniture,GPC,Not yet available
Wakefield MDC,E08000036,30/06/2014,CHILDYOU,4,Children's and Education Services,HOME BARGAINS,Equipment,Revenue,160639,3864,14/04/2014,2.31,Nil,Hardware Stores,GPC,Not yet available
Wakefield MDC,E08000036,30/06/2014,CHILDYOU,4,Children's and Education Services,HOME BARGAINS,Equipment,Revenue,160641,1606,02/05/2014,15.80,Nil,Hardware Stores,GPC,Not yet available
Wakefield MDC,E08000036,30/06/2014,CHILDYOU,4,Children's and Education Services,ARGOS,Equipment,Revenue,160653,1085,23/06/2014,9.99,Nil,Discount Stores,GPC,Not yet available
Wakefield MDC,E08000036,30/06/2014,CHILDYOU,4,Children's and Education Services,WILKINSON,Equipment,Revenue,160653,1086,23/06/2014,10.26,Nil,Household Appliance Stores,GPC,Not yet available
Wakefield MDC,E08000036,30/06/2014,CHILDYOU,4,Children's and Education Services,ASDA,Equipment,Revenue,160655,127,25/06/2014,14.42,Nil,Grocery Stores/Supermarkets,GPC,Not yet available
Wakefield MDC,E08000036,30/06/2014,CHILDYOU,4,Children's and Education Services,LYCO DIRECT LTD,Equipment,Revenue,160639,447,14/04/2014,49.73,Nil,Misc & Speciality Retail Stores,GPC,Not yet available
Wakefield MDC,E08000036,30/06/2014,CHILDYOU,4,Children's and Education Services,W M MORRISONS,Equipment,Revenue,160654,473,24/06/2014,7.50,Nil,Grocery Stores/Supermarkets,GPC,Not yet available
Wakefield MDC,E08000036,30/06/2014,CHILDYOU,4,Children's and Education Services,W M MORRISONS,Equipment,Revenue,160655,1042,25/06/2014,3.33,Nil,Grocery Stores/Supermarkets,GPC,Not yet available
Wakefield MDC,E08000036,30/06/2014,REGENCULT,5,Highways & Transport Services,AMAZON,Equipment,Revenue,160647,8208,03/06/2014,243.98,Nil,Book Stores,GPC,Not yet available
Wakefield MDC,E08000036,30/06/2014,REGENCULT,5,Highways & Transport Services,AMAZON,Equipment,Revenue,160647,8209,03/06/2014,11.68,Nil,Book Stores,GPC,Not yet available
Wakefield MDC,E08000036,30/06/2014,REGENCULT,5,Highways & Transport Services,AMAZON,Equipment,Revenue,160647,10515,03/06/2014,175.79,Nil,Book Stores,GPC,Not yet available
Wakefield MDC,E08000036,30/06/2014,REGENCULT,5,Highways & Transport Services,ARCO CLEARANCE SHOP ,Equipment,Revenue,160647,3667,03/06/2014,55.00,Nil,Industrial Supplies - Not Elsewhere Classified,GPC,Not yet available
Wakefield MDC,E08000036,30/06/2014,REGENCULT,5,Highways & Transport Services,ARCO CLEARANCE SHOP ,Equipment,Revenue,160647,3669,03/06/2014,63.66,Nil,Industrial Supplies - Not Elsewhere Classified,GPC,Not yet available
Wakefield MDC,E08000036,30/06/2014,REGENCULT,5,Highways & Transport Services,ARCO CLEARANCE SHOP ,Equipment,Revenue,160647,5091,03/06/2014,75.00,Nil,Industrial Supplies - Not Elsewhere Classified,GPC,Not yet available
Wakefield MDC,E08000036,30/06/2014,REGENCULT,5,Highways & Transport Services,ARCO CLEARANCE SHOP ,Equipment,Revenue,160647,8210,03/06/2014,55.00,Nil,Industrial Supplies - Not Elsewhere Classified,GPC,Not yet available
Wakefield MDC,E08000036,30/06/2014,REGENCULT,5,Highways & Transport Services,ARCO CLEARANCE SHOP ,Equipment,Revenue,160647,8236,03/06/2014,55.00,Nil,Industrial Supplies - Not Elsewhere Classified,GPC,Not yet available
Wakefield MDC,E08000036,30/06/2014,REGENCULT,5,Highways & Transport Services,ARCO CLEARANCE SHOP ,Equipment,Revenue,160647,10513,03/06/2014,140.68,Nil,Industrial Supplies - Not Elsewhere Classified,GPC,Not yet available
Wakefield MDC,E08000036,30/06/2014,REGENCULT,5,Highways & Transport Services,CALDER SECURITY,Equipment,Revenue,160647,5093,03/06/2014,220.82,Nil,Hardware Stores,GPC,Not yet available
Wakefield MDC,E08000036,30/06/2014,REGENCULT,5,Highways & Transport Services,DIXON HALL,Equipment,Revenue,160647,10209,03/06/2014,22.31,Nil,Hardware/Equipment/Supplies,GPC,Not yet available
Wakefield MDC,E08000036,30/06/2014,REGENCULT,M,Environmental and Regulatory Services,STAPLES,Equipment,Revenue,160647,312,03/06/2014,29.70,Nil,Stationery/Office/School Supply Stores,GPC,Not yet available
Wakefield MDC,E08000036,30/06/2014,CHILDYOU,4,Children's and Education Services,AMAZON,Equipment,Revenue,160651,1234,18/06/2014,19.00,Nil,Book Stores,GPC,Not yet available
Wakefield MDC,E08000036,30/06/2014,CHILDYOU,4,Children's and Education Services,AMAZON,Equipment,Revenue,160639,1074,14/04/2014,3.99,Nil,Book Stores,GPC,Not yet available
Wakefield MDC,E08000036,30/06/2014,CHILDYOU,4,Children's and Education Services,AMAZON,Equipment,Revenue,160639,1517,14/04/2014,2.89,Nil,Book Stores,GPC,Not yet available
Wakefield MDC,E08000036,30/06/2014,CHILDYOU,4,Children's and Education Services,AMAZON,Equipment,Revenue,160639,1518,14/04/2014,6.37,Nil,Book Stores,GPC,Not yet available
Wakefield MDC,E08000036,30/06/2014,CHILDYOU,4,Children's and Education Services,AMAZON,Equipment,Revenue,160639,1519,14/04/2014,1.03,Nil,Book Stores,GPC,Not yet available
Wakefield MDC,E08000036,30/06/2014,CHILDYOU,4,Children's and Education Services,AMAZON,Equipment,Revenue,160639,1529,14/04/2014,5.07,Nil,Book Stores,GPC,Not yet available
Wakefield MDC,E08000036,30/06/2014,CHILDYOU,4,Children's and Education Services,AMAZON,Equipment,Revenue,160639,1530,14/04/2014,11.69,Nil,Book Stores,GPC,Not yet available
Wakefield MDC,E08000036,30/06/2014,CHILDYOU,4,Children's and Education Services,AMAZON,Equipment,Revenue,160639,1531,14/04/2014,1.50,Nil,Book Stores,GPC,Not yet available
Wakefield MDC,E08000036,30/06/2014,CHILDYOU,4,Children's and Education Services,ASDA,Equipment,Revenue,160649,805,13/06/2014,8.00,Nil,Grocery Stores/Supermarkets,GPC,Not yet available
Wakefield MDC,E08000036,30/06/2014,CHILDYOU,4,Children's and Education Services,AMAZON,Equipment,Revenue,160647,2344,03/06/2014,3.89,Nil,Book Stores,GPC,Not yet available
Wakefield MDC,E08000036,30/06/2014,CHILDYOU,4,Children's and Education Services,ASDA,Equipment,Revenue,160651,1114,18/06/2014,10.00,Nil,Grocery Stores/Supermarkets,GPC,Not yet available
Wakefield MDC,E08000036,30/06/2014,CHILDYOU,4,Children's and Education Services,CO-OP GROUP,Equipment,Revenue,160648,687,09/06/2014,3.89,Nil,Grocery Stores/Supermarkets,GPC,Not yet available
Wakefield MDC,E08000036,30/06/2014,CHILDYOU,4,Children's and Education Services,THE RANGE ,Equipment,Revenue,160647,2342,03/06/2014,14.93,Nil,Misc General Merchandise,GPC,Not yet available
Wakefield MDC,E08000036,30/06/2014,CHILDYOU,4,Children's and Education Services,W M MORRISONS,Equipment,Revenue,160646,1171,15/05/2014,3.32,Nil,Grocery Stores/Supermarkets,GPC,Not yet available
Wakefield MDC,E08000036,30/06/2014,CHILDYOU,4,Children's and Education Services,ASDA,Equipment,Revenue,160642,1911,07/05/2014,8.50,Nil,Grocery Stores/Supermarkets,GPC,Not yet available
Wakefield MDC,E08000036,30/06/2014,CHILDYOU,4,Children's and Education Services,ASDA,Equipment,Revenue,160642,2008,07/05/2014,6.70,Nil,Grocery Stores/Supermarkets,GPC,Not yet available
Wakefield MDC,E08000036,30/06/2014,CHILDYOU,4,Children's and Education Services,ASDA,Equipment,Revenue,160649,769,13/06/2014,16.38,Nil,Grocery Stores/Supermarkets,GPC,Not yet available
Wakefield MDC,E08000036,30/06/2014,CHILDYOU,4,Children's and Education Services,ASDA,Equipment,Revenue,160649,894,13/06/2014,3.04,Nil,Grocery Stores/Supermarkets,GPC,Not yet available
Wakefield MDC,E08000036,30/06/2014,CHILDYOU,4,Children's and Education Services,ASDA,Equipment,Revenue,160649,927,13/06/2014,11.85,Nil,Grocery Stores/Supermarkets,GPC,Not yet available
Wakefield MDC,E08000036,30/06/2014,CHILDYOU,4,Children's and Education Services,ASDA,Equipment,Revenue,160649,1054,13/06/2014,5.35,Nil,Grocery Stores/Supermarkets,GPC,Not yet available
Wakefield MDC,E08000036,30/06/2014,CHILDYOU,4,Children's and Education Services,ASDA,Equipment,Revenue,160657,143,27/06/2014,6.00,Nil,Grocery Stores/Supermarkets,GPC,Not yet available
Wakefield MDC,E08000036,30/06/2014,CHILDYOU,4,Children's and Education Services,ASDA,Equipment,Revenue,160657,145,27/06/2014,6.88,Nil,Grocery Stores/Supermarkets,GPC,Not yet available
Wakefield MDC,E08000036,30/06/2014,CHILDYOU,4,Children's and Education Services,ASDA,Equipment,Revenue,160659,95,02/07/2014,8.50,Nil,Grocery Stores/Supermarkets,GPC,Not yet available
Wakefield MDC,E08000036,30/06/2014,CHILDYOU,4,Children's and Education Services,BM RETAIL LTD,Equipment,Revenue,160649,1052,13/06/2014,1.00,Nil,Discount Stores,GPC,Not yet available
Wakefield MDC,E08000036,30/06/2014,CHILDYOU,4,Children's and Education Services,THE RANGE ,Equipment,Revenue,160642,2006,07/05/2014,4.25,Nil,Misc General Merchandise,GPC,Not yet available
Wakefield MDC,E08000036,30/06/2014,CHILDYOU,4,Children's and Education Services,THE RANGE ,Equipment,Revenue,160649,767,13/06/2014,3.00,Nil,Misc General Merchandise,GPC,Not yet available
Wakefield MDC,E08000036,30/06/2014,CHILDYOU,4,Children's and Education Services,THE RANGE ,Equipment,Revenue,160649,948,13/06/2014,5.19,Nil,Misc General Merchandise,GPC,Not yet available
Wakefield MDC,E08000036,30/06/2014,CHILDYOU,4,Children's and Education Services,AMAZON,Equipment,Revenue,160643,2197,12/05/2014,19.99,Nil,Book Stores,GPC,Not yet available
Wakefield MDC,E08000036,30/06/2014,CHILDYOU,4,Children's and Education Services,AMAZON,Equipment,Revenue,160643,3881,12/05/2014,35.00,Nil,Book Stores,GPC,Not yet available
Wakefield MDC,E08000036,30/06/2014,CHILDYOU,4,Children's and Education Services,ASDA,Equipment,Revenue,160643,2842,12/05/2014,10.82,Nil,Grocery Stores/Supermarkets,GPC,Not yet available
Wakefield MDC,E08000036,30/06/2014,CHILDYOU,4,Children's and Education Services,ASDA,Equipment,Revenue,160643,2857,12/05/2014,8.55,Nil,Grocery Stores/Supermarkets,GPC,Not yet available
Wakefield MDC,E08000036,30/06/2014,CHILDYOU,4,Children's and Education Services,ASDA,Equipment,Revenue,160648,2084,09/06/2014,5.83,Nil,Grocery Stores/Supermarkets,GPC,Not yet available
Wakefield MDC,E08000036,30/06/2014,CHILDYOU,4,Children's and Education Services,ASDA,Equipment,Revenue,160648,2241,09/06/2014,18.23,Nil,Grocery Stores/Supermarkets,GPC,Not yet available
Wakefield MDC,E08000036,30/06/2014,CHILDYOU,4,Children's and Education Services,ASDA,Equipment,Revenue,160648,2407,09/06/2014,18.83,Nil,Grocery Stores/Supermarkets,GPC,Not yet available
Wakefield MDC,E08000036,30/06/2014,CHILDYOU,4,Children's and Education Services,ASDA,Equipment,Revenue,160648,2440,09/06/2014,9.58,Nil,Grocery Stores/Supermarkets,GPC,Not yet available
Wakefield MDC,E08000036,30/06/2014,CHILDYOU,4,Children's and Education Services,ASDA,Equipment,Revenue,160648,2610,09/06/2014,7.50,Nil,Grocery Stores/Supermarkets,GPC,Not yet available
Wakefield MDC,E08000036,30/06/2014,CHILDYOU,4,Children's and Education Services,ASDA,Equipment,Revenue,160658,42,30/06/2014,15.38,Nil,Grocery Stores/Supermarkets,GPC,Not yet available
Wakefield MDC,E08000036,30/06/2014,CHILDYOU,4,Children's and Education Services,ASDA,Equipment,Revenue,160658,44,30/06/2014,12.50,Nil,Grocery Stores/Supermarkets,GPC,Not yet available
Wakefield MDC,E08000036,30/06/2014,CHILDYOU,4,Children's and Education Services,ASDA,Equipment,Revenue,160658,65,30/06/2014,17.42,Nil,Grocery Stores/Supermarkets,GPC,Not yet available
Wakefield MDC,E08000036,30/06/2014,CHILDYOU,4,Children's and Education Services,B & Q ,Equipment,Revenue,160655,8,25/06/2014,2.98,Nil,Lumber/Building Materials Stores,GPC,Not yet available
Wakefield MDC,E08000036,30/06/2014,CHILDYOU,4,Children's and Education Services,B & Q ,Equipment,Revenue,160655,9,25/06/2014,2.98,Nil,Lumber/Building Materials Stores,GPC,Not yet available
Wakefield MDC,E08000036,30/06/2014,CHILDYOU,4,Children's and Education Services,B & Q ,Equipment,Revenue,160655,10,25/06/2014,2.08,Nil,Lumber/Building Materials Stores,GPC,Not yet available
Wakefield MDC,E08000036,30/06/2014,CHILDYOU,4,Children's and Education Services,B & Q ,Equipment,Revenue,160655,12,25/06/2014,2.08,Nil,Lumber/Building Materials Stores,GPC,Not yet available
Wakefield MDC,E08000036,30/06/2014,CHILDYOU,4,Children's and Education Services,B & Q ,Equipment,Revenue,160655,14,25/06/2014,2.08,Nil,Lumber/Building Materials Stores,GPC,Not yet available
Wakefield MDC,E08000036,30/06/2014,CHILDYOU,4,Children's and Education Services,B & Q ,Equipment,Revenue,160655,16,25/06/2014,2.08,Nil,Lumber/Building Materials Stores,GPC,Not yet available
Wakefield MDC,E08000036,30/06/2014,CHILDYOU,4,Children's and Education Services,B & Q ,Equipment,Revenue,160655,18,25/06/2014,10.82,Nil,Lumber/Building Materials Stores,GPC,Not yet available
Wakefield MDC,E08000036,30/06/2014,CHILDYOU,4,Children's and Education Services,B & Q ,Equipment,Revenue,160655,20,25/06/2014,1.98,Nil,Lumber/Building Materials Stores,GPC,Not yet available
Wakefield MDC,E08000036,30/06/2014,CHILDYOU,4,Children's and Education Services,B & Q ,Equipment,Revenue,160655,21,25/06/2014,1.98,Nil,Lumber/Building Materials Stores,GPC,Not yet available
Wakefield MDC,E08000036,30/06/2014,CHILDYOU,4,Children's and Education Services,B & Q ,Equipment,Revenue,160655,22,25/06/2014,5.00,Nil,Lumber/Building Materials Stores,GPC,Not yet available
Wakefield MDC,E08000036,30/06/2014,CHILDYOU,4,Children's and Education Services,B & Q ,Equipment,Revenue,160655,24,25/06/2014,91.67,Nil,Lumber/Building Materials Stores,GPC,Not yet available
Wakefield MDC,E08000036,30/06/2014,CHILDYOU,4,Children's and Education Services,B & Q ,Equipment,Revenue,160655,26,25/06/2014,8.32,Nil,Lumber/Building Materials Stores,GPC,Not yet available
Wakefield MDC,E08000036,30/06/2014,CHILDYOU,4,Children's and Education Services,B & Q ,Equipment,Revenue,160655,28,25/06/2014,5.82,Nil,Lumber/Building Materials Stores,GPC,Not yet available
Wakefield MDC,E08000036,30/06/2014,CHILDYOU,4,Children's and Education Services,CO-OP GROUP,Equipment,Revenue,160658,59,30/06/2014,7.14,Nil,Grocery Stores/Supermarkets,GPC,Not yet available
Wakefield MDC,E08000036,30/06/2014,CHILDYOU,4,Children's and Education Services,DETAILS REDACTED,Equipment,Revenue,160643,2177,12/05/2014,7.91,Nil,Lumber/Building Materials Stores,GPC,Not yet available
Wakefield MDC,E08000036,30/06/2014,CHILDYOU,4,Children's and Education Services,DETAILS REDACTED,Equipment,Revenue,160643,2199,12/05/2014,6.41,Nil,Lumber/Building Materials Stores,GPC,Not yet available
Wakefield MDC,E08000036,30/06/2014,CHILDYOU,4,Children's and Education Services,DETAILS REDACTED,Equipment,Revenue,160643,2488,12/05/2014,13.49,Nil,Lumber/Building Materials Stores,GPC,Not yet available
Wakefield MDC,E08000036,30/06/2014,CHILDYOU,4,Children's and Education Services,DETAILS REDACTED,Equipment,Revenue,160643,3175,12/05/2014,8.99,Nil,Lumber/Building Materials Stores,GPC,Not yet available
Wakefield MDC,E08000036,30/06/2014,CHILDYOU,4,Children's and Education Services,DETAILS REDACTED,Equipment,Revenue,160648,2608,09/06/2014,3.15,Nil,Lumber/Building Materials Stores,GPC,Not yet available
Wakefield MDC,E08000036,30/06/2014,CHILDYOU,4,Children's and Education Services,DETAILS REDACTED,Equipment,Revenue,160648,2654,09/06/2014,3.02,Nil,Lumber/Building Materials Stores,GPC,Not yet available
Wakefield MDC,E08000036,30/06/2014,CHILDYOU,4,Children's and Education Services,DETAILS REDACTED,Equipment,Revenue,160658,56,30/06/2014,90.00,Nil,Lumber/Building Materials Stores,GPC,Not yet available
Wakefield MDC,E08000036,30/06/2014,CHILDYOU,4,Children's and Education Services,ONE STOP,Equipment,Revenue,160655,36,25/06/2014,9.29,Nil,Grocery Stores/Supermarkets,GPC,Not yet available
Wakefield MDC,E08000036,30/06/2014,CHILDYOU,4,Children's and Education Services,TESCO,Equipment,Revenue,160648,1986,09/06/2014,16.26,Nil,Grocery Stores/Supermarkets,GPC,Not yet available
Wakefield MDC,E08000036,30/06/2014,CHILDYOU,4,Children's and Education Services,WILKINSON,Equipment,Revenue,160643,3568,12/05/2014,8.75,Nil,Household Appliance Stores,GPC,Not yet available
Wakefield MDC,E08000036,30/06/2014,CHILDYOU,4,Children's and Education Services,YES ONLINE,Equipment,Revenue,160648,2655,09/06/2014,2.49,Nil,Lumber/Building Materials Stores,GPC,Not yet available
Wakefield MDC,E08000036,30/06/2014,CHILDYOU,4,Children's and Education Services,ASDA,Equipment,Revenue,160642,1340,07/05/2014,13.80,Nil,Grocery Stores/Supermarkets,GPC,Not yet available
Wakefield MDC,E08000036,30/06/2014,CHILDYOU,4,Children's and Education Services,B & Q,Equipment,Revenue,160648,1711,09/06/2014,24.69,Nil,Lumber/Building Materials Stores,GPC,Not yet available
Wakefield MDC,E08000036,30/06/2014,CHILDYOU,4,Children's and Education Services,HOME BARGAINS,Equipment,Revenue,160642,1512,07/05/2014,6.31,Nil,Hardware Stores,GPC,Not yet available
Wakefield MDC,E08000036,30/06/2014,CHILDYOU,4,Children's and Education Services,NCT SHOP,Equipment,Revenue,160648,1713,09/06/2014,7.50,Nil,Variety Stores,GPC,Not yet available
Wakefield MDC,E08000036,30/06/2014,CHILDYOU,4,Children's and Education Services,STAPLES,Equipment,Revenue,160648,1817,09/06/2014,14.98,Nil,Stationery/Office/School Supply Stores,GPC,Not yet available
Wakefield MDC,E08000036,30/06/2014,CHILDYOU,4,Children's and Education Services,WILKINSON,Equipment,Revenue,160649,1807,13/06/2014,10.00,Nil,Household Appliance Stores,GPC,Not yet available
Wakefield MDC,E08000036,30/06/2014,CHILDYOU,4,Children's and Education Services,AMAZON,Equipment,Revenue,160658,166,30/06/2014,10.46,Nil,Book Stores,GPC,Not yet available
Wakefield MDC,E08000036,30/06/2014,CHILDYOU,4,Children's and Education Services,MAKE LEARN AND PLAY LTD,Equipment,Revenue,160643,2854,12/05/2014,160.60,Nil,Misc Apparel/Accessory Shops,GPC,Not yet available
Wakefield MDC,E08000036,30/06/2014,CHILDYOU,4,Children's and Education Services,MAKE LEARN AND PLAY LTD,Equipment,Revenue,160647,7255,03/06/2014,7.35,Nil,Misc Apparel/Accessory Shops,GPC,Not yet available
Wakefield MDC,E08000036,30/06/2014,CHILDYOU,4,Children's and Education Services,POUNDSTRETCHER,Equipment,Revenue,160649,830,13/06/2014,7.47,Nil,Household Appliance Stores,GPC,Not yet available
Wakefield MDC,E08000036,30/06/2014,CHILDYOU,4,Children's and Education Services,POUNDSTRETCHER,Equipment,Revenue,160658,37,30/06/2014,8.35,Nil,Household Appliance Stores,GPC,Not yet available
Wakefield MDC,E08000036,30/06/2014,CHILDYOU,4,Children's and Education Services,T J MORRIS LTD,Equipment,Revenue,160648,839,09/06/2014,8.04,Nil,Hardware Stores,GPC,Not yet available
Wakefield MDC,E08000036,30/06/2014,CHILDYOU,4,Children's and Education Services,RIVER SEA PLA,Equipment,Revenue,160648,464,09/06/2014,13.00,Nil,Misc Apparel/Accessory Shops,GPC,Not yet available
Wakefield MDC,E08000036,30/06/2014,CHILDYOU,4,Children's and Education Services,TESCO,Equipment,Revenue,160640,231,25/04/2014,2.50,Nil,Grocery Stores/Supermarkets,GPC,Not yet available
Wakefield MDC,E08000036,30/06/2014,CHILDYOU,4,Children's and Education Services,TESCO,Equipment,Revenue,160649,589,13/06/2014,2.60,Nil,Grocery Stores/Supermarkets,GPC,Not yet available
Wakefield MDC,E08000036,30/06/2014,CHILDYOU,4,Children's and Education Services,ASDA,Equipment,Revenue,160644,647,14/05/2014,10.00,Nil,Grocery Stores/Supermarkets,GPC,Not yet available
Wakefield MDC,E08000036,30/06/2014,CHILDYOU,4,Children's and Education Services,ASDA,Equipment,Revenue,160659,120,02/07/2014,15.00,Nil,Grocery Stores/Supermarkets,GPC,Not yet available
Wakefield MDC,E08000036,30/06/2014,CHILDYOU,4,Children's and Education Services,COUNTRY BASKETS,Equipment,Revenue,160644,689,14/05/2014,51.66,Nil,Florist Supplies/Nursery Stock/Flowers,GPC,Not yet available
Wakefield MDC,E08000036,30/06/2014,CHILDYOU,4,Children's and Education Services,DIRECT FABRIC WAREHOUSE,Equipment,Revenue,160659,117,02/07/2014,16.65,Nil,Misc Apparel/Accessory Shops,GPC,Not yet available
Wakefield MDC,E08000036,30/06/2014,CHILDYOU,4,Children's and Education Services,FABRIC WORLD,Equipment,Revenue,160644,649,14/05/2014,10.89,Nil,Sewing/Fabric/Needlework/Piece Goods Stores,GPC,Not yet available
Wakefield MDC,E08000036,30/06/2014,CHILDYOU,4,Children's and Education Services,POUNDSTRETCHER,Equipment,Revenue,160659,110,02/07/2014,10.98,Nil,Household Appliance Stores,GPC,Not yet available
Wakefield MDC,E08000036,30/06/2014,CHILDYOU,4,Children's and Education Services,POUNDSTRETCHER,Equipment,Revenue,160659,111,02/07/2014,24.96,Nil,Household Appliance Stores,GPC,Not yet available
Wakefield MDC,E08000036,30/06/2014,CHILDYOU,4,Children's and Education Services,POUNDSTRETCHER,Equipment,Revenue,160659,113,02/07/2014,2.48,Nil,Household Appliance Stores,GPC,Not yet available
Wakefield MDC,E08000036,30/06/2014,CHILDYOU,4,Children's and Education Services,POUNDSTRETCHER,Equipment,Revenue,160659,129,02/07/2014,2.47,Nil,Household Appliance Stores,GPC,Not yet available
Wakefield MDC,E08000036,30/06/2014,CHILDYOU,4,Children's and Education Services,TOUCH-NEEDS,Equipment,Revenue,160659,132,02/07/2014,40.91,Nil,Children/Infants Wear Stores,GPC,Not yet available
Wakefield MDC,E08000036,30/06/2014,CHILDYOU,4,Children's and Education Services,TOYS R US,Equipment,Revenue,160644,691,14/05/2014,11.96,Nil,Misc General Merchandise,GPC,Not yet available
Wakefield MDC,E08000036,30/06/2014,CHILDYOU,4,Children's and Education Services,B & M RETAIL,Equipment,Revenue,160647,5608,03/06/2014,12.71,Nil,Discount Stores,GPC,Not yet available
Wakefield MDC,E08000036,30/06/2014,CHILDYOU,4,Children's and Education Services,BOOK PEOPLE VOUCHER ,Equipment,Revenue,160649,1604,13/06/2014,5.00,Nil,Book Stores,GPC,Not yet available
Wakefield MDC,E08000036,30/06/2014,CHILDYOU,4,Children's and Education Services,HOMEBASE LTD,Equipment,Revenue,160641,2063,02/05/2014,11.84,Nil,Lumber/Building Materials Stores,GPC,Not yet available
Wakefield MDC,E08000036,30/06/2014,CHILDYOU,4,Children's and Education Services,POUNDLAND LTD ,Equipment,Revenue,160649,1605,13/06/2014,5.00,Nil,Discount Stores,GPC,Not yet available
Wakefield MDC,E08000036,30/06/2014,CHILDYOU,4,Children's and Education Services,SAINSBURYS,Equipment,Revenue,160640,277,25/04/2014,20.42,Nil,Grocery Stores/Supermarkets,GPC,Not yet available
Wakefield MDC,E08000036,30/06/2014,CHILDYOU,4,Children's and Education Services,SAINSBURYS,Equipment,Revenue,160640,279,25/04/2014,27.47,Nil,Grocery Stores/Supermarkets,GPC,Not yet available
Wakefield MDC,E08000036,30/06/2014,CHILDYOU,4,Children's and Education Services,SAINSBURYS,Equipment,Revenue,160640,281,25/04/2014,12.74,Nil,Grocery Stores/Supermarkets,GPC,Not yet available
Wakefield MDC,E08000036,30/06/2014,CHILDYOU,4,Children's and Education Services,SAINSBURYS,Equipment,Revenue,160647,7978,03/06/2014,12.23,Nil,Grocery Stores/Supermarkets,GPC,Not yet available
Wakefield MDC,E08000036,30/06/2014,CHILDYOU,4,Children's and Education Services,SAINSBURYS ,Equipment,Revenue,160641,1947,02/05/2014,32.42,Nil,Grocery Stores/Supermarkets,GPC,Not yet available
Wakefield MDC,E08000036,30/06/2014,CHILDYOU,4,Children's and Education Services,SPORTSDIRECT,Equipment,Revenue,160641,2064,02/05/2014,12.00,Nil,Sporting Goods Stores,GPC,Not yet available
Wakefield MDC,E08000036,30/06/2014,CHILDYOU,4,Children's and Education Services,TESCO,Equipment,Revenue,160641,1946,02/05/2014,7.09,Nil,Grocery Stores/Supermarkets,GPC,Not yet available
Wakefield MDC,E08000036,30/06/2014,CHILDYOU,4,Children's and Education Services,WILKINSON,Equipment,Revenue,160639,5505,14/04/2014,20.35,Nil,Household Appliance Stores,GPC,Not yet available
Wakefield MDC,E08000036,30/06/2014,CHILDYOU,4,Children's and Education Services,WILKINSON,Equipment,Revenue,160641,2110,02/05/2014,22.95,Nil,Household Appliance Stores,GPC,Not yet available
Wakefield MDC,E08000036,30/06/2014,CHILDYOU,4,Children's and Education Services,ARGOS,Equipment,Revenue,160656,1259,26/06/2014,59.83,Nil,Discount Stores,GPC,Not yet available
Wakefield MDC,E08000036,30/06/2014,CHILDYOU,4,Children's and Education Services,AMAZON,Equipment,Revenue,160640,120,25/04/2014,24.89,Nil,Book Stores,GPC,Not yet available
Wakefield MDC,E08000036,30/06/2014,CHILDYOU,4,Children's and Education Services,AMAZON,Equipment,Revenue,160640,121,25/04/2014,35.75,Nil,Book Stores,GPC,Not yet available
Wakefield MDC,E08000036,30/06/2014,CHILDYOU,4,Children's and Education Services,AMAZON,Equipment,Revenue,160647,7833,03/06/2014,11.62,Nil,Book Stores,GPC,Not yet available
Wakefield MDC,E08000036,30/06/2014,CHILDYOU,4,Children's and Education Services,AMAZON,Equipment,Revenue,160647,7834,03/06/2014,5.79,Nil,Book Stores,GPC,Not yet available
Wakefield MDC,E08000036,30/06/2014,CHILDYOU,4,Children's and Education Services,AMAZON,Equipment,Revenue,160649,492,13/06/2014,67.00,Nil,Book Stores,GPC,Not yet available
Wakefield MDC,E08000036,30/06/2014,CHILDYOU,4,Children's and Education Services,AMAZON,Equipment,Revenue,160658,19,30/06/2014,242.94,Nil,Book Stores,GPC,Not yet available
Wakefield MDC,E08000036,30/06/2014,CHILDYOU,4,Children's and Education Services,AMAZON,Equipment,Revenue,160658,24,30/06/2014,379.99,Nil,Book Stores,GPC,Not yet available
Wakefield MDC,E08000036,30/06/2014,CHILDYOU,4,Children's and Education Services,ARGOS,Equipment,Revenue,160640,268,25/04/2014,44.95,Nil,Discount Stores,GPC,Not yet available
Wakefield MDC,E08000036,30/06/2014,CHILDYOU,4,Children's and Education Services,ARGOS,Equipment,Revenue,160648,2543,09/06/2014,133.69,Nil,Discount Stores,GPC,Not yet available
Wakefield MDC,E08000036,30/06/2014,CHILDYOU,4,Children's and Education Services,B & Q,Equipment,Revenue,160647,14,03/06/2014,2.50,Nil,Lumber/Building Materials Stores,GPC,Not yet available
Wakefield MDC,E08000036,30/06/2014,CHILDYOU,4,Children's and Education Services,B & Q,Equipment,Revenue,160647,16,03/06/2014,2.50,Nil,Lumber/Building Materials Stores,GPC,Not yet available
Wakefield MDC,E08000036,30/06/2014,CHILDYOU,4,Children's and Education Services,B & Q,Equipment,Revenue,160647,3270,03/06/2014,2.50,Nil,Lumber/Building Materials Stores,GPC,Not yet available
Wakefield MDC,E08000036,30/06/2014,CHILDYOU,4,Children's and Education Services,B & Q,Equipment,Revenue,160647,6146,03/06/2014,2.50,Nil,Lumber/Building Materials Stores,GPC,Not yet available
Wakefield MDC,E08000036,30/06/2014,CHILDYOU,4,Children's and Education Services,B & Q ,Equipment,Revenue,160658,30,30/06/2014,21.65,Nil,Lumber/Building Materials Stores,GPC,Not yet available
Wakefield MDC,E08000036,30/06/2014,CHILDYOU,4,Children's and Education Services,BAKER ROSS,Equipment,Revenue,160653,1088,23/06/2014,458.44,Nil,Artist Supply/Craft Stores,GPC,Not yet available
Wakefield MDC,E08000036,30/06/2014,CHILDYOU,4,Children's and Education Services,DANCOVER DENMARK APS,Equipment,Revenue,160658,35,30/06/2014,"1,125.00",Nil,Grocery Stores/Supermarkets,GPC,Not yet available
Wakefield MDC,E08000036,30/06/2014,CHILDYOU,4,Children's and Education Services,LIVELINK SOLUTIONS LIMITED,Equipment,Revenue,160648,32,09/06/2014,30.65,Nil,Intercom Systems,GPC,Not yet available
Wakefield MDC,E08000036,30/06/2014,CHILDYOU,4,Children's and Education Services,MAKRO SELF SERVICE,Equipment,Revenue,160658,32,30/06/2014,13.97,Nil,Wholesale Clubs,GPC,Not yet available
Wakefield MDC,E08000036,30/06/2014,CHILDYOU,4,Children's and Education Services,MAPLIN WAKEFIELD,Equipment,Revenue,160653,1290,23/06/2014,41.66,Nil,Electronics Stores,GPC,Not yet available
Wakefield MDC,E08000036,30/06/2014,CHILDYOU,4,Children's and Education Services,PORTABLE APPLIANCE,Equipment,Revenue,160649,493,13/06/2014,77.40,Nil,Electronics Stores,GPC,Not yet available
Wakefield MDC,E08000036,30/06/2014,CHILDYOU,4,Children's and Education Services,TIMPSON LTD,Equipment,Revenue,160639,3522,14/04/2014,10.00,Nil,Shoe Repair/Shine/Hat Cleaning,GPC,Not yet available
Wakefield MDC,E08000036,30/06/2014,CHILDYOU,4,Children's and Education Services,VODAFONE LIMITED,Equipment,Revenue,160653,1559,23/06/2014,20.00,Nil,Telecom Services - Phone/Fax,GPC,Not yet available
Wakefield MDC,E08000036,30/06/2014,CHILDYOU,4,Children's and Education Services,BM RETAIL LTD,Equipment,Revenue,160649,284,13/06/2014,43.70,Nil,Discount Stores,GPC,Not yet available
Wakefield MDC,E08000036,30/06/2014,ADULTS,7,Adult Social Care,SONIC MEGASTORE,Equipment,Revenue,160647,8765,03/06/2014,52.50,Nil,Electronics Stores,GPC,Not yet available
Wakefield MDC,E08000036,30/06/2014,BUSINESS,A,Net (Surplus) / Deficit of Trading Operations,THE POSITIVE INTER,Equipment,Revenue,160649,2049,13/06/2014,12.00,Nil,Electronics Stores,GPC,Not yet available
Wakefield MDC,E08000036,30/06/2014,BUSINESS,A,Net (Surplus) / Deficit of Trading Operations,THOMANN,Equipment,Revenue,160649,2050,13/06/2014,465.09,Nil,Music Stores - Instruments/Piano/Sheet Music,GPC,Not yet available
Wakefield MDC,E08000036,30/06/2014,REGENCULT,6,Housing Services,ARCO LTD,Equipment,Revenue,160648,624,09/06/2014,13.63,Nil,Uniforms And Commercial Clothing,GPC,Not yet available
Wakefield MDC,E08000036,30/06/2014,REGENCULT,M,Environmental and Regulatory Services,MAPLIN WAKEFIELD,Equipment,Revenue,160647,8490,03/06/2014,41.65,Nil,Electronics Stores,GPC,Not yet available
Wakefield MDC,E08000036,30/06/2014,REGENCULT,M,Environmental and Regulatory Services,STAPLES,Equipment,Revenue,160651,131,18/06/2014,20.82,Nil,Stationery/Office/School Supply Stores,GPC,Not yet available
Wakefield MDC,E08000036,30/06/2014,REGENCULT,M,Environmental and Regulatory Services,WICKES,Equipment,Revenue,160647,5693,03/06/2014,46.65,Nil,Lumber/Building Materials Stores,GPC,Not yet available
Wakefield MDC,E08000036,30/06/2014,CHILDYOU,4,Children's and Education Services,AMAZON,Equipment,Revenue,160647,8710,03/06/2014,12.98,Nil,Book Stores,GPC,Not yet available
Wakefield MDC,E08000036,30/06/2014,CHILDYOU,4,Children's and Education Services,AMAZON,Equipment,Revenue,160647,8955,03/06/2014,12.50,Nil,Book Stores,GPC,Not yet available
Wakefield MDC,E08000036,30/06/2014,CHILDYOU,4,Children's and Education Services,AMAZON,Equipment,Revenue,160647,9246,03/06/2014,11.62,Nil,Book Stores,GPC,Not yet available
Wakefield MDC,E08000036,30/06/2014,CHILDYOU,4,Children's and Education Services,ARGOS,Equipment,Revenue,160639,2479,14/04/2014,9.99,Nil,Discount Stores,GPC,Not yet available
Wakefield MDC,E08000036,30/06/2014,CHILDYOU,4,Children's and Education Services,ARGOS,Equipment,Revenue,160651,3671,18/06/2014,147.24,Nil,Discount Stores,GPC,Not yet available
Wakefield MDC,E08000036,30/06/2014,CHILDYOU,4,Children's and Education Services,ASDA,Equipment,Revenue,160639,607,14/04/2014,7.00,Nil,Grocery Stores/Supermarkets,GPC,Not yet available
Wakefield MDC,E08000036,30/06/2014,CHILDYOU,4,Children's and Education Services,ASDA,Equipment,Revenue,160639,3671,14/04/2014,8.00,Nil,Grocery Stores/Supermarkets,GPC,Not yet available
Wakefield MDC,E08000036,30/06/2014,CHILDYOU,4,Children's and Education Services,B & Q,Equipment,Revenue,160647,5721,03/06/2014,2.50,Nil,Lumber/Building Materials Stores,GPC,Not yet available
Wakefield MDC,E08000036,30/06/2014,CHILDYOU,4,Children's and Education Services,B & Q,Equipment,Revenue,160647,8470,03/06/2014,6.65,Nil,Lumber/Building Materials Stores,GPC,Not yet available
Wakefield MDC,E08000036,30/06/2014,CHILDYOU,4,Children's and Education Services,CDSL PARTMASTER ,Equipment,Revenue,160642,2103,07/05/2014,15.40,Nil,Lumber/Building Materials Stores,GPC,Not yet available
Wakefield MDC,E08000036,30/06/2014,CHILDYOU,4,Children's and Education Services,GUY,Equipment,Revenue,160647,8953,03/06/2014,9.49,Nil,Grocery Stores/Supermarkets,GPC,Not yet available
Wakefield MDC,E08000036,30/06/2014,CHILDYOU,4,Children's and Education Services,POUNDLAND LTD,Equipment,Revenue,160644,2357,14/05/2014,5.00,Nil,Discount Stores,GPC,Not yet available
Wakefield MDC,E08000036,30/06/2014,CHILDYOU,4,Children's and Education Services,RYMAN,Equipment,Revenue,160659,681,02/07/2014,17.98,Nil,Stationery/Office/School Supply Stores,GPC,Not yet available
Wakefield MDC,E08000036,30/06/2014,CHILDYOU,4,Children's and Education Services,W M MORRISONS,Equipment,Revenue,160659,925,02/07/2014,15.00,Nil,Grocery Stores/Supermarkets,GPC,Not yet available
Wakefield MDC,E08000036,30/06/2014,CHILDYOU,4,Children's and Education Services,WAKEFIELD HOSPICE LTD,Equipment,Revenue,160642,820,07/05/2014,25.00,Nil,Charitable/Social Service Orgs,GPC,Not yet available
Wakefield MDC,E08000036,30/06/2014,REGENCULT,5,Highways & Transport Services,KENMAR CAMPING  LEISURE,Equipment,Revenue,160647,10481,03/06/2014,83.33,Nil,Sporting Goods Stores,GPC,Not yet available
Wakefield MDC,E08000036,30/06/2014,REGENCULT,M,Environmental and Regulatory Services,ARCHIDEC LIMITED,Equipment,Revenue,160644,206,14/05/2014,49.80,Nil,Lumber/Building Materials Stores,GPC,Not yet available
Wakefield MDC,E08000036,30/06/2014,REGENCULT,M,Environmental and Regulatory Services,ARCHIDEC LIMITED,Equipment,Revenue,160648,896,09/06/2014,43.35,Nil,Lumber/Building Materials Stores,GPC,Not yet available
Wakefield MDC,E08000036,30/06/2014,REGENCULT,L,Cultural and Related Services,CALDER SECURITY,Equipment,Revenue,160648,219,09/06/2014,40.18,Nil,Hardware Stores,GPC,Not yet available
Wakefield MDC,E08000036,30/06/2014,REGENCULT,L,Cultural and Related Services,FISCO WAKEFIELD,Equipment,Revenue,160645,734,14/05/2014,26.55,Nil,Misc Auto/Aircraft/Farm Equipment Dealers,GPC,Not yet available
Wakefield MDC,E08000036,30/06/2014,REGENCULT,L,Cultural and Related Services,SCREWFIX,Equipment,Revenue,160659,378,02/07/2014,6.97,Nil,Lumber/Building Materials Stores,GPC,Not yet available
Wakefield MDC,E08000036,30/06/2014,REGENCULT,L,Cultural and Related Services,WICKES,Equipment,Revenue,160659,632,02/07/2014,8.32,Nil,Lumber/Building Materials Stores,GPC,Not yet available
Wakefield MDC,E08000036,30/06/2014,REGENCULT,L,Cultural and Related Services,ASDA,Equipment,Revenue,160659,437,02/07/2014,6.67,Nil,Grocery Stores/Supermarkets,GPC,Not yet available
Wakefield MDC,E08000036,30/06/2014,REGENCULT,L,Cultural and Related Services,DAMAR SUPPLIES LIMITED,Equipment,Revenue,160659,441,02/07/2014,33.90,Nil,Swimming Pools - Sales/Serv,GPC,Not yet available
Wakefield MDC,E08000036,30/06/2014,REGENCULT,L,Cultural and Related Services,J P LENNARD LTD,Equipment,Revenue,160659,431,02/07/2014,232.66,Nil,Sporting Goods Stores,GPC,Not yet available
Wakefield MDC,E08000036,30/06/2014,REGENCULT,L,Cultural and Related Services,T J MORRIS LTD,Equipment,Revenue,160659,433,02/07/2014,14.97,Nil,Hardware Stores,GPC,Not yet available
Wakefield MDC,E08000036,30/06/2014,REGENCULT,L,Cultural and Related Services,WILKINSON,Equipment,Revenue,160659,435,02/07/2014,20.66,Nil,Household Appliance Stores,GPC,Not yet available
Wakefield MDC,E08000036,30/06/2014,REGENCULT,L,Cultural and Related Services,BG CLEANING SYSTEMS LTD,Equipment,Revenue,160659,762,02/07/2014,70.37,Nil,Clean/Maint/Janitoral Services,GPC,Not yet available
Wakefield MDC,E08000036,30/06/2014,REGENCULT,L,Cultural and Related Services,CROSSLEY SPARE PARTS,Equipment,Revenue,160659,427,02/07/2014,25.17,Nil,Electrical Parts/Equipment,GPC,Not yet available
Wakefield MDC,E08000036,30/06/2014,REGENCULT,L,Cultural and Related Services,POST OFFICE COUNTER,Equipment,Revenue,160659,760,02/07/2014,6.25,Nil,Postal Services - Gov Only,GPC,Not yet available
Wakefield MDC,E08000036,30/06/2014,REGENCULT,L,Cultural and Related Services,WILKINSON,Equipment,Revenue,160659,425,02/07/2014,10.61,Nil,Household Appliance Stores,GPC,Not yet available
Wakefield MDC,E08000036,30/06/2014,REGENCULT,L,Cultural and Related Services,WILKINSON,Equipment,Revenue,160659,764,02/07/2014,10.83,Nil,Household Appliance Stores,GPC,Not yet available
Wakefield MDC,E08000036,30/06/2014,REGENCULT,L,Cultural and Related Services,PC WORLD,Equipment,Revenue,160659,368,02/07/2014,166.64,Nil,Computer Software Stores,GPC,Not yet available
Wakefield MDC,E08000036,30/06/2014,REGENCULT,L,Cultural and Related Services,W M MORRISONS,Equipment,Revenue,160659,371,02/07/2014,4.17,Nil,Grocery Stores/Supermarkets,GPC,Not yet available
Wakefield MDC,E08000036,30/06/2014,REGENCULT,L,Cultural and Related Services,W M MORRISONS,Equipment,Revenue,160659,376,02/07/2014,15.80,Nil,Grocery Stores/Supermarkets,GPC,Not yet available
Wakefield MDC,E08000036,30/06/2014,REGENCULT,L,Cultural and Related Services,ANCHOR MARINE PLASTICS,Equipment,Revenue,160640,200,25/04/2014,102.98,Nil,Sporting Goods Stores,GPC,Not yet available
Wakefield MDC,E08000036,30/06/2014,REGENCULT,L,Cultural and Related Services,ASDA,Equipment,Revenue,160640,206,25/04/2014,29.17,Nil,Grocery Stores/Supermarkets,GPC,Not yet available
Wakefield MDC,E08000036,30/06/2014,REGENCULT,L,Cultural and Related Services,B & Q ,Equipment,Revenue,160640,182,25/04/2014,1.54,Nil,Lumber/Building Materials Stores,GPC,Not yet available
Wakefield MDC,E08000036,30/06/2014,REGENCULT,L,Cultural and Related Services,B & Q ,Equipment,Revenue,160640,184,25/04/2014,1.54,Nil,Lumber/Building Materials Stores,GPC,Not yet available
Wakefield MDC,E08000036,30/06/2014,REGENCULT,L,Cultural and Related Services,B & Q ,Equipment,Revenue,160640,186,25/04/2014,1.54,Nil,Lumber/Building Materials Stores,GPC,Not yet available
Wakefield MDC,E08000036,30/06/2014,REGENCULT,L,Cultural and Related Services,B & Q ,Equipment,Revenue,160640,188,25/04/2014,1.54,Nil,Lumber/Building Materials Stores,GPC,Not yet available
Wakefield MDC,E08000036,30/06/2014,REGENCULT,L,Cultural and Related Services,B & Q ,Equipment,Revenue,160640,190,25/04/2014,4.90,Nil,Lumber/Building Materials Stores,GPC,Not yet available
Wakefield MDC,E08000036,30/06/2014,REGENCULT,L,Cultural and Related Services,B & Q ,Equipment,Revenue,160640,192,25/04/2014,4.90,Nil,Lumber/Building Materials Stores,GPC,Not yet available
Wakefield MDC,E08000036,30/06/2014,REGENCULT,L,Cultural and Related Services,B & Q ,Equipment,Revenue,160640,194,25/04/2014,4.90,Nil,Lumber/Building Materials Stores,GPC,Not yet available
Wakefield MDC,E08000036,30/06/2014,REGENCULT,L,Cultural and Related Services,B & Q ,Equipment,Revenue,160646,133,15/05/2014,10.82,Nil,Lumber/Building Materials Stores,GPC,Not yet available
Wakefield MDC,E08000036,30/06/2014,REGENCULT,L,Cultural and Related Services,B & Q ,Equipment,Revenue,160646,135,15/05/2014,3.33,Nil,Lumber/Building Materials Stores,GPC,Not yet available
Wakefield MDC,E08000036,30/06/2014,REGENCULT,L,Cultural and Related Services,B & Q ,Equipment,Revenue,160646,137,15/05/2014,3.33,Nil,Lumber/Building Materials Stores,GPC,Not yet available
Wakefield MDC,E08000036,30/06/2014,REGENCULT,L,Cultural and Related Services,B & Q ,Equipment,Revenue,160646,139,15/05/2014,6.65,Nil,Lumber/Building Materials Stores,GPC,Not yet available
Wakefield MDC,E08000036,30/06/2014,REGENCULT,L,Cultural and Related Services,B & Q ,Equipment,Revenue,160646,143,15/05/2014,2.48,Nil,Lumber/Building Materials Stores,GPC,Not yet available
Wakefield MDC,E08000036,30/06/2014,REGENCULT,L,Cultural and Related Services,B & Q ,Equipment,Revenue,160646,145,15/05/2014,3.32,Nil,Lumber/Building Materials Stores,GPC,Not yet available
Wakefield MDC,E08000036,30/06/2014,REGENCULT,L,Cultural and Related Services,B & Q ,Equipment,Revenue,160646,147,15/05/2014,6.61,Nil,Lumber/Building Materials Stores,GPC,Not yet available
Wakefield MDC,E08000036,30/06/2014,REGENCULT,L,Cultural and Related Services,B & Q ,Equipment,Revenue,160646,149,15/05/2014,6.65,Nil,Lumber/Building Materials Stores,GPC,Not yet available
Wakefield MDC,E08000036,30/06/2014,REGENCULT,L,Cultural and Related Services,B & Q ,Equipment,Revenue,160646,151,15/05/2014,6.65,Nil,Lumber/Building Materials Stores,GPC,Not yet available
Wakefield MDC,E08000036,30/06/2014,REGENCULT,L,Cultural and Related Services,B & Q ,Equipment,Revenue,160646,153,15/05/2014,4.36,Nil,Lumber/Building Materials Stores,GPC,Not yet available
Wakefield MDC,E08000036,30/06/2014,REGENCULT,L,Cultural and Related Services,B & Q ,Equipment,Revenue,160646,155,15/05/2014,4.36,Nil,Lumber/Building Materials Stores,GPC,Not yet available
Wakefield MDC,E08000036,30/06/2014,REGENCULT,L,Cultural and Related Services,B & Q ,Equipment,Revenue,160646,157,15/05/2014,4.37,Nil,Lumber/Building Materials Stores,GPC,Not yet available
Wakefield MDC,E08000036,30/06/2014,REGENCULT,L,Cultural and Related Services,B & Q ,Equipment,Revenue,160646,159,15/05/2014,4.37,Nil,Lumber/Building Materials Stores,GPC,Not yet available
Wakefield MDC,E08000036,30/06/2014,REGENCULT,L,Cultural and Related Services,B & Q ,Equipment,Revenue,160646,165,15/05/2014,7.07,Nil,Lumber/Building Materials Stores,GPC,Not yet available
Wakefield MDC,E08000036,30/06/2014,REGENCULT,L,Cultural and Related Services,B & Q ,Equipment,Revenue,160646,167,15/05/2014,7.07,Nil,Lumber/Building Materials Stores,GPC,Not yet available
Wakefield MDC,E08000036,30/06/2014,REGENCULT,L,Cultural and Related Services,B & Q ,Equipment,Revenue,160646,169,15/05/2014,5.49,Nil,Lumber/Building Materials Stores,GPC,Not yet available
Wakefield MDC,E08000036,30/06/2014,REGENCULT,L,Cultural and Related Services,B & Q ,Equipment,Revenue,160646,171,15/05/2014,5.49,Nil,Lumber/Building Materials Stores,GPC,Not yet available
Wakefield MDC,E08000036,30/06/2014,REGENCULT,L,Cultural and Related Services,B & Q ,Equipment,Revenue,160646,173,15/05/2014,3.33,Nil,Lumber/Building Materials Stores,GPC,Not yet available
Wakefield MDC,E08000036,30/06/2014,REGENCULT,L,Cultural and Related Services,B & Q ,Equipment,Revenue,160646,175,15/05/2014,5.23,Nil,Lumber/Building Materials Stores,GPC,Not yet available
Wakefield MDC,E08000036,30/06/2014,REGENCULT,L,Cultural and Related Services,B & Q ,Equipment,Revenue,160647,3650,03/06/2014,4.89,Nil,Lumber/Building Materials Stores,GPC,Not yet available
Wakefield MDC,E08000036,30/06/2014,REGENCULT,L,Cultural and Related Services,B & Q ,Equipment,Revenue,160647,3754,03/06/2014,4.89,Nil,Lumber/Building Materials Stores,GPC,Not yet available
Wakefield MDC,E08000036,30/06/2014,REGENCULT,L,Cultural and Related Services,B & Q ,Equipment,Revenue,160647,3756,03/06/2014,1.60,Nil,Lumber/Building Materials Stores,GPC,Not yet available
Wakefield MDC,E08000036,30/06/2014,REGENCULT,L,Cultural and Related Services,B & Q ,Equipment,Revenue,160647,4032,03/06/2014,1.60,Nil,Lumber/Building Materials Stores,GPC,Not yet available
Wakefield MDC,E08000036,30/06/2014,REGENCULT,L,Cultural and Related Services,B & Q ,Equipment,Revenue,160647,4100,03/06/2014,1.60,Nil,Lumber/Building Materials Stores,GPC,Not yet available
Wakefield MDC,E08000036,30/06/2014,REGENCULT,L,Cultural and Related Services,B & Q ,Equipment,Revenue,160647,4102,03/06/2014,1.60,Nil,Lumber/Building Materials Stores,GPC,Not yet available
Wakefield MDC,E08000036,30/06/2014,REGENCULT,L,Cultural and Related Services,B & Q ,Equipment,Revenue,160647,4491,03/06/2014,1.60,Nil,Lumber/Building Materials Stores,GPC,Not yet available
Wakefield MDC,E08000036,30/06/2014,REGENCULT,L,Cultural and Related Services,CDC,Equipment,Revenue,160654,92,24/06/2014,44.90,Nil,Commercial Equipment - Not Elsewhere Classified,GPC,Not yet available
Wakefield MDC,E08000036,30/06/2014,REGENCULT,L,Cultural and Related Services,CURRYS,Equipment,Revenue,160648,1835,09/06/2014,249.99,Nil,Electronics Stores,GPC,Not yet available
Wakefield MDC,E08000036,30/06/2014,REGENCULT,L,Cultural and Related Services,CURRYS,Equipment,Revenue,160648,1972,09/06/2014,10.83,Nil,Electronics Stores,GPC,Not yet available
Wakefield MDC,E08000036,30/06/2014,REGENCULT,L,Cultural and Related Services,DIXON HALL,Equipment,Revenue,160640,204,25/04/2014,16.70,Nil,Hardware/Equipment/Supplies,GPC,Not yet available
Wakefield MDC,E08000036,30/06/2014,REGENCULT,L,Cultural and Related Services,DIXON HALL,Equipment,Revenue,160646,129,15/05/2014,27.72,Nil,Hardware/Equipment/Supplies,GPC,Not yet available
Wakefield MDC,E08000036,30/06/2014,REGENCULT,L,Cultural and Related Services,DIXON HALL,Equipment,Revenue,160646,141,15/05/2014,4.18,Nil,Hardware/Equipment/Supplies,GPC,Not yet available
Wakefield MDC,E08000036,30/06/2014,REGENCULT,L,Cultural and Related Services,DIXON HALL,Equipment,Revenue,160654,88,24/06/2014,9.00,Nil,Hardware/Equipment/Supplies,GPC,Not yet available
Wakefield MDC,E08000036,30/06/2014,REGENCULT,L,Cultural and Related Services,DIXON HALL,Equipment,Revenue,160654,90,24/06/2014,77.27,Nil,Hardware/Equipment/Supplies,GPC,Not yet available
Wakefield MDC,E08000036,30/06/2014,REGENCULT,L,Cultural and Related Services,DIXON HALL,Equipment,Revenue,160659,364,02/07/2014,31.69,Nil,Hardware/Equipment/Supplies,GPC,Not yet available
Wakefield MDC,E08000036,30/06/2014,REGENCULT,L,Cultural and Related Services,HALFORDS,Equipment,Revenue,160640,196,25/04/2014,10.82,Nil,Bicycle Shops - Sales/Service,GPC,Not yet available
Wakefield MDC,E08000036,30/06/2014,REGENCULT,L,Cultural and Related Services,HAMPSONS PLANTWORLD LTD,Equipment,Revenue,160654,86,24/06/2014,7.50,Nil,Nursery/Lawn/Garden Supply Stores,GPC,Not yet available
Wakefield MDC,E08000036,30/06/2014,REGENCULT,L,Cultural and Related Services,MACHINE MART,Equipment,Revenue,160659,366,02/07/2014,563.84,Nil,Household Appliance Stores,GPC,Not yet available
Wakefield MDC,E08000036,30/06/2014,REGENCULT,L,Cultural and Related Services,MAPLIN WAKEFIELD,Equipment,Revenue,160647,4518,03/06/2014,22.48,Nil,Electronics Stores,GPC,Not yet available
Wakefield MDC,E08000036,30/06/2014,REGENCULT,L,Cultural and Related Services,TP WAKEFIELD,Equipment,Revenue,160640,202,25/04/2014,123.52,Nil,Lumber/Building Materials Stores,GPC,Not yet available
Wakefield MDC,E08000036,30/06/2014,REGENCULT,L,Cultural and Related Services,TP WAKEFIELD,Equipment,Revenue,160646,125,15/05/2014,80.64,Nil,Lumber/Building Materials Stores,GPC,Not yet available
Wakefield MDC,E08000036,30/06/2014,REGENCULT,L,Cultural and Related Services,TP WAKEFIELD,Equipment,Revenue,160646,127,15/05/2014,9.90,Nil,Lumber/Building Materials Stores,GPC,Not yet available
Wakefield MDC,E08000036,30/06/2014,REGENCULT,L,Cultural and Related Services,TP WAKEFIELD,Equipment,Revenue,160646,161,15/05/2014,17.00,Nil,Lumber/Building Materials Stores,GPC,Not yet available
Wakefield MDC,E08000036,30/06/2014,REGENCULT,L,Cultural and Related Services,TP WAKEFIELD,Equipment,Revenue,160646,163,15/05/2014,20.00,Nil,Lumber/Building Materials Stores,GPC,Not yet available
Wakefield MDC,E08000036,30/06/2014,REGENCULT,L,Cultural and Related Services,WICKES,Equipment,Revenue,160640,198,25/04/2014,38.20,Nil,Lumber/Building Materials Stores,GPC,Not yet available
Wakefield MDC,E08000036,30/06/2014,REGENCULT,L,Cultural and Related Services,DIXON HALL,Equipment,Revenue,160659,442,02/07/2014,24.37,Nil,Hardware/Equipment/Supplies,GPC,Not yet available
Wakefield MDC,E08000036,30/06/2014,REGENCULT,L,Cultural and Related Services,GTP CYCLES,Equipment,Revenue,160648,947,09/06/2014,50.00,Nil,Bicycle Shops - Sales/Service,GPC,Not yet available
Wakefield MDC,E08000036,30/06/2014,REGENCULT,L,Cultural and Related Services,LIFE FITNESS (UK) LTD ,Equipment,Revenue,160648,1141,09/06/2014,46.96,Nil,Sporting Goods Stores,GPC,Not yet available
Wakefield MDC,E08000036,30/06/2014,REGENCULT,L,Cultural and Related Services,MULTI POINT LOCKING,Equipment,Revenue,160659,445,02/07/2014,5.00,Nil,Hardware Stores,GPC,Not yet available
Wakefield MDC,E08000036,30/06/2014,REGENCULT,L,Cultural and Related Services,SPORTSDIRECT,Equipment,Revenue,160648,916,09/06/2014,119.85,Nil,Sporting Goods Stores,GPC,Not yet available
Wakefield MDC,E08000036,30/06/2014,REGENCULT,L,Cultural and Related Services,WAKEFIELD FLOORCARE,Equipment,Revenue,160648,948,09/06/2014,363.49,Nil,Household Appliance Stores,GPC,Not yet available
Wakefield MDC,E08000036,30/06/2014,REGENCULT,L,Cultural and Related Services,WAKEFIELD FLOORCARE,Equipment,Revenue,160659,447,02/07/2014,16.58,Nil,Household Appliance Stores,GPC,Not yet available
Wakefield MDC,E08000036,30/06/2014,REGENCULT,L,Cultural and Related Services,BRANDED CLRN SPTWR LTD,Equipment,Revenue,160644,664,14/05/2014,40.50,Nil,Sporting Goods Stores,GPC,Not yet available
Wakefield MDC,E08000036,30/06/2014,REGENCULT,M,Environmental and Regulatory Services,ASDA,Equipment,Revenue,160650,541,16/06/2014,4.00,Nil,Grocery Stores/Supermarkets,GPC,Not yet available
Wakefield MDC,E08000036,30/06/2014,REGENCULT,M,Environmental and Regulatory Services,ASDA,Equipment,Revenue,160650,578,16/06/2014,7.96,Nil,Grocery Stores/Supermarkets,GPC,Not yet available
Wakefield MDC,E08000036,30/06/2014,REGENCULT,M,Environmental and Regulatory Services,B & Q,Equipment,Revenue,160647,8729,03/06/2014,2.15,Nil,Lumber/Building Materials Stores,GPC,Not yet available
Wakefield MDC,E08000036,30/06/2014,REGENCULT,M,Environmental and Regulatory Services,B & Q,Equipment,Revenue,160647,8731,03/06/2014,2.15,Nil,Lumber/Building Materials Stores,GPC,Not yet available
Wakefield MDC,E08000036,30/06/2014,REGENCULT,M,Environmental and Regulatory Services,B & Q,Equipment,Revenue,160647,8924,03/06/2014,2.15,Nil,Lumber/Building Materials Stores,GPC,Not yet available
